Workbook

Sheet Main
B10: 2020-03-30
B12: Sheet No. | C12: Template Name | D12: Summary
B13: 1 | C13: Future Intra | D13: For Intraday trading in F&O segment
B14: 2 | C14: Cash Intra | D14: For Intraday trading in cash market segment
B15: 3 | C15: Mid-cap Intra | D15: For Intraday trading in Mid-cap stocks
B16: 4 | C16: Bulk Deals | D16: Reveals Bulk Deals carried on NSE & BSE
B17: 5 | C17: Call Tracker
K27: `

Sheet Future Intra
M5: Back to Main Page
A6: FOR INTRA DAY TRADING | L6: =Main!B10 -> 2020-03-30
A9: Sr.no | B9: Sector | C9: Scrip | D9: CLOSE RATE | E9: Pivot Point | F9: Supports | I9: Resistances
B10: Sector | D10: Point | E10: Point | F10: S1 | G10: S2 | H10: S3 | I10: R1 | J10: R2 | K10: R3 | L10: HIGH | M10: LOW | N10: OI | O10: % Change in OI
A11: 1 | B11: Index | C11: BANKNIFTY | D11: 19778.65 | E11: 20133.93 | F11: 18995.07 | G11: 18211.48 | H11: 17072.62 | I11: 20917.52 | J11: 22056.38 | K11: 22839.97 | L11: 21272.8 | M11: 19350.35 | N11: 983040 | O11: 18.24%
A12: 2 | B12: Index | C12: NIFTY | D12: 8651.40 | E12: 8740.22 | F12: 8436.18 | G12: 8220.97 | H12: 7916.93 | I12: 8955.43 | J12: 9259.47 | K12: 9474.68 | L12: 9044.25 | M12: 8525 | N12: 11269725 | O12: -2.65%
A13: 3 | B13: Index | C13: NIFTYIT | D13: 12408.00 | E13: 12636.00 | F13: 12172.00 | G13: 11936.00 | H13: 11472.00 | I13: 12872.00 | J13: 13336.00 | K13: 13572.00 | L13: 13100 | M13: 12400 | N13: 950 | O13: 11.76%
A14: 4 | B14: Cement | C14: ACC | D14: 955.10 | E14: 968.77 | F14: 927.53 | G14: 899.97 | H14: 858.73 | I14: 996.33 | J14: 1037.57 | K14: 1065.13 | L14: 1010 | M14: 941.2 | N14: 1998000 | O14: -5.25%
A15: 5 | B15: Others | C15: ADANIENT | D15: 129.60 | E15: 136.45 | F15: 120.90 | G15: 112.20 | H15: 96.65 | I15: 145.15 | J15: 160.70 | K15: 169.40 | L15: 152 | M15: 127.75 | N15: 15828000 | O15: 2.43%
A16: 6 | B16: Others | C16: ADANIPORTS | D16: 251.05 | E16: 251.23 | F16: 243.77 | G16: 236.48 | H16: 229.02 | I16: 258.52 | J16: 265.98 | K16: 273.27 | L16: 258.7 | M16: 243.95 | N16: 27132500 | O16: -2.32%
A17: 7 | B17: Power | C17: ADANIPOWER | D17: 27.80 | E17: 29.43 | F17: 25.82 | G17: 23.83 | H17: 20.22 | I17: 31.42 | J17: 35.03 | K17: 37.02 | L17: 33.05 | M17: 27.45 | N17: 50340000 | O17: -0.08%
A18: 8 | B18: Automobile | C18: AMARAJABAT | D18: 452.10 | E18: 460.78 | F18: 438.42 | G18: 424.73 | H18: 402.37 | I18: 474.47 | J18: 496.83 | K18: 510.52 | L18: 483.15 | M18: 447.1 | N18: 841600 | O18: -6.16%
A19: 9 | B19: Cement | C19: AMBUJACEM | D19: 141.25 | E19: 144.63 | F19: 137.27 | G19: 133.28 | H19: 125.92 | I19: 148.62 | J19: 155.98 | K19: 159.97 | L19: 152 | M19: 140.65 | N19: 17532500 | O19: -0.62%
A20: 10 | B20: Others | C20: APOLLOHOSP | D20: 1171.60 | E20: 1193.68 | F20: 1120.72 | G20: 1069.83 | H20: 996.87 | I20: 1244.57 | J20: 1317.53 | K20: 1368.42 | L20: 1266.65 | M20: 1142.8 | N20: 719000 | O20: 2.06%
A21: 11 | B21: Automobile | C21: APOLLOTYRE | D21: 82.30 | E21: 82.72 | F21: 79.08 | G21: 75.87 | H21: 72.23 | I21: 85.93 | J21: 89.57 | K21: 92.78 | L21: 86.35 | M21: 79.5 | N21: 4683000 | O21: 2.36%
A22: 12 | B22: Automobile | C22: ASHOKLEY | D22: 42.80 | E22: 45.03 | F22: 39.02 | G22: 35.23 | H22: 29.22 | I22: 48.82 | J22: 54.83 | K22: 58.62 | L22: 51.05 | M22: 41.25 | N22: 34392000 | O22: -1.17%
A23: 13 | B23: FMCG | C23: ASIANPAINT | D23: 1621.35 | E23: 1620.55 | F23: 1566.10 | G23: 1510.85 | H23: 1456.40 | I23: 1675.80 | J23: 1730.25 | K23: 1785.50 | L23: 1675 | M23: 1565.3 | N23: 5814000 | O23: 14.73%
A24: 14 | B24: Pharma | C24: AUROPHARMA | D24: 392.40 | E24: 392.23 | F24: 378.67 | G24: 364.93 | H24: 351.37 | I24: 405.97 | J24: 419.53 | K24: 433.27 | L24: 405.8 | M24: 378.5 | N24: 7315000 | O24: -1.55%
A25: 15 | B25: Banking | C25: AXISBANK | D25: 362.10 | E25: 376.92 | F25: 341.93 | G25: 321.77 | H25: 286.78 | I25: 397.08 | J25: 432.07 | K25: 452.23 | L25: 411.9 | M25: 356.75 | N25: 44980800 | O25: -3.86%
A26: 16 | B26: Automobile | C26: BAJAJ-AUTO | D26: 2070.00 | E26: 2087.10 | F26: 2003.95 | G26: 1937.90 | H26: 1854.75 | I26: 2153.15 | J26: 2236.30 | K26: 2302.35 | L26: 2170.25 | M26: 2021.05 | N26: 1184500 | O26: 5.10%
A27: 17 | B27: Finance | C27: BAJAJFINSV | D27: 4907.55 | E27: 5094.15 | F27: 4533.45 | G27: 4159.35 | H27: 3598.65 | I27: 5468.25 | J27: 6028.95 | K27: 6403.05 | L27: 5654.85 | M27: 4720.05 | N27: 548875 | O27: 1.11%
A28: 18 | B28: Finance | C28: BAJFINANCE | D28: 2546.80 | E28: 2699.93 | F28: 2351.87 | G28: 2156.93 | H28: 1808.87 | I28: 2894.87 | J28: 3242.93 | K28: 3437.87 | L28: 3048 | M28: 2505 | N28: 4293000 | O28: 1.09%
A29: 19 | B29: Automobile | C29: BALKRISIND | D29: 848.95 | E29: 841.75 | F29: 813.55 | G29: 778.15 | H29: 749.95 | I29: 877.15 | J29: 905.35 | K29: 940.75 | L29: 869.95 | M29: 806.35 | N29: 604800 | O29: -9.24%
A30: 20 | B30: Banking | C30: BANDHANBNK | D30: 246.95 | E30: 248.58 | F30: 229.52 | G30: 212.08 | H30: 193.02 | I30: 266.02 | J30: 285.08 | K30: 302.52 | L30: 267.65 | M30: 231.15 | N30: 10378800 | O30: 8.56%
A31: 21 | B31: Banking | C31: BANKBARODA | D31: 54.10 | E31: 56.63 | F31: 51.02 | G31: 47.93 | H31: 42.32 | I31: 59.72 | J31: 65.33 | K31: 68.42 | L31: 62.25 | M31: 53.55 | N31: 26033400 | O31: 8.83%
A32: 22 | B32: FMCG | C32: BATAINDIA | D32: 1213.15 | E32: 1228.38 | F32: 1180.77 | G32: 1148.38 | H32: 1100.77 | I32: 1260.77 | J32: 1308.38 | K32: 1340.77 | L32: 1276 | M32: 1196 | N32: 1261700 | O32: -2.17%
A33: 23 | B33: Capital_Goods | C33: BEL | D33: 72.80 | E33: 72.93 | F33: 68.87 | G33: 64.93 | H33: 60.87 | I33: 76.87 | J33: 80.93 | K33: 84.87 | L33: 77 | M33: 69 | N33: 16746000 | O33: 9.49%
A34: 24 | B34: FMCG | C34: BERGEPAINT | D34: 491.70 | E34: 487.90 | F34: 473.80 | G34: 455.90 | H34: 441.80 | I34: 505.80 | J34: 519.90 | K34: 537.80 | L34: 502 | M34: 470 | N34: 4505600 | O34: -2.94%
A35: 25 | B35: Automobile | C35: BHARATFORG | D35: 266.75 | E35: 274.62 | F35: 249.33 | G35: 231.92 | H35: 206.63 | I35: 292.03 | J35: 317.32 | K35: 334.73 | L35: 299.9 | M35: 257.2 | N35: 5366400 | O35: -1.24%
A36: 26 | B36: Telecom | C36: BHARTIARTL | D36: 451.85 | E36: 456.58 | F36: 435.97 | G36: 420.08 | H36: 399.47 | I36: 472.47 | J36: 493.08 | K36: 508.97 | L36: 477.2 | M36: 440.7 | N36: 49777092 | O36: 1.17%
A37: 27 | B37: Capital_Goods | C37: BHEL | D37: 20.40 | E37: 20.90 | F37: 19.80 | G37: 19.20 | H37: 18.10 | I37: 21.50 | J37: 22.60 | K37: 23.20 | L37: 22 | M37: 20.3 | N37: 46862400 | O37: -0.18%
A38: 28 | B38: Pharma | C38: BIOCON | D38: 280.00 | E38: 282.48 | F38: 272.57 | G38: 265.13 | H38: 255.22 | I38: 289.92 | J38: 299.83 | K38: 307.27 | L38: 292.4 | M38: 275.05 | N38: 4882900 | O38: 7.60%
A39: 29 | B39: Automobile | C39: BOSCHLTD | D39: 9981.65 | E39: 10413.30 | F39: 9376.60 | G39: 8771.55 | H39: 7734.85 | I39: 11018.35 | J39: 12055.05 | K39: 12660.10 | L39: 11450 | M39: 9808.25 | N39: 89360 | O39: 3.00%
A40: 30 | B40: Oil_Gas | C40: BPCL | D40: 279.35 | E40: 286.48 | F40: 266.87 | G40: 254.38 | H40: 234.77 | I40: 298.97 | J40: 318.58 | K40: 331.07 | L40: 306.1 | M40: 274 | N40: 17384400 | O40: -2.60%
A41: 31 | B41: FMCG | C41: BRITANNIA | D41: 2542.90 | E41: 2592.30 | F41: 2470.60 | G41: 2398.30 | H41: 2276.60 | I41: 2664.60 | J41: 2786.30 | K41: 2858.60 | L41: 2714 | M41: 2520 | N41: 1120200 | O41: -0.66%
A42: 32 | B42: Pharma | C42: CADILAHC | D42: 254.90 | E42: 257.37 | F42: 247.13 | G42: 239.37 | H42: 229.13 | I42: 265.13 | J42: 275.37 | K42: 283.13 | L42: 267.6 | M42: 249.6 | N42: 2415600 | O42: 4.57%
A43: 33 | B43: Banking | C43: CANBK | D43: 88.65 | E43: 90.55 | F43: 85.05 | G43: 81.45 | H43: 75.95 | I43: 94.15 | J43: 99.65 | K43: 103.25 | L43: 96.05 | M43: 86.95 | N43: 6047600 | O43: 0.65%
A44: 34 | B44: Textile | C44: CENTURYTEX | D44: 281.95 | E44: 284.30 | F44: 267.65 | G44: 253.35 | H44: 236.70 | I44: 298.60 | J44: 315.25 | K44: 329.55 | L44: 300.95 | M44: 270 | N44: 2056800 | O44: -4.27%
A45: 35 | B45: Power | C45: CESC | D45: 393.10 | E45: 400.97 | F45: 379.93 | G45: 366.77 | H45: 345.73 | I45: 414.13 | J45: 435.17 | K45: 448.33 | L45: 422 | M45: 387.8 | N45: 1396800 | O45: 0.34%
A46: 36 | B46: Finance | C46: CHOLAFIN | D46: 169.45 | E46: 173.60 | F46: 162.20 | G46: 154.95 | H46: 143.55 | I46: 180.85 | J46: 192.25 | K46: 199.50 | L46: 185 | M46: 166.35 | N46: 2762500 | O46: -3.66%
A47: 37 | B47: Pharma | C47: CIPLA | D47: 406.85 | E47: 403.93 | F47: 397.87 | G47: 388.88 | H47: 382.82 | I47: 412.92 | J47: 418.98 | K47: 427.97 | L47: 410 | M47: 394.95 | N47: 9380550 | O47: -0.67%
A48: 38 | B48: Others | C48: COALINDIA | D48: 131.30 | E48: 130.08 | F48: 127.12 | G48: 122.93 | H48: 119.97 | I48: 134.27 | J48: 137.23 | K48: 141.42 | L48: 133.05 | M48: 125.9 | N48: 22593600 | O48: -1.90%
A49: 39 | B49: FMCG | C49: COLPAL | D49: 1166.80 | E49: 1181.38 | F49: 1130.52 | G49: 1094.23 | H49: 1043.37 | I49: 1217.67 | J49: 1268.53 | K49: 1304.82 | L49: 1232.25 | M49: 1145.1 | N49: 1546300 | O49: 11.01%
A50: 40 | B50: Others | C50: CONCOR | D50: 311.65 | E50: 325.18 | F50: 294.82 | G50: 277.98 | H50: 247.62 | I50: 342.02 | J50: 372.38 | K50: 389.22 | L50: 355.55 | M50: 308.35 | N50: 3629286 | O50: 5.16%
A51: 41 | B51: Capital_Goods | C51: CUMMINSIND | D51: 362.50 | E51: 370.87 | F51: 345.23 | G51: 327.97 | H51: 302.33 | I51: 388.13 | J51: 413.77 | K51: 431.03 | L51: 396.5 | M51: 353.6 | N51: 443700 | O51: 13.33%
A52: 42 | B52: FMCG | C52: DABUR | D52: 426.30 | E52: 431.05 | F52: 414.50 | G52: 402.70 | H52: 386.15 | I52: 442.85 | J52: 459.40 | K52: 471.20 | L52: 447.6 | M52: 419.25 | N52: 10290000 | O52: -0.08%
A53: 43 | B53: Pharma | C53: DIVISLAB | D53: 1878.00 | E53: 1886.98 | F53: 1828.37 | G53: 1778.73 | H53: 1720.12 | I53: 1936.62 | J53: 1995.23 | K53: 2044.87 | L53: 1945.6 | M53: 1837.35 | N53: 1758000 | O53: 0.96%
A54: 44 | B54: Realty | C54: DLF | D54: 138.80 | E54: 143.27 | F54: 132.53 | G54: 126.27 | H54: 115.53 | I54: 149.53 | J54: 160.27 | K54: 166.53 | L54: 154 | M54: 137 | N54: 27066600 | O54: -6.96%
A55: 45 | B55: Pharma | C55: DRREDDY | D55: 2942.20 | E55: 2961.42 | F55: 2854.83 | G55: 2767.47 | H55: 2660.88 | I55: 3048.78 | J55: 3155.37 | K55: 3242.73 | L55: 3068 | M55: 2874.05 | N55: 1934250 | O55: 3.96%
A56: 46 | B56: Automobile | C56: EICHERMOT | D56: 14409.40 | E56: 14664.20 | F56: 13848.05 | G56: 13286.70 | H56: 12470.55 | I56: 15225.55 | J56: 16041.70 | K56: 16603.05 | L56: 15480.35 | M56: 14102.85 | N56: 183120 | O56: -2.13%
A57: 47 | B57: Finance | C57: EQUITAS | D57: 43.35 | E57: 44.27 | F57: 39.43 | G57: 35.52 | H57: 30.68 | I57: 48.18 | J57: 53.02 | K57: 56.93 | L57: 49.1 | M57: 40.35 | N57: 6458200 | O57: -7.70%
A58: 48 | B58: Automobile | C58: ESCORTS | D58: 658.05 | E58: 679.60 | F58: 627.25 | G58: 596.45 | H58: 544.10 | I58: 710.40 | J58: 762.75 | K58: 793.55 | L58: 731.95 | M58: 648.8 | N58: 2247300 | O58: 6.07%
A59: 49 | B59: Automobile | C59: EXIDEIND | D59: 130.75 | E59: 130.72 | F59: 126.88 | G59: 123.02 | H59: 119.18 | I59: 134.58 | J59: 138.42 | K59: 142.28 | L59: 134.55 | M59: 126.85 | N59: 3546700 | O59: -4.30%
A60: 50 | B60: Banking | C60: FEDERALBNK | D60: 44.55 | E60: 44.98 | F60: 42.17 | G60: 39.78 | H60: 36.97 | I60: 47.37 | J60: 50.18 | K60: 52.57 | L60: 47.8 | M60: 42.6 | N60: 35399000 | O60: -6.51%
A61: 51 | B61: Oil_Gas | C61: GAIL | D61: 70.10 | E61: 71.82 | F61: 67.88 | G61: 65.67 | H61: 61.73 | I61: 74.03 | J61: 77.97 | K61: 80.18 | L61: 75.75 | M61: 69.6 | N61: 23688294 | O61: 21.54%
A62: 52 | B62: Pharma | C62: GLENMARK | D62: 200.90 | E62: 205.95 | F62: 194.00 | G62: 187.10 | H62: 175.15 | I62: 212.85 | J62: 224.80 | K62: 231.70 | L62: 217.9 | M62: 199.05 | N62: 2604000 | O62: 4.09%
A63: 53 | B63: Infrastructure | C63: GMRINFRA | D63: 16.05 | E63: 16.35 | F63: 15.55 | G63: 15.05 | H63: 14.25 | I63: 16.85 | J63: 17.65 | K63: 18.15 | L63: 17.15 | M63: 15.85 | N63: 69300000 | O63: -5.52%
A64: 54 | B64: FMCG | C64: GODREJCP | D64: 501.50 | E64: 497.47 | F64: 475.98 | G64: 450.47 | H64: 428.98 | I64: 522.98 | J64: 544.47 | K64: 569.98 | L64: 518.95 | M64: 471.95 | N64: 6048000 | O64: -1.02%
A65: 55 | B65: Cement | C65: GRASIM | D65: 462.55 | E65: 469.20 | F65: 441.35 | G65: 420.15 | H65: 392.30 | I65: 490.40 | J65: 518.25 | K65: 539.45 | L65: 497.05 | M65: 448 | N65: 21292500 | O65: -2.28%
A66: 56 | B66: Others | C66: HAVELLS | D66: 514.20 | E66: 509.78 | F66: 494.32 | G66: 474.43 | H66: 458.97 | I66: 529.67 | J66: 545.13 | K66: 565.02 | L66: 525.25 | M66: 489.9 | N66: 4774000 | O66: -1.89%
A67: 57 | B67: Technology | C67: HCLTECH | D67: 434.60 | E67: 439.63 | F67: 419.27 | G67: 403.93 | H67: 383.57 | I67: 454.97 | J67: 475.33 | K67: 490.67 | L67: 460 | M67: 424.3 | N67: 19762400 | O67: 5.59%
A68: 58 | B68: Finance | C68: HDFC | D68: 1766.00 | E68: 1784.90 | F68: 1706.10 | G68: 1646.20 | H68: 1567.40 | I68: 1844.80 | J68: 1923.60 | K68: 1983.50 | L68: 1863.7 | M68: 1725 | N68: 26501000 | O68: 0.83%
A69: 59 | B69: Banking | C69: HDFCBANK | D69: 895.65 | E69: 910.87 | F69: 855.23 | G69: 814.82 | H69: 759.18 | I69: 951.28 | J69: 1006.92 | K69: 1047.33 | L69: 966.5 | M69: 870.45 | N69: 23978500 | O69: 0.55%
A70: 60 | B70: Finance | C70: HDFCLIFE | D70: 438.60 | E70: 453.52 | F70: 421.03 | G70: 403.47 | H70: 370.98 | I70: 471.08 | J70: 503.57 | K70: 521.13 | L70: 486 | M70: 435.95 | N70: 8743500 | O70: 28.13%
A71: 61 | B71: Automobile | C71: HEROMOTOCO | D71: 1673.65 | E71: 1727.50 | F71: 1609.05 | G71: 1544.45 | H71: 1426.00 | I71: 1792.10 | J71: 1910.55 | K71: 1975.15 | L71: 1845.95 | M71: 1662.9 | N71: 1809000 | O71: 1.64%
A72: 62 | B72: Metals | C72: HINDALCO | D72: 92.35 | E72: 94.35 | F72: 89.10 | G72: 85.85 | H72: 80.60 | I72: 97.60 | J72: 102.85 | K72: 106.10 | L72: 99.6 | M72: 91.1 | N72: 32480000 | O72: 1.88%
A73: 63 | B73: Oil_Gas | C73: HINDPETRO | D73: 171.80 | E73: 175.53 | F73: 165.37 | G73: 158.93 | H73: 148.77 | I73: 181.97 | J73: 192.13 | K73: 198.57 | L73: 185.7 | M73: 169.1 | N73: 8099700 | O73: 3.07%
A74: 64 | B74: FMCG | C74: HINDUNILVR | D74: 2155.55 | E74: 2185.20 | F74: 2103.50 | G74: 2051.45 | H74: 1969.75 | I74: 2237.25 | J74: 2318.95 | K74: 2371.00 | L74: 2266.9 | M74: 2133.15 | N74: 8758500 | O74: 0.82%
A75: 65 | B75: Finance | C75: IBULHSGFIN | D75: 91.75 | E75: 97.30 | F75: 84.20 | G75: 76.65 | H75: 63.55 | I75: 104.85 | J75: 117.95 | K75: 125.50 | L75: 110.4 | M75: 89.75 | N75: 8720400 | O75: 7.77%
A76: 66 | B76: Banking | C76: ICICIBANK | D76: 339.05 | E76: 340.65 | F76: 324.60 | G76: 310.15 | H76: 294.10 | I76: 355.10 | J76: 371.15 | K76: 385.60 | L76: 356.7 | M76: 326.2 | N76: 75383000 | O76: -1.89%
A77: 67 | B77: Finance | C77: ICICIPRULI | D77: 321.10 | E77: 327.02 | F77: 300.03 | G77: 278.97 | H77: 251.98 | I77: 348.08 | J77: 375.07 | K77: 396.13 | L77: 354 | M77: 305.95 | N77: 7408500 | O77: 5.62%
A78: 68 | B78: Telecom | C78: IDEA | D78: 3.25 | E78: 3.27 | F78: 3.18 | G78: 3.12 | H78: 3.03 | I78: 3.33 | J78: 3.42 | K78: 3.48 | L78: 3.35 | M78: 3.2 | N78: 230790000 | O78: 5.42%
A79: 69 | B79: Banking | C79: IDFCFIRSTB | D79: 21.75 | E79: 22.37 | F79: 20.73 | G79: 19.72 | H79: 18.08 | I79: 23.38 | J79: 25.02 | K79: 26.03 | L79: 24 | M79: 21.35 | N79: 112464000 | O79: 0.09%
A80: 70 | B80: Oil_Gas | C80: IGL | D80: 358.60 | E80: 364.02 | F80: 343.88 | G80: 329.17 | H80: 309.03 | I80: 378.73 | J80: 398.87 | K80: 413.58 | L80: 384.15 | M80: 349.3 | N80: 3509000 | O80: -0.39%
A81: 71 | B81: Others | C81: INDIGO | D81: 998.70 | E81: 1013.32 | F81: 966.63 | G81: 934.57 | H81: 887.88 | I81: 1045.38 | J81: 1092.07 | K81: 1124.13 | L81: 1060 | M81: 981.25 | N81: 2918700 | O81: 3.14%
A82: 72 | B82: Banking | C82: INDUSINDBK | D82: 410.70 | E82: 447.48 | F82: 356.87 | G82: 303.03 | H82: 212.42 | I82: 501.32 | J82: 591.93 | K82: 645.77 | L82: 538.1 | M82: 393.65 | N82: 15880000 | O82: 2.16%
A83: 73 | B83: Telecom | C83: INFRATEL | D83: 158.10 | E83: 157.50 | F83: 153.10 | G83: 148.10 | H83: 143.70 | I83: 162.50 | J83: 166.90 | K83: 171.90 | L83: 161.9 | M83: 152.5 | N83: 7086000 | O83: 1.06%
A84: 74 | B84: Technology | C84: INFY | D84: 657.45 | E84: 661.43 | F84: 643.47 | G84: 629.48 | H84: 611.52 | I84: 675.42 | J84: 693.38 | K84: 707.37 | L84: 679.4 | M84: 647.45 | N84: 29898000 | O84: 7.00%
A85: 75 | B85: Oil_Gas | C85: IOC | D85: 77.60 | E85: 78.45 | F85: 75.60 | G85: 73.60 | H85: 70.75 | I85: 80.45 | J85: 83.30 | K85: 85.30 | L85: 81.3 | M85: 76.45 | N85: 42352000 | O85: 0.51%
A86: 76 | B86: FMCG | C86: ITC | D86: 163.00 | E86: 161.25 | F86: 157.00 | G86: 151.00 | H86: 146.75 | I86: 167.25 | J86: 171.50 | K86: 177.50 | L86: 165.5 | M86: 155.25 | N86: 76850400 | O86: -2.38%
A87: 77 | B87: Metals | C87: JINDALSTEL | D87: 89.70 | E87: 91.32 | F87: 87.03 | G87: 84.37 | H87: 80.08 | I87: 93.98 | J87: 98.27 | K87: 100.93 | L87: 95.6 | M87: 88.65 | N87: 5015000 | O87: 113.40%
A88: 78 | B88: Metals | C88: JSWSTEEL | D88: 152.50 | E88: 152.68 | F88: 147.32 | G88: 142.13 | H88: 136.77 | I88: 157.87 | J88: 163.23 | K88: 168.42 | L88: 158.05 | M88: 147.5 | N88: 31498500 | O88: 3.29%
A89: 79 | B89: Others | C89: JUBLFOOD | D89: 1314.70 | E89: 1294.88 | F89: 1239.82 | G89: 1164.93 | H89: 1109.87 | I89: 1369.77 | J89: 1424.83 | K89: 1499.72 | L89: 1349.95 | M89: 1220 | N89: 1553500 | O89: 6.81%
A90: 80 | B90: Others | C90: JUSTDIAL | D90: 279.70 | E90: 291.18 | F90: 262.57 | G90: 245.43 | H90: 216.82 | I90: 308.32 | J90: 336.93 | K90: 354.07 | L90: 319.8 | M90: 274.05 | N90: 1206800 | O90: 18.24%
A91: 81 | B91: Banking | C91: KOTAKBANK | D91: 1366.55 | E91: 1374.07 | F91: 1318.48 | G91: 1270.42 | H91: 1214.83 | I91: 1422.13 | J91: 1477.72 | K91: 1525.78 | L91: 1429.65 | M91: 1326 | N91: 8122000 | O91: 24.53%
A92: 82 | B92: Finance | C92: L&TFH | D92: 53.60 | E92: 55.17 | F92: 49.73 | G92: 45.87 | H92: 40.43 | I92: 59.03 | J92: 64.47 | K92: 68.33 | L92: 60.6 | M92: 51.3 | N92: 13378400 | O92: 0.13%
A93: 83 | B93: Finance | C93: LICHSGFIN | D93: 236.55 | E93: 239.43 | F93: 225.12 | G93: 213.68 | H93: 199.37 | I93: 250.87 | J93: 265.18 | K93: 276.62 | L93: 253.75 | M93: 228 | N93: 8309600 | O93: -2.50%
A94: 84 | B94: Capital_Goods | C94: LT | D94: 837.90 | E94: 847.62 | F94: 803.28 | G94: 768.67 | H94: 724.33 | I94: 882.23 | J94: 926.57 | K94: 961.18 | L94: 891.95 | M94: 813 | N94: 10961250 | O94: -5.69%
A95: 85 | B95: Pharma | C95: LUPIN | D95: 552.25 | E95: 564.17 | F95: 534.33 | G95: 516.42 | H95: 486.58 | I95: 582.08 | J95: 611.92 | K95: 629.83 | L95: 594 | M95: 546.25 | N95: 5124700 | O95: 5.37%
A96: 86 | B96: Automobile | C96: M&M | D96: 296.50 | E96: 295.65 | F96: 284.20 | G96: 271.90 | H96: 260.45 | I96: 307.95 | J96: 319.40 | K96: 331.70 | L96: 307.1 | M96: 283.35 | N96: 13796000 | O96: 0.74%
A97: 87 | B97: Finance | C97: M&MFIN | D97: 162.25 | E97: 168.97 | F97: 153.83 | G97: 145.42 | H97: 130.28 | I97: 177.38 | J97: 192.52 | K97: 200.93 | L97: 184.1 | M97: 160.55 | N97: 9300800 | O97: 7.51%
A98: 88 | B98: Finance | C98: MANAPPURAM | D98: 107.10 | E98: 110.07 | F98: 101.98 | G98: 96.87 | H98: 88.78 | I98: 115.18 | J98: 123.27 | K98: 128.38 | L98: 118.15 | M98: 104.95 | N98: 8904000 | O98: -2.05%
A99: 89 | B99: FMCG | C99: MARICO | D99: 255.50 | E99: 263.10 | F99: 245.75 | G99: 236.00 | H99: 218.65 | I99: 272.85 | J99: 290.20 | K99: 299.95 | L99: 280.45 | M99: 253.35 | N99: 10502700 | O99: 5.69%
A100: 90 | B100: Automobile | C100: MARUTI | D100: 4682.85 | E100: 4815.57 | F100: 4462.28 | G100: 4241.72 | H100: 3888.43 | I100: 5036.13 | J100: 5389.42 | K100: 5609.98 | L100: 5168.85 | M100: 4595 | N100: 2012400 | O100: 2.41%
A101: 91 | B101: FMCG | C101: MCDOWELL-N | D101: 472.45 | E101: 482.25 | F101: 458.50 | G101: 444.55 | H101: 420.80 | I101: 496.20 | J101: 519.95 | K101: 533.90 | L101: 506 | M101: 468.3 | N101: 10422500 | O101: -0.12%
A102: 92 | B102: Finance | C102: MFSL | D102: 407.90 | E102: 422.87 | F102: 378.08 | G102: 348.27 | H102: 303.48 | I102: 452.68 | J102: 497.47 | K102: 527.28 | L102: 467.65 | M102: 393.05 | N102: 1131000 | O102: 17.73%
A103: 93 | B103: Oil_Gas | C103: MGL | D103: 821.20 | E103: 852.12 | F103: 778.53 | G103: 735.87 | H103: 662.28 | I103: 894.78 | J103: 968.37 | K103: 1011.03 | L103: 925.7 | M103: 809.45 | N103: 1311600 | O103: -4.00%
A104: 94 | B104: Technology | C104: MINDTREE | D104: 794.05 | E104: 793.00 | F104: 763.60 | G104: 733.15 | H104: 703.75 | I104: 823.45 | J104: 852.85 | K104: 883.30 | L104: 822.4 | M104: 762.55 | N104: 688800 | O104: -7.72%
A105: 95 | B105: Automobile | C105: MOTHERSUMI | D105: 63.45 | E105: 65.23 | F105: 61.17 | G105: 58.88 | H105: 54.82 | I105: 67.52 | J105: 71.58 | K105: 73.87 | L105: 69.3 | M105: 62.95 | N105: 17960000 | O105: -1.45%
A106: 96 | B106: Automobile | C106: MRF | D106: 56854.45 | E106: 56527.63 | F106: 54409.67 | G106: 51964.88 | H106: 49846.92 | I106: 58972.42 | J106: 61090.38 | K106: 63535.17 | L106: 58645.6 | M106: 54082.85 | N106: 15620 | O106: 6.40%
A107: 97 | B107: Finance | C107: MUTHOOTFIN | D107: 623.85 | E107: 644.77 | F107: 594.63 | G107: 565.42 | H107: 515.28 | I107: 673.98 | J107: 724.12 | K107: 753.33 | L107: 694.9 | M107: 615.55 | N107: 1927500 | O107: -8.80%
A108: 98 | B108: Metals | C108: NATIONALUM | D108: 28.05 | E108: 28.70 | F108: 26.90 | G108: 25.75 | H108: 23.95 | I108: 29.85 | J108: 31.65 | K108: 32.80 | L108: 30.5 | M108: 27.55 | N108: 17585100 | O108: 5.33%
A109: 99 | B109: Others | C109: NAUKRI | D109: 2057.85 | E109: 2082.82 | F109: 1976.48 | G109: 1895.12 | H109: 1788.78 | I109: 2164.18 | J109: 2270.52 | K109: 2351.88 | L109: 2189.15 | M109: 2001.45 | N109: 586600 | O109: 13.81%
A110: 100 | B110: Infrastructure | C110: NCC | D110: 17.45 | E110: 18.07 | F110: 16.68 | G110: 15.92 | H110: 14.53 | I110: 18.83 | J110: 20.22 | K110: 20.98 | L110: 19.45 | M110: 17.3 | N110: 15408000 | O110: 8.35%
A111: 101 | B111: FMCG | C111: NESTLEIND | D111: 15182.45 | E111: 15207.40 | F111: 14785.20 | G111: 14387.95 | H111: 13965.75 | I111: 15604.65 | J111: 16026.85 | K111: 16424.10 | L111: 15629.6 | M111: 14810.15 | N111: 311850 | O111: 2.13%
A112: 102 | B112: Technology | C112: NIITTECH | D112: 1097.00 | E112: 1114.80 | F112: 1057.30 | G112: 1017.60 | H112: 960.10 | I112: 1154.50 | J112: 1212.00 | K112: 1251.70 | L112: 1172.3 | M112: 1075.1 | N112: 322875 | O112: -4.44%
A113: 103 | B113: Metals | C113: NMDC | D113: 74.20 | E113: 73.38 | F113: 71.82 | G113: 69.43 | H113: 67.87 | I113: 75.77 | J113: 77.33 | K113: 79.72 | L113: 74.95 | M113: 71 | N113: 22704000 | O113: 1.15%
A114: 104 | B114: Power | C114: NTPC | D114: 83.10 | E114: 82.68 | F114: 81.17 | G114: 79.23 | H114: 77.72 | I114: 84.62 | J114: 86.13 | K114: 88.07 | L114: 84.2 | M114: 80.75 | N114: 41064000 | O114: -2.07%
A115: 105 | B115: Oil_Gas | C115: OIL | D115: 77.55 | E115: 77.32 | F115: 74.73 | G115: 71.92 | H115: 69.33 | I115: 80.13 | J115: 82.72 | K115: 85.53 | L115: 79.9 | M115: 74.5 | N115: 5873472 | O115: -0.17%
A116: 106 | B116: Oil_Gas | C116: ONGC | D116: 64.30 | E116: 64.43 | F116: 62.67 | G116: 61.03 | H116: 59.27 | I116: 66.07 | J116: 67.83 | K116: 69.47 | L116: 66.2 | M116: 62.8 | N116: 55686200 | O116: -0.48%
A117: 107 | B117: Textile | C117: PAGEIND | D117: 17320.60 | E117: 17304.80 | F117: 16780.80 | G117: 16241.00 | H117: 15717.00 | I117: 17844.60 | J117: 18368.60 | K117: 18908.40 | L117: 17828.8 | M117: 16765 | N117: 117725 | O117: -0.11%
A118: 108 | B118: Pharma | C118: PEL | D118: 844.50 | E118: 873.50 | F118: 761.00 | G118: 677.50 | H118: 565.00 | I118: 957.00 | J118: 1069.50 | K118: 1153.00 | L118: 986 | M118: 790 | N118: 2704368 | O118: -0.14%
A119: 109 | B119: Oil_Gas | C119: PETRONET | D119: 194.85 | E119: 196.00 | F119: 186.50 | G119: 178.15 | H119: 168.65 | I119: 204.35 | J119: 213.85 | K119: 222.20 | L119: 205.5 | M119: 187.65 | N119: 9102000 | O119: 0.53%
A120: 110 | B120: Finance | C120: PFC | D120: 88.90 | E120: 91.12 | F120: 84.38 | G120: 79.87 | H120: 73.13 | I120: 95.63 | J120: 102.37 | K120: 106.88 | L120: 97.85 | M120: 86.6 | N120: 33746600 | O120: -3.17%
A121: 111 | B121: FMCG | C121: PIDILITIND | D121: 1311.10 | E121: 1305.70 | F121: 1277.40 | G121: 1243.70 | H121: 1215.40 | I121: 1339.40 | J121: 1367.70 | K121: 1401.40 | L121: 1334 | M121: 1272 | N121: 2131000 | O121: -1.73%
A122: 112 | B122: Banking | C122: PNB | D122: 33.40 | E122: 34.32 | F122: 32.23 | G122: 31.07 | H122: 28.98 | I122: 35.48 | J122: 37.57 | K122: 38.73 | L122: 36.4 | M122: 33.15 | N122: 42255300 | O122: 1.88%
A123: 113 | B123: Power | C123: POWERGRID | D123: 160.80 | E123: 161.12 | F123: 157.33 | G123: 153.87 | H123: 150.08 | I123: 164.58 | J123: 168.37 | K123: 171.83 | L123: 164.9 | M123: 157.65 | N123: 34040000 | O123: -0.35%
A124: 114 | B124: Media | C124: PVR | D124: 1227.90 | E124: 1251.58 | F124: 1169.42 | G124: 1110.93 | H124: 1028.77 | I124: 1310.07 | J124: 1392.23 | K124: 1450.72 | L124: 1333.75 | M124: 1193.1 | N124: 695200 | O124: 10.42%
A125: 115 | B125: Cement | C125: RAMCOCEM | D125: 510.80 | E125: 510.18 | F125: 486.42 | G125: 462.03 | H125: 438.27 | I125: 534.57 | J125: 558.33 | K125: 582.72 | L125: 533.95 | M125: 485.8 | N125: 369600 | O125: 1.99%
A126: 116 | B126: Banking | C126: RBLBANK | D126: 157.45 | E126: 161.23 | F126: 151.47 | G126: 145.48 | H126: 135.72 | I126: 167.22 | J126: 176.98 | K126: 182.97 | L126: 171 | M126: 155.25 | N126: 8815500 | O126: 1.98%
A127: 117 | B127: Power | C127: RECLTD | D127: 85.70 | E127: 87.87 | F127: 82.38 | G127: 79.07 | H127: 73.58 | I127: 91.18 | J127: 96.67 | K127: 99.98 | L127: 93.35 | M127: 84.55 | N127: 19548000 | O127: 2.71%
A128: 118 | B128: Oil_Gas | C128: RELIANCE | D128: 1072.65 | E128: 1080.33 | F128: 1046.67 | G128: 1020.68 | H128: 987.02 | I128: 1106.32 | J128: 1139.98 | K128: 1165.97 | L128: 1114 | M128: 1054.35 | N128: 34100500 | O128: 6.37%
A129: 119 | B129: Metals | C129: SAIL | D129: 21.25 | E129: 21.80 | F129: 20.55 | G129: 19.85 | H129: 18.60 | I129: 22.50 | J129: 23.75 | K129: 24.45 | L129: 23.05 | M129: 21.1 | N129: 32451900 | O129: -0.91%
A130: 120 | B130: Banking | C130: SBIN | D130: 196.05 | E130: 201.22 | F130: 189.43 | G130: 182.82 | H130: 171.03 | I130: 207.83 | J130: 219.62 | K130: 226.23 | L130: 213 | M130: 194.6 | N130: 77403000 | O130: 0.06%
A131: 121 | B131: Cement | C131: SHREECEM | D131: 17483.55 | E131: 17721.18 | F131: 16762.37 | G131: 16041.18 | H131: 15082.37 | I131: 18442.37 | J131: 19401.18 | K131: 20122.37 | L131: 18680 | M131: 17000 | N131: 138500 | O131: -3.18%
A132: 122 | B132: Capital_Goods | C132: SIEMENS | D132: 1049.60 | E132: 1086.28 | F132: 1003.32 | G132: 957.03 | H132: 874.07 | I132: 1132.57 | J132: 1215.53 | K132: 1261.82 | L132: 1169.25 | M132: 1040 | N132: 1267200 | O132: 8.73%
A133: 123 | B133: Textile | C133: SRF | D133: 2743.20 | E133: 2779.38 | F133: 2663.77 | G133: 2584.33 | H133: 2468.72 | I133: 2858.82 | J133: 2974.43 | K133: 3053.87 | L133: 2895 | M133: 2699.95 | N133: 539750 | O133: -4.55%
A134: 124 | B134: Finance | C134: SRTRANSFIN | D134: 729.30 | E134: 742.10 | F134: 677.20 | G134: 625.10 | H134: 560.20 | I134: 794.20 | J134: 859.10 | K134: 911.20 | L134: 807 | M134: 690 | N134: 2224200 | O134: 10.26%
A135: 125 | B135: Pharma | C135: SUNPHARMA | D135: 340.70 | E135: 344.23 | F135: 332.47 | G135: 324.23 | H135: 312.47 | I135: 352.47 | J135: 364.23 | K135: 372.47 | L135: 356 | M135: 336 | N135: 55853750 | O135: 1.78%
A136: 126 | B136: Media | C136: SUNTV | D136: 289.35 | E136: 298.32 | F136: 277.58 | G136: 265.82 | H136: 245.08 | I136: 310.08 | J136: 330.82 | K136: 342.58 | L136: 319.05 | M136: 286.55 | N136: 4060800 | O136: 8.81%
A137: 127 | B137: Fertilisers | C137: TATACHEM | D137: 225.65 | E137: 229.23 | F137: 219.57 | G137: 213.48 | H137: 203.82 | I137: 235.32 | J137: 244.98 | K137: 251.07 | L137: 238.9 | M137: 223.15 | N137: 692100 | O137: -3.03%
A138: 128 | B138: Others | C138: TATACONSUM | D138: 283.35 | E138: 285.80 | F138: 276.05 | G138: 268.75 | H138: 259.00 | I138: 293.10 | J138: 302.85 | K138: 310.15 | L138: 295.55 | M138: 278.5 | N138: 7546500 | O138: -8.30%
A139: 129 | B139: Automobile | C139: TATAMOTORS | D139: 71.25 | E139: 72.55 | F139: 68.35 | G139: 65.45 | H139: 61.25 | I139: 75.45 | J139: 79.65 | K139: 82.55 | L139: 76.75 | M139: 69.65 | N139: 52322400 | O139: -4.46%
A140: 130 | B140: Power | C140: TATAPOWER | D140: 34.25 | E140: 34.98 | F140: 32.72 | G140: 31.18 | H140: 28.92 | I140: 36.52 | J140: 38.78 | K140: 40.32 | L140: 37.25 | M140: 33.45 | N140: 42426000 | O140: 2.39%
A141: 131 | B141: Metals | C141: TATASTEEL | D141: 276.90 | E141: 280.65 | F141: 269.45 | G141: 262.00 | H141: 250.80 | I141: 288.10 | J141: 299.30 | K141: 306.75 | L141: 291.85 | M141: 273.2 | N141: 13179000 | O141: 0.15%
A142: 132 | B142: Technology | C142: TCS | D142: 1835.90 | E142: 1821.07 | F142: 1780.18 | G142: 1724.47 | H142: 1683.58 | I142: 1876.78 | J142: 1917.67 | K142: 1973.38 | L142: 1861.95 | M142: 1765.35 | N142: 13080250 | O142: 1.22%
A143: 133 | B143: Technology | C143: TECHM | D143: 508.35 | E143: 516.73 | F143: 493.97 | G143: 479.58 | H143: 456.82 | I143: 531.12 | J143: 553.88 | K143: 568.27 | L143: 539.5 | M143: 502.35 | N143: 12135600 | O143: 1.68%
A144: 134 | B144: FMCG | C144: TITAN | D144: 928.10 | E144: 927.22 | F144: 894.43 | G144: 860.77 | H144: 827.98 | I144: 960.88 | J144: 993.67 | K144: 1027.33 | L144: 960 | M144: 893.55 | N144: 5354250 | O144: -3.15%
A145: 135 | B145: Pharma | C145: TORNTPHARM | D145: 1869.90 | E145: 1856.30 | F145: 1813.55 | G145: 1757.20 | H145: 1714.45 | I145: 1912.65 | J145: 1955.40 | K145: 2011.75 | L145: 1899.05 | M145: 1799.95 | N145: 197000 | O145: 5.63%
A146: 136 | B146: Power | C146: TORNTPOWER | D146: 273.90 | E146: 281.17 | F146: 260.38 | G146: 246.87 | H146: 226.08 | I146: 294.68 | J146: 315.47 | K146: 328.98 | L146: 301.95 | M146: 267.65 | N146: 1542000 | O146: 2.80%
A147: 137 | B147: Automobile | C147: TVSMOTOR | D147: 299.45 | E147: 304.82 | F147: 286.63 | G147: 273.82 | H147: 255.63 | I147: 317.63 | J147: 335.82 | K147: 348.63 | L147: 323 | M147: 292 | N147: 2165400 | O147: 12.01%
A148: 138 | B148: FMCG | C148: UBL | D148: 873.50 | E148: 885.45 | F148: 850.05 | G148: 826.60 | H148: 791.20 | I148: 908.90 | J148: 944.30 | K148: 967.75 | L148: 920.85 | M148: 862 | N148: 322700 | O148: 2.44%
A149: 139 | B149: Finance | C149: UJJIVAN | D149: 167.20 | E149: 171.57 | F149: 155.98 | G149: 144.77 | H149: 129.18 | I149: 182.78 | J149: 198.37 | K149: 209.58 | L149: 187.15 | M149: 160.35 | N149: 1557200 | O149: -32.99%
A150: 140 | B150: Cement | C150: ULTRACEMCO | D150: 3168.30 | E150: 3227.62 | F150: 3062.23 | G150: 2956.17 | H150: 2790.78 | I150: 3333.68 | J150: 3499.07 | K150: 3605.13 | L150: 3393 | M150: 3121.55 | N150: 1823400 | O150: -0.28%
A151: 141 | B151: Fertilisers | C151: UPL | D151: 322.20 | E151: 325.40 | F151: 312.80 | G151: 303.40 | H151: 290.80 | I151: 334.80 | J151: 347.40 | K151: 356.80 | L151: 338 | M151: 316 | N151: 12213900 | O151: -0.62%
A152: 142 | B152: Metals | C152: VEDL | D152: 64.40 | E152: 65.82 | F152: 62.03 | G152: 59.67 | H152: 55.88 | I152: 68.18 | J152: 71.97 | K152: 74.33 | L152: 69.6 | M152: 63.45 | N152: 78333500 | O152: 3.46%
A153: 143 | B153: Capital_Goods | C153: VOLTAS | D153: 488.15 | E153: 494.58 | F153: 469.27 | G153: 450.38 | H153: 425.07 | I153: 513.47 | J153: 538.78 | K153: 557.67 | L153: 519.9 | M153: 475.7 | N153: 1236000 | O153: -2.22%
A154: 144 | B154: Technology | C154: WIPRO | D154: 185.00 | E154: 186.53 | F154: 182.22 | G154: 179.43 | H154: 175.12 | I154: 189.32 | J154: 193.63 | K154: 196.42 | L154: 190.85 | M154: 183.75 | N154: 17008000 | O154: 4.81%
A155: 145 | B155: Banking | C155: YESBANK | D155: 23.85 | E155: 25.30 | F155: 21.85 | G155: 19.85 | H155: 16.40 | I155: 27.30 | J155: 30.75 | K155: 32.75 | L155: 28.75 | M155: 23.3 | N155: 49808000 | O155: 2.52%
A156: 146 | B156: Media | C156: ZEEL | D156: 128.25 | E156: 131.47 | F156: 123.78 | G156: 119.32 | H156: 111.63 | I156: 135.93 | J156: 143.62 | K156: 148.08 | L156: 139.15 | M156: 127 | N156: 18921000 | O156: -1.15%
A157: 147
A175: Pivot Point: This is trigger point for intra day buy/sell based on the price range of the previous day
A176: As per the tool,the trader should take BUY position just above Pivot and keep the stop loss of pivot point and the first target would be Resistance 1(R1)
A177: If R1 is crossed then R2 becomes the next target with stop loss of at R1
A178: Similarly if price goes below pivot point then the trader should sell and keep a stop loss of pivot point and the first target would be S1
A179: If S1 is crossed then S2 becomes the next target with stop loss of at S1
A181: Disclaimer:
A182: This document has been prepared by the Retail Research Desk of Asit C Mehta
A183: Investment Intermediates Ltd. and is meant for use of the recipient only
A184: and is not for circulation. This document is not to be reported or
A185: copied or made available to others. It should not be considered to be
A186: taken as an offer to sell or a solicitation to buy any security. The
A187: information contained herein is from sources believed reliable. We do
A188: not represent that it is accurate or complete and it should not be
A189: relied upon as such. We may from time to time have positions in and buy
A190: and sell securities referred to herein

Sheet Cash Intra
M5: Back to Main Page
A6: FOR INTRA DAY TRADING | K6: =Main!B10 -> 2020-03-30
A8: Sr.no | B8: Scrip | C8: CLOSE RATE | D8: Pivot Point | E8: Supports | H8: Resistances
C9: Point | E9: S1 | F9: S2 | G9: S3 | H9: R1 | I9: R2 | J9: R3 | K9: HIGH | L9: LOW | M9: Total Trade Quanity in Lakhs
A10: 1 | B10: Nifty 50 | C10: 8660.25 | D10: 8740.68 | E10: 8442.47 | F10: 8224.68 | G10: 7926.47 | H10: 8958.47 | I10: 9256.68 | J10: 9474.47 | K10: 9038.9 | L10: 8522.9
A11: 2 | B11: Nifty Bank | C11: 19969 | D11: 20337.17 | E11: 19211.93 | F11: 18454.87 | G11: 17329.63 | H11: 21094.23 | I11: 22219.47 | J11: 22976.53 | K11: 21462.4 | L11: 19580.1
A12: 3 | B12: Nifty CPSE | C12: 1270.15 | D12: 1265.97 | E12: 1238.68 | F12: 1207.22 | G12: 1179.93 | H12: 1297.43 | I12: 1324.72 | J12: 1356.18 | K12: 1293.25 | L12: 1234.5
A13: 4 | B13: Nifty Infra | C13: 2315 | D13: 2335.17 | E13: 2261.48 | F13: 2207.97 | G13: 2134.28 | H13: 2388.68 | I13: 2462.37 | J13: 2515.88 | K13: 2408.85 | L13: 2281.65
A14: 5 | B14: Nifty IT | C14: 12569.1 | D14: 12640.85 | E14: 12332.10 | F14: 12095.10 | G14: 11786.35 | H14: 12877.85 | I14: 13186.60 | J14: 13423.60 | K14: 12949.6 | L14: 12403.85
A15: 6 | B15: Nifty PSE | C15: 2102.55 | D15: 2114.03 | E15: 2064.77 | F15: 2026.98 | G15: 1977.72 | H15: 2151.82 | I15: 2201.08 | J15: 2238.87 | K15: 2163.3 | L15: 2076.25
A16: 7 | B16: Nifty Midcap 50 | C16: 3206.5 | D16: 3250.13 | E16: 3116.97 | F16: 3027.43 | G16: 2894.27 | H16: 3339.67 | I16: 3472.83 | J16: 3562.37 | K16: 3383.3 | L16: 3160.6
A17: 8 | B17: ACC | C17: 959.15 | D17: 969.72 | E17: 929.43 | F17: 899.72 | G17: 859.43 | H17: 999.43 | I17: 1039.72 | J17: 1069.43 | K17: 1010 | L17: 940 | M17: 5.14199
A18: 9 | B18: AUBANK | C18: 521.55 | D18: 521.55 | E18: 521.55 | F18: 521.55 | G18: 521.55 | H18: 521.55 | I18: 521.55 | J18: 521.55 | K18: 521.55 | L18: 521.55 | M18: 4.21839
A19: 10 | B19: ADANIPORTS | C19: 251.3 | D19: 251.63 | E19: 243.67 | F19: 236.03 | G19: 228.07 | H19: 259.27 | I19: 267.23 | J19: 274.87 | K19: 259.6 | L19: 244 | M19: 29.12256
A20: 11 | B20: ADANIPOWER | C20: 27.6 | D20: 29.07 | E20: 25.73 | F20: 23.87 | G20: 20.53 | H20: 30.93 | I20: 34.27 | J20: 36.13 | K20: 32.4 | L20: 27.2 | M20: 57.54033
A21: 12 | B21: ABCAPITAL | C21: 44.55 | D21: 45.43 | E21: 42.62 | F21: 40.68 | G21: 37.87 | H21: 47.37 | I21: 50.18 | J21: 52.12 | K21: 48.25 | L21: 43.5 | M21: 21.59998
A22: 13 | B22: ABFRL | C22: 167.1 | D22: 167.52 | E22: 159.88 | F22: 152.67 | G22: 145.03 | H22: 174.73 | I22: 182.37 | J22: 189.58 | K22: 175.15 | L22: 160.3 | M22: 2.71489
A23: 14 | B23: AJANTPHARM | C23: 1238.55 | D23: 1227.87 | E23: 1200.73 | F23: 1162.92 | G23: 1135.78 | H23: 1265.68 | I23: 1292.82 | J23: 1330.63 | K23: 1255 | L23: 1190.05 | M23: 0.73403
A24: 15 | B24: ALKEM | C24: 2344.95 | D24: 2347.78 | E24: 2232.02 | F24: 2119.08 | G24: 2003.32 | H24: 2460.72 | I24: 2576.48 | J24: 2689.42 | K24: 2463.55 | L24: 2234.85 | M24: 1.31984
A25: 16 | B25: AMARAJABAT | C25: 455.35 | D25: 460.90 | E25: 439.55 | F25: 423.75 | G25: 402.40 | H25: 476.70 | I25: 498.05 | J25: 513.85 | K25: 482.25 | L25: 445.1 | M25: 5.92956
A26: 17 | B26: AMBUJACEM | C26: 141.55 | D26: 144.85 | E26: 137.70 | F26: 133.85 | G26: 126.70 | H26: 148.70 | I26: 155.85 | J26: 159.70 | K26: 152 | L26: 141 | M26: 29.06515
A27: 18 | B27: APOLLOHOSP | C27: 1167 | D27: 1185.43 | E27: 1111.87 | F27: 1056.73 | G27: 983.17 | H27: 1240.57 | I27: 1314.13 | J27: 1369.27 | K27: 1259 | L27: 1130.3 | M27: 3.77299
A28: 19 | B28: APOLLOTYRE | C28: 82.6 | D28: 82.43 | E28: 78.97 | F28: 75.33 | G28: 71.87 | H28: 86.07 | I28: 89.53 | J28: 93.17 | K28: 85.9 | L28: 78.8 | M28: 20.59074
A29: 20 | B29: ASHOKLEY | C29: 43.3 | D29: 45.38 | E29: 39.42 | F29: 35.53 | G29: 29.57 | H29: 49.27 | I29: 55.23 | J29: 59.12 | K29: 51.35 | L29: 41.5 | M29: 119.77376
A30: 21 | B30: ASIANPAINT | C30: 1604.15 | D30: 1606.53 | E30: 1547.82 | F30: 1491.48 | G30: 1432.77 | H30: 1662.87 | I30: 1721.58 | J30: 1777.92 | K30: 1665.25 | L30: 1550.2 | M30: 11.69614
A31: 22 | B31: AUROPHARMA | C31: 392.25 | D31: 392.55 | E31: 378.05 | F31: 363.85 | G31: 349.35 | H31: 406.75 | I31: 421.25 | J31: 435.45 | K31: 407.05 | L31: 378.35 | M31: 31.79653
A32: 23 | B32: DMART | C32: 2079.7 | D32: 2074.82 | E32: 2055.88 | F32: 2032.07 | G32: 2013.13 | H32: 2098.63 | I32: 2117.57 | J32: 2141.38 | K32: 2093.75 | L32: 2051 | M32: 15.72997
A33: 24 | B33: AXISBANK | C33: 359.75 | D33: 374.42 | E33: 339.38 | F33: 319.02 | G33: 283.98 | H33: 394.78 | I33: 429.82 | J33: 450.18 | K33: 409.45 | L33: 354.05 | M33: 83.45819
A34: 25 | B34: BAJAJ-AUTO | C34: 2053.45 | D34: 2075.87 | E34: 1984.73 | F34: 1916.02 | G34: 1824.88 | H34: 2144.58 | I34: 2235.72 | J34: 2304.43 | K34: 2167 | L34: 2007.15 | M34: 11.41144
A35: 26 | B35: BAJFINANCE | C35: 2542.3 | D35: 2694.10 | E35: 2348.20 | F35: 2154.10 | G35: 1808.20 | H35: 2888.20 | I35: 3234.10 | J35: 3428.20 | K35: 3040 | L35: 2500 | M35: 17.36927
A36: 27 | B36: BAJAJFINSV | C36: 4890.6 | D36: 5075.20 | E36: 4490.40 | F36: 4090.20 | G36: 3505.40 | H36: 5475.40 | I36: 6060.20 | J36: 6460.40 | K36: 5660 | L36: 4675 | M36: 3.29541
A37: 28 | B37: BAJAJHLDNG | C37: 1900 | D37: 1876.43 | E37: 1823.57 | F37: 1747.13 | G37: 1694.27 | H37: 1952.87 | I37: 2005.73 | J37: 2082.17 | K37: 1929.3 | L37: 1800 | M37: 0.80743
A38: 29 | B38: BALKRISIND | C38: 848.1 | D38: 842.67 | E38: 819.33 | F38: 790.57 | G38: 767.23 | H38: 871.43 | I38: 894.77 | J38: 923.53 | K38: 866 | L38: 813.9 | M38: 2.71802
A39: 30 | B39: BANDHANBNK | C39: 249.55 | D39: 249.70 | E39: 229.90 | F39: 210.25 | G39: 190.45 | H39: 269.35 | I39: 289.15 | J39: 308.80 | K39: 269.5 | L39: 230.05 | M39: 27.62309
A40: 31 | B40: BANKBARODA | C40: 54.35 | D40: 56.40 | E40: 51.30 | F40: 48.25 | G40: 43.15 | H40: 59.45 | I40: 64.55 | J40: 67.60 | K40: 61.5 | L40: 53.35 | M40: 224.98038
A41: 32 | B41: BANKINDIA | C41: 33.25 | D41: 33.97 | E41: 32.28 | F41: 31.32 | G41: 29.63 | H41: 34.93 | I41: 36.62 | J41: 37.58 | K41: 35.65 | L41: 33 | M41: 67.267
A42: 33 | B42: BATAINDIA | C42: 1226 | D42: 1236.65 | E42: 1179.35 | F42: 1132.70 | G42: 1075.40 | H42: 1283.30 | I42: 1340.60 | J42: 1387.25 | K42: 1293.95 | L42: 1190 | M42: 2.78726
A43: 34 | B43: BERGEPAINT | C43: 485.6 | D43: 483.68 | E43: 467.47 | F43: 449.33 | G43: 433.12 | H43: 501.82 | I43: 518.03 | J43: 536.17 | K43: 499.9 | L43: 465.55 | M43: 12.10461
A44: 35 | B44: BEL | C44: 73.15 | D44: 72.88 | E44: 69.02 | F44: 64.88 | G44: 61.02 | H44: 77.02 | I44: 80.88 | J44: 85.02 | K44: 76.75 | L44: 68.75 | M44: 565.82665
A45: 36 | B45: BHARATFORG | C45: 264.1 | D45: 272.42 | E45: 247.08 | F45: 230.07 | G45: 204.73 | H45: 289.43 | I45: 314.77 | J45: 331.78 | K45: 297.75 | L45: 255.4 | M45: 7.00915
A46: 37 | B46: BHEL | C46: 20.35 | D46: 20.80 | E46: 19.70 | F46: 19.05 | G46: 17.95 | H46: 21.45 | I46: 22.55 | J46: 23.20 | K46: 21.9 | L46: 20.15 | M46: 140.87306
A47: 38 | B47: BPCL | C47: 278.75 | D47: 285.65 | E47: 267.30 | F47: 255.85 | G47: 237.50 | H47: 297.10 | I47: 315.45 | J47: 326.90 | K47: 304 | L47: 274.2 | M47: 69.46475
A48: 39 | B48: BHARTIARTL | C48: 448.95 | D48: 453.75 | E48: 432.70 | F48: 416.45 | G48: 395.40 | H48: 470.00 | I48: 491.05 | J48: 507.30 | K48: 474.8 | L48: 437.5 | M48: 180.17965
A49: 40 | B49: INFRATEL | C49: 156.8 | D49: 158.43 | E49: 151.87 | F49: 146.93 | G49: 140.37 | H49: 163.37 | I49: 169.93 | J49: 174.87 | K49: 165 | L49: 153.5 | M49: 58.11965
A50: 41 | B50: BIOCON | C50: 277.7 | D50: 280.30 | E50: 269.40 | F50: 261.10 | G50: 250.20 | H50: 288.60 | I50: 299.50 | J50: 307.80 | K50: 291.2 | L50: 272 | M50: 19.49668
A51: 42 | B51: BBTC | C51: 704.25 | D51: 711.87 | E51: 667.73 | F51: 631.22 | G51: 587.08 | H51: 748.38 | I51: 792.52 | J51: 829.03 | K51: 756 | L51: 675.35 | M51: 0.58867
A52: 43 | B52: BOSCHLTD | C52: 9931.5 | D52: 10359.42 | E52: 9372.08 | F52: 8812.67 | G52: 7825.33 | H52: 10918.83 | I52: 11906.17 | J52: 12465.58 | K52: 11346.75 | L52: 9800 | M52: 0.24677
A53: 44 | B53: BRITANNIA | C53: 2529.25 | D53: 2581.07 | E53: 2453.18 | F53: 2377.12 | G53: 2249.23 | H53: 2657.13 | I53: 2785.02 | J53: 2861.08 | K53: 2708.95 | L53: 2505 | M53: 4.6885
A54: 45 | B54: CESC | C54: 389.4 | D54: 396.90 | E54: 375.50 | F54: 361.60 | G54: 340.20 | H54: 410.80 | I54: 432.20 | J54: 446.10 | K54: 418.3 | L54: 383 | M54: 3.39974
A55: 46 | B55: CADILAHC | C55: 252.7 | D55: 255.37 | E55: 245.98 | F55: 239.27 | G55: 229.88 | H55: 262.08 | I55: 271.47 | J55: 278.18 | K55: 264.75 | L55: 248.65 | M55: 11.03855
A56: 47 | B56: CANBK | C56: 90.05 | D56: 91.08 | E56: 86.67 | F56: 83.28 | G56: 78.87 | H56: 94.47 | I56: 98.88 | J56: 102.27 | K56: 95.5 | L56: 87.7 | M56: 70.14346
A57: 48 | B57: CASTROLIND | C57: 98.85 | D57: 101.98 | E57: 94.87 | F57: 90.88 | G57: 83.77 | H57: 105.97 | I57: 113.08 | J57: 117.07 | K57: 109.1 | L57: 98 | M57: 34.61075
A58: 49 | B58: CHOLAFIN | C58: 169.15 | D58: 173.30 | E58: 162.60 | F58: 156.05 | G58: 145.35 | H58: 179.85 | I58: 190.55 | J58: 197.10 | K58: 184 | L58: 166.75 | M58: 16.87153
A59: 50 | B59: CIPLA | C59: 407.65 | D59: 403.53 | E59: 396.07 | F59: 384.48 | G59: 377.02 | H59: 415.12 | I59: 422.58 | J59: 434.17 | K59: 411 | L59: 391.95 | M59: 21.84609
A60: 51 | B60: CUB | C60: 130.85 | D60: 135.00 | E60: 122.20 | F60: 113.55 | G60: 100.75 | H60: 143.65 | I60: 156.45 | J60: 165.10 | K60: 147.8 | L60: 126.35 | M60: 10.62871
A61: 52 | B61: COALINDIA | C61: 131.7 | D61: 129.88 | E61: 126.82 | F61: 121.93 | G61: 118.87 | H61: 134.77 | I61: 137.83 | J61: 142.72 | K61: 132.95 | L61: 125 | M61: 352.81395
A62: 53 | B62: COLPAL | C62: 1159.1 | D62: 1174.03 | E62: 1125.07 | F62: 1091.03 | G62: 1042.07 | H62: 1208.07 | I62: 1257.03 | J62: 1291.07 | K62: 1223 | L62: 1140 | M62: 24.53672
A63: 54 | B63: CONCOR | C63: 309.2 | D63: 322.25 | E63: 292.95 | F63: 276.70 | G63: 247.40 | H63: 338.50 | I63: 367.80 | J63: 384.05 | K63: 351.55 | L63: 306 | M63: 6.92547
A64: 55 | B64: COROMANDEL | C64: 521.6 | D64: 521.77 | E64: 490.08 | F64: 458.57 | G64: 426.88 | H64: 553.28 | I64: 584.97 | J64: 616.48 | K64: 553.45 | L64: 490.25 | M64: 7.17405
A65: 56 | B65: CROMPTON | C65: 192.6 | D65: 196.87 | E65: 184.93 | F65: 177.27 | G65: 165.33 | H65: 204.53 | I65: 216.47 | J65: 224.13 | K65: 208.8 | L65: 189.2 | M65: 30.8845
A66: 57 | B66: CUMMINSIND | C66: 357.6 | D66: 366.93 | E66: 338.87 | F66: 320.13 | G66: 292.07 | H66: 385.67 | I66: 413.73 | J66: 432.47 | K66: 395 | L66: 348.2 | M66: 9.9194
A67: 58 | B67: DLF | C67: 138.75 | D67: 144.80 | E67: 130.75 | F67: 122.75 | G67: 108.70 | H67: 152.80 | I67: 166.85 | J67: 174.85 | K67: 158.85 | L67: 136.8 | M67: 108.10838
A68: 59 | B68: DABUR | C68: 423 | D68: 428.87 | E68: 412.13 | F68: 401.27 | G68: 384.53 | H68: 439.73 | I68: 456.47 | J68: 467.33 | K68: 445.6 | L68: 418 | M68: 74.62427
A69: 60 | B69: DALBHARAT | C69: 503.75 | D69: 509.33 | E69: 483.52 | F69: 463.28 | G69: 437.47 | H69: 529.57 | I69: 555.38 | J69: 575.62 | K69: 535.15 | L69: 489.1 | M69: 1.62129
A70: 61 | B70: DIVISLAB | C70: 1862.55 | D70: 1872.43 | E70: 1814.87 | F70: 1767.18 | G70: 1709.62 | H70: 1920.12 | I70: 1977.68 | J70: 2025.37 | K70: 1930 | L70: 1824.75 | M70: 3.22232
A71: 62 | B71: DRREDDY | C71: 2916.5 | D71: 2936.52 | E71: 2826.08 | F71: 2735.67 | G71: 2625.23 | H71: 3026.93 | I71: 3137.37 | J71: 3227.78 | K71: 3046.95 | L71: 2846.1 | M71: 6.68235
A72: 63 | B72: EDELWEISS | C72: 34.9 | D72: 34.90 | E72: 34.90 | F72: 34.90 | G72: 34.90 | H72: 34.90 | I72: 34.90 | J72: 34.90 | K72: 34.9 | L72: 34.9 | M72: 7.90032
A73: 64 | B73: EICHERMOT | C73: 14319.8 | D73: 14571.93 | E73: 13747.87 | F73: 13175.93 | G73: 12351.87 | H73: 15143.87 | I73: 15967.93 | J73: 16539.87 | K73: 15396 | L73: 14000 | M73: 1.02123
A74: 65 | B74: EMAMILTD | C74: 156.4 | D74: 158.75 | E74: 147.65 | F74: 138.90 | G74: 127.80 | H74: 167.50 | I74: 178.60 | J74: 187.35 | K74: 169.85 | L74: 150 | M74: 25.57313
A75: 66 | B75: ENDURANCE | C75: 640.05 | D75: 647.30 | E75: 629.65 | F75: 619.25 | G75: 601.60 | H75: 657.70 | I75: 675.35 | J75: 685.75 | K75: 664.95 | L75: 636.9 | M75: 0.47896
A76: 67 | B76: ENGINERSIN | C76: 60.05 | D76: 60.55 | E76: 57.30 | F76: 54.55 | G76: 51.30 | H76: 63.30 | I76: 66.55 | J76: 69.30 | K76: 63.8 | L76: 57.8 | M76: 17.04006
A77: 68 | B77: ESCORTS | C77: 654.8 | D77: 676.02 | E77: 622.53 | F77: 590.27 | G77: 536.78 | H77: 708.28 | I77: 761.77 | J77: 794.03 | K77: 729.5 | L77: 643.75 | M77: 70.11082
A78: 69 | B78: EXIDEIND | C78: 130.6 | D78: 129.98 | E78: 126.62 | F78: 122.63 | G78: 119.27 | H78: 133.97 | I78: 137.33 | J78: 141.32 | K78: 133.35 | L78: 126 | M78: 14.66191
A79: 70 | B79: FEDERALBNK | C79: 44.45 | D79: 44.93 | E79: 42.12 | F79: 39.78 | G79: 36.97 | H79: 47.27 | I79: 50.08 | J79: 52.42 | K79: 47.75 | L79: 42.6 | M79: 102.70614
A80: 71 | B80: FORTIS | C80: 128.95 | D80: 128.82 | E80: 125.13 | F80: 121.32 | G80: 117.63 | H80: 132.63 | I80: 136.32 | J80: 140.13 | K80: 132.5 | L80: 125 | M80: 19.33119
A81: 72 | B81: FCONSUMER | C81: 8.05 | D81: 8.05 | E81: 8.05 | F81: 8.05 | G81: 8.05 | H81: 8.05 | I81: 8.05 | J81: 8.05 | K81: 8.05 | L81: 8.05 | M81: 15.70645
A82: 73 | B82: FRETAIL | C82: 86.7 | D82: 86.70 | E82: 86.70 | F82: 86.70 | G82: 86.70 | H82: 86.70 | I82: 86.70 | J82: 86.70 | K82: 86.7 | L82: 86.7 | M82: 10.27307
A83: 74 | B83: GAIL | C83: 69.5 | D83: 71.25 | E83: 67.35 | F83: 65.20 | G83: 61.30 | H83: 73.40 | I83: 77.30 | J83: 79.45 | K83: 75.15 | L83: 69.1 | M83: 153.91445
A84: 75 | B84: GMRINFRA | C84: 15.9 | D84: 16.17 | E84: 15.33 | F84: 14.77 | G84: 13.93 | H84: 16.73 | I84: 17.57 | J84: 18.13 | K84: 17 | L84: 15.6 | M84: 105.71558
A85: 76 | B85: GICRE | C85: 99.05 | D85: 98.37 | E85: 97.68 | F85: 96.32 | G85: 95.63 | H85: 99.73 | I85: 100.42 | J85: 101.78 | K85: 99.05 | L85: 97 | M85: 2.09376
A86: 77 | B86: GLENMARK | C86: 199.15 | D86: 204.13 | E86: 192.07 | F86: 184.98 | G86: 172.92 | H86: 211.22 | I86: 223.28 | J86: 230.37 | K86: 216.2 | L86: 197.05 | M86: 26.37001
A87: 78 | B87: GODREJAGRO | C87: 312.75 | D87: 322.33 | E87: 295.62 | F87: 278.48 | G87: 251.77 | H87: 339.47 | I87: 366.18 | J87: 383.32 | K87: 349.05 | L87: 305.2 | M87: 0.4871
A88: 79 | B88: GODREJCP | C88: 499.45 | D88: 499.12 | E88: 480.93 | F88: 462.42 | G88: 444.23 | H88: 517.63 | I88: 535.82 | J88: 554.33 | K88: 517.3 | L88: 480.6 | M88: 18.59249
A89: 80 | B89: GODREJIND | C89: 284.3 | D89: 291.77 | E89: 273.53 | F89: 262.77 | G89: 244.53 | H89: 302.53 | I89: 320.77 | J89: 331.53 | K89: 310 | L89: 281 | M89: 0.88259
A90: 81 | B90: GODREJPROP | C90: 690.45 | D90: 699.52 | E90: 651.28 | F90: 612.12 | G90: 563.88 | H90: 738.68 | I90: 786.92 | J90: 826.08 | K90: 747.75 | L90: 660.35 | M90: 1.78002
A91: 82 | B91: GRAPHITE | C91: 117.5 | D91: 116.10 | E91: 114.70 | F91: 111.90 | G91: 110.50 | H91: 118.90 | I91: 120.30 | J91: 123.10 | K91: 117.5 | L91: 113.3 | M91: 8.51755
A92: 83 | B92: GRASIM | C92: 460.9 | D92: 467.18 | E92: 440.57 | F92: 420.23 | G92: 393.62 | H92: 487.52 | I92: 514.13 | J92: 534.47 | K92: 493.8 | L92: 446.85 | M92: 12.99292
A93: 84 | B93: GSPL | C93: 164.45 | D93: 164.87 | E93: 158.98 | F93: 153.52 | G93: 147.63 | H93: 170.33 | I93: 176.22 | J93: 181.68 | K93: 170.75 | L93: 159.4 | M93: 4.26398
A94: 85 | B94: HEG | C94: 459.6 | D94: 471.57 | E94: 438.13 | F94: 416.67 | G94: 383.23 | H94: 493.03 | I94: 526.47 | J94: 547.93 | K94: 505 | L94: 450.1 | M94: 1.68582
A95: 86 | B95: HCLTECH | C95: 430.65 | D95: 436.20 | E95: 414.95 | F95: 399.25 | G95: 378.00 | H95: 451.90 | I95: 473.15 | J95: 488.85 | K95: 457.45 | L95: 420.5 | M95: 35.90768
A96: 87 | B96: HDFCAMC | C96: 2083.45 | D96: 2134.47 | E96: 2018.98 | F96: 1954.52 | G96: 1839.03 | H96: 2198.93 | I96: 2314.42 | J96: 2378.88 | K96: 2249.95 | L96: 2070 | M96: 1.96125
A97: 88 | B97: HDFCBANK | C97: 904.45 | D97: 921.73 | E97: 854.82 | F97: 805.18 | G97: 738.27 | H97: 971.37 | I97: 1038.28 | J97: 1087.92 | K97: 988.65 | L97: 872.1 | M97: 55.89134
A98: 89 | B98: HDFCLIFE | C98: 441 | D98: 454.93 | E98: 426.07 | F98: 411.13 | G98: 382.27 | H98: 469.87 | I98: 498.73 | J98: 513.67 | K98: 483.8 | L98: 440 | M98: 12.60667
A99: 90 | B99: HAVELLS | C99: 511.15 | D99: 505.70 | E99: 492.00 | F99: 472.85 | G99: 459.15 | H99: 524.85 | I99: 538.55 | J99: 557.70 | K99: 519.4 | L99: 486.55 | M99: 11.71667
A100: 91 | B100: HEROMOTOCO | C100: 1661.2 | D100: 1710.72 | E100: 1591.08 | F100: 1520.97 | G100: 1401.33 | H100: 1780.83 | I100: 1900.47 | J100: 1970.58 | K100: 1830.35 | L100: 1640.6 | M100: 5.74957
A101: 92 | B101: HEXAWARE | C101: 215.05 | D101: 222.32 | E101: 205.73 | F101: 196.42 | G101: 179.83 | H101: 231.63 | I101: 248.22 | J101: 257.53 | K101: 238.9 | L101: 213 | M101: 3.23817
A102: 93 | B102: HINDALCO | C102: 91.55 | D102: 93.72 | E102: 88.13 | F102: 84.72 | G102: 79.13 | H102: 97.13 | I102: 102.72 | J102: 106.13 | K102: 99.3 | L102: 90.3 | M102: 60.08376
A103: 94 | B103: HINDPETRO | C103: 170.25 | D103: 173.77 | E103: 164.03 | F103: 157.82 | G103: 148.08 | H103: 179.98 | I103: 189.72 | J103: 195.93 | K103: 183.5 | L103: 167.55 | M103: 45.95587
A104: 95 | B104: HINDUNILVR | C104: 2140.55 | D104: 2176.23 | E104: 2084.82 | F104: 2029.08 | G104: 1937.67 | H104: 2231.97 | I104: 2323.38 | J104: 2379.12 | K104: 2267.65 | L104: 2120.5 | M104: 19.30834
A105: 96 | B105: HINDZINC | C105: 143.95 | D105: 146.63 | E105: 139.27 | F105: 134.58 | G105: 127.22 | H105: 151.32 | I105: 158.68 | J105: 163.37 | K105: 154 | L105: 141.95 | M105: 7.24986
A106: 97 | B106: HUDCO | C106: 19.65 | D106: 20.12 | E106: 18.73 | F106: 17.82 | G106: 16.43 | H106: 21.03 | I106: 22.42 | J106: 23.33 | K106: 21.5 | L106: 19.2 | M106: 10.06963
A107: 98 | B107: HDFC | C107: 1754 | D107: 1771.23 | E107: 1692.82 | F107: 1631.63 | G107: 1553.22 | H107: 1832.42 | I107: 1910.83 | J107: 1972.02 | K107: 1849.65 | L107: 1710.05 | M107: 28.28509
A108: 99 | B108: ICICIBANK | C108: 339.85 | D108: 341.80 | E108: 324.05 | F108: 308.25 | G108: 290.50 | H108: 357.60 | I108: 375.35 | J108: 391.15 | K108: 359.55 | L108: 326 | M108: 162.92578
A109: 100 | B109: ICICIGI | C109: 1022.75 | D109: 1060.82 | E109: 941.93 | F109: 861.12 | G109: 742.23 | H109: 1141.63 | I109: 1260.52 | J109: 1341.33 | K109: 1179.7 | L109: 980 | M109: 2.01621
A110: 101 | B110: ICICIPRULI | C110: 318.4 | D110: 324.68 | E110: 298.07 | F110: 277.73 | G110: 251.12 | H110: 345.02 | I110: 371.63 | J110: 391.97 | K110: 351.3 | L110: 304.35 | M110: 10.53162
A111: 102 | B111: IDBI | C111: 19.7 | D111: 19.93 | E111: 18.97 | F111: 18.23 | G111: 17.27 | H111: 20.67 | I111: 21.63 | J111: 22.37 | K111: 20.9 | L111: 19.2 | M111: 6.52812
A112: 103 | B112: IDFCFIRSTB | C112: 22.4 | D112: 23.13 | E112: 21.27 | F112: 20.13 | G112: 18.27 | H112: 24.27 | I112: 26.13 | J112: 27.27 | K112: 25 | L112: 22 | M112: 209.67183
A113: 104 | B113: ITC | C113: 163.2 | D113: 161.40 | E113: 156.80 | F113: 150.40 | G113: 145.80 | H113: 167.80 | I113: 172.40 | J113: 178.80 | K113: 166 | L113: 155 | M113: 184.5588
A114: 105 | B114: IBULHSGFIN | C114: 90.9 | D114: 96.70 | E114: 83.45 | F114: 76.00 | G114: 62.75 | H114: 104.15 | I114: 117.40 | J114: 124.85 | K114: 109.95 | L114: 89.25 | M114: 169.75776
A115: 106 | B115: IBVENTURES | C115: 109.9 | D115: 113.60 | E115: 106.00 | F115: 102.10 | G115: 94.50 | H115: 117.50 | I115: 125.10 | J115: 129.00 | K115: 121.2 | L115: 109.7 | M115: 38.76523
A116: 107 | B116: INDIANB | C116: 45.25 | D116: 46.47 | E116: 43.08 | F116: 40.92 | G116: 37.53 | H116: 48.63 | I116: 52.02 | J116: 54.18 | K116: 49.85 | L116: 44.3 | M116: 14.06266
A117: 108 | B117: INDHOTEL | C117: 75.9 | D117: 77.08 | E117: 72.92 | F117: 69.93 | G117: 65.77 | H117: 80.07 | I117: 84.23 | J117: 87.22 | K117: 81.25 | L117: 74.1 | M117: 7.1894
A118: 109 | B118: IOC | C118: 76.9 | D118: 77.70 | E118: 75.25 | F118: 73.60 | G118: 71.15 | H118: 79.35 | I118: 81.80 | J118: 83.45 | K118: 80.15 | L118: 76.05 | M118: 367.42641
A119: 110 | B119: IGL | C119: 357.4 | D119: 362.68 | E119: 343.47 | F119: 329.53 | G119: 310.32 | H119: 376.62 | I119: 395.83 | J119: 409.77 | K119: 381.9 | L119: 348.75 | M119: 21.83118
A120: 111 | B120: INDUSINDBK | C120: 411.1 | D120: 447.33 | E120: 356.12 | F120: 301.13 | G120: 209.92 | H120: 502.32 | I120: 593.53 | J120: 648.52 | K120: 538.55 | L120: 392.35 | M120: 83.91172
A121: 112 | B121: NAUKRI | C121: 2050.45 | D121: 2075.48 | E121: 1954.97 | F121: 1859.48 | G121: 1738.97 | H121: 2170.97 | I121: 2291.48 | J121: 2386.97 | K121: 2196 | L121: 1980 | M121: 2.45742
A122: 113 | B122: INFY | C122: 652.7 | D122: 656.62 | E122: 638.33 | F122: 623.97 | G122: 605.68 | H122: 670.98 | I122: 689.27 | J122: 703.63 | K122: 674.9 | L122: 642.25 | M122: 60.92028
A123: 114 | B123: INDIGO | C123: 1027.3 | D123: 1033.53 | E123: 998.97 | F123: 970.63 | G123: 936.07 | H123: 1061.87 | I123: 1096.43 | J123: 1124.77 | K123: 1068.1 | L123: 1005.2 | M123: 18.09304
A124: 115 | B124: IPCALAB | C124: 1245.05 | D124: 1275.35 | E124: 1201.70 | F124: 1158.35 | G124: 1084.70 | H124: 1318.70 | I124: 1392.35 | J124: 1435.70 | K124: 1349 | L124: 1232 | M124: 0.82039
A125: 116 | B125: JSWENERGY | C125: 44.4 | D125: 44.23 | E125: 41.27 | F125: 38.13 | G125: 35.17 | H125: 47.37 | I125: 50.33 | J125: 53.47 | K125: 47.2 | L125: 41.1 | M125: 3.42262
A126: 117 | B126: JSWSTEEL | C126: 151.45 | D126: 151.37 | E126: 146.28 | F126: 141.12 | G126: 136.03 | H126: 156.53 | I126: 161.62 | J126: 166.78 | K126: 156.45 | L126: 146.2 | M126: 63.29214
A127: 118 | B127: JINDALSTEL | C127: 88.85 | D127: 90.38 | E127: 86.27 | F127: 83.68 | G127: 79.57 | H127: 92.97 | I127: 97.08 | J127: 99.67 | K127: 94.5 | L127: 87.8 | M127: 152.07085
A128: 119 | B128: JUBLFOOD | C128: 1414.15 | D128: 1388.97 | E128: 1318.18 | F128: 1222.22 | G128: 1151.43 | H128: 1484.93 | I128: 1555.72 | J128: 1651.68 | K128: 1459.75 | L128: 1293 | M128: 22.23606
A129: 120 | B129: JUBILANT | C129: 260.35 | D129: 266.67 | E129: 251.43 | F129: 242.52 | G129: 227.28 | H129: 275.58 | I129: 290.82 | J129: 299.73 | K129: 281.9 | L129: 257.75 | M129: 4.33124
A130: 121 | B130: KOTAKBANK | C130: 1399.1 | D130: 1407.88 | E130: 1365.77 | F130: 1332.43 | G130: 1290.32 | H130: 1441.22 | I130: 1483.33 | J130: 1516.67 | K130: 1450 | L130: 1374.55 | M130: 94.95046
A131: 122 | B131: L&TFH | C131: 53.1 | D131: 54.93 | E131: 49.02 | F131: 44.93 | G131: 39.02 | H131: 59.02 | I131: 64.93 | J131: 69.02 | K131: 60.85 | L131: 50.85 | M131: 77.86477
A132: 123 | B132: LTTS | C132: 1174.9 | D132: 1145.02 | E132: 1090.03 | F132: 1005.17 | G132: 950.18 | H132: 1229.88 | I132: 1284.87 | J132: 1369.73 | K132: 1200 | L132: 1060.15 | M132: 0.39962
A133: 124 | B133: LICHSGFIN | C133: 237.25 | D133: 239.58 | E133: 225.17 | F133: 213.08 | G133: 198.67 | H133: 251.67 | I133: 266.08 | J133: 278.17 | K133: 254 | L133: 227.5 | M133: 75.80796
A134: 125 | B134: LTI | C134: 1393.85 | D134: 1417.62 | E134: 1356.23 | F134: 1318.62 | G134: 1257.23 | H134: 1455.23 | I134: 1516.62 | J134: 1554.23 | K134: 1479 | L134: 1380 | M134: 0.36496
A135: 126 | B135: LT | C135: 837.05 | D135: 846.35 | E135: 802.70 | F135: 768.35 | G135: 724.70 | H135: 880.70 | I135: 924.35 | J135: 958.70 | K135: 890 | L135: 812 | M135: 39.39306
A136: 127 | B136: LUPIN | C136: 548.1 | D136: 560.68 | E136: 529.77 | F136: 511.43 | G136: 480.52 | H136: 579.02 | I136: 609.93 | J136: 628.27 | K136: 591.6 | L136: 542.35 | M136: 11.17946
A137: 128 | B137: MRF | C137: 56371.25 | D137: 56063.75 | E137: 53927.50 | F137: 51483.75 | G137: 49347.50 | H137: 58507.50 | I137: 60643.75 | J137: 63087.50 | K137: 58200 | L137: 53620 | M137: 0.04805
A138: 129 | B138: MGL | C138: 814.55 | D138: 849.55 | E138: 766.00 | F138: 717.45 | G138: 633.90 | H138: 898.10 | I138: 981.65 | J138: 1030.20 | K138: 933.1 | L138: 801 | M138: 13.51299
A139: 130 | B139: M&MFIN | C139: 160.9 | D139: 167.25 | E139: 152.50 | F139: 144.10 | G139: 129.35 | H139: 175.65 | I139: 190.40 | J139: 198.80 | K139: 182 | L139: 158.85 | M139: 23.06322
A140: 131 | B140: M&M | C140: 294.5 | D140: 293.43 | E140: 281.87 | F140: 269.23 | G140: 257.67 | H140: 306.07 | I140: 317.63 | J140: 330.27 | K140: 305 | L140: 280.8 | M140: 23.52196
A141: 132 | B141: MANAPPURAM | C141: 106.8 | D141: 109.48 | E141: 101.57 | F141: 96.33 | G141: 88.42 | H141: 114.72 | I141: 122.63 | J141: 127.87 | K141: 117.4 | L141: 104.25 | M141: 28.02932
A142: 133 | B142: MRPL | C142: 23.4 | D142: 23.77 | E142: 22.63 | F142: 21.87 | G142: 20.73 | H142: 24.53 | I142: 25.67 | J142: 26.43 | K142: 24.9 | L142: 23 | M142: 8.09305
A143: 134 | B143: MARICO | C143: 253.15 | D143: 260.60 | E143: 243.80 | F143: 234.45 | G143: 217.65 | H143: 269.95 | I143: 286.75 | J143: 296.10 | K143: 277.4 | L143: 251.25 | M143: 69.41813
A144: 135 | B144: MARUTI | C144: 4646.1 | D144: 4779.20 | E144: 4421.90 | F144: 4197.70 | G144: 3840.40 | H144: 5003.40 | I144: 5360.70 | J144: 5584.90 | K144: 5136.5 | L144: 4555 | M144: 8.68935
A145: 136 | B145: MFSL | C145: 408.45 | D145: 425.57 | E145: 375.23 | F145: 342.02 | G145: 291.68 | H145: 458.78 | I145: 509.12 | J145: 542.33 | K145: 475.9 | L145: 392.35 | M145: 16.72907
A146: 137 | B146: MINDTREE | C146: 825.65 | D146: 834.48 | E146: 800.17 | F146: 774.68 | G146: 740.37 | H146: 859.97 | I146: 894.28 | J146: 919.77 | K146: 868.8 | L146: 809 | M146: 4.76824
A147: 138 | B147: MOTHERSUMI | C147: 63.15 | D147: 64.83 | E147: 60.82 | F147: 58.48 | G147: 54.47 | H147: 67.17 | I147: 71.18 | J147: 73.52 | K147: 68.85 | L147: 62.5 | M147: 275.35769
A148: 139 | B148: MPHASIS | C148: 686.3 | D148: 689.22 | E148: 666.08 | F148: 645.87 | G148: 622.73 | H148: 709.43 | I148: 732.57 | J148: 752.78 | K148: 712.35 | L148: 669 | M148: 0.51751
A149: 140 | B149: MUTHOOTFIN | C149: 618.7 | D149: 639.80 | E149: 588.15 | F149: 557.60 | G149: 505.95 | H149: 670.35 | I149: 722.00 | J149: 752.55 | K149: 691.45 | L149: 609.25 | M149: 5.3477
A150: 141 | B150: NATCOPHARM | C150: 496.35 | D150: 492.43 | E150: 475.97 | F150: 455.58 | G150: 439.12 | H150: 512.82 | I150: 529.28 | J150: 549.67 | K150: 508.9 | L150: 472.05 | M150: 0.70644
A151: 142 | B151: NBCC | C151: 16.6 | D151: 16.40 | E151: 16.00 | F151: 15.40 | G151: 15.00 | H151: 17.00 | I151: 17.40 | J151: 18.00 | K151: 16.8 | L151: 15.8 | M151: 131.59247
A152: 143 | B152: NHPC | C152: 19.4 | D152: 19.20 | E152: 18.90 | F152: 18.40 | G152: 18.10 | H152: 19.70 | I152: 20.00 | J152: 20.50 | K152: 19.5 | L152: 18.7 | M152: 169.98025
A153: 144 | B153: NMDC | C153: 73.55 | D153: 72.80 | E153: 71.20 | F153: 68.85 | G153: 67.25 | H153: 75.15 | I153: 76.75 | J153: 79.10 | K153: 74.4 | L153: 70.45 | M153: 115.54574
A154: 145 | B154: NTPC | C154: 83 | D154: 82.55 | E154: 80.70 | F154: 78.40 | G154: 76.55 | H154: 84.85 | I154: 86.70 | J154: 89.00 | K154: 84.4 | L154: 80.25 | M154: 645.18347
A155: 146 | B155: NATIONALUM | C155: 27.95 | D155: 28.62 | E155: 26.73 | F155: 25.52 | G155: 23.63 | H155: 29.83 | I155: 31.72 | J155: 32.93 | K155: 30.5 | L155: 27.4 | M155: 182.52296
A156: 147 | B156: NESTLEIND | C156: 15108.6 | D156: 15147.53 | E156: 14761.07 | F156: 14413.53 | G156: 14027.07 | H156: 15495.07 | I156: 15881.53 | J156: 16229.07 | K156: 15534 | L156: 14800 | M156: 0.59649
A157: 148 | B157: NAM-INDIA | C157: 242.55 | D157: 251.88 | E157: 226.42 | F157: 210.28 | G157: 184.82 | H157: 268.02 | I157: 293.48 | J157: 309.62 | K157: 277.35 | L157: 235.75 | M157: 1.68229
A158: 149 | B158: OBEROIRLTY | C158: 364.75 | D158: 375.25 | E158: 350.50 | F158: 336.25 | G158: 311.50 | H158: 389.50 | I158: 414.25 | J158: 428.50 | K158: 400 | L158: 361 | M158: 833.60147
A159: 150 | B159: ONGC | C159: 64.45 | D159: 64.42 | E159: 62.83 | F159: 61.22 | G159: 59.63 | H159: 66.03 | I159: 67.62 | J159: 69.23 | K159: 66 | L159: 62.8 | M159: 95.97439
A160: 151 | B160: OIL | C160: 77.6 | D160: 77.37 | E160: 75.23 | F160: 72.87 | G160: 70.73 | H160: 79.73 | I160: 81.87 | J160: 84.23 | K160: 79.5 | L160: 75 | M160: 0.2199
A161: 152 | B161: OFSS | C161: 1799.35 | D161: 1800.95 | E161: 1749.90 | F161: 1700.45 | G161: 1649.40 | H161: 1850.40 | I161: 1901.45 | J161: 1950.90 | K161: 1852 | L161: 1751.5 | M161: 3.09452
A162: 153 | B162: PIIND | C162: 1081.9 | D162: 1117.22 | E162: 1035.43 | F162: 988.97 | G162: 907.18 | H162: 1163.68 | I162: 1245.47 | J162: 1291.93 | K162: 1199 | L162: 1070.75 | M162: 7.15716
A163: 154 | B163: PNBHOUSING | C163: 157.85 | D163: 158.98 | E163: 153.87 | F163: 149.88 | G163: 144.77 | H163: 162.97 | I163: 168.08 | J163: 172.07 | K163: 164.1 | L163: 155 | M163: 0.22781
A164: 155 | B164: PAGEIND | C164: 17349.8 | D164: 17562.35 | E164: 16847.70 | F164: 16345.60 | G164: 15630.95 | H164: 18064.45 | I164: 18779.10 | J164: 19281.20 | K164: 18277 | L164: 17060.25 | M164: 23.08304
A165: 156 | B165: PETRONET | C165: 193.45 | D165: 194.70 | E165: 184.90 | F165: 176.35 | G165: 166.55 | H165: 203.25 | I165: 213.05 | J165: 221.60 | K165: 204.5 | L165: 186.15 | M165: 0.12497
A166: 157 | B166: PFIZER | C166: 3804.1 | D166: 3824.37 | E166: 3654.73 | F166: 3505.37 | G166: 3335.73 | H166: 3973.73 | I166: 4143.37 | J166: 4292.73 | K166: 3994 | L166: 3675 | M166: 7.69665
A167: 158 | B167: PIDILITIND | C167: 1299.15 | D167: 1295.08 | E167: 1265.22 | F167: 1231.28 | G167: 1201.42 | H167: 1329.02 | I167: 1358.88 | J167: 1392.82 | K167: 1324.95 | L167: 1261.15 | M167: 29.79765
A168: 159 | B168: PEL | C168: 849.05 | D168: 876.97 | E168: 772.18 | F168: 695.32 | G168: 590.53 | H168: 953.83 | I168: 1058.62 | J168: 1135.48 | K168: 981.75 | L168: 800.1 | M168: 94.55973
A169: 160 | B169: PFC | C169: 88.25 | D169: 90.45 | E169: 84.15 | F169: 80.05 | G169: 73.75 | H169: 94.55 | I169: 100.85 | J169: 104.95 | K169: 96.75 | L169: 86.35 | M169: 359.92338
A170: 161 | B170: POWERGRID | C170: 160 | D170: 160.97 | E170: 155.68 | F170: 151.37 | G170: 146.08 | H170: 165.28 | I170: 170.57 | J170: 174.88 | K170: 166.25 | L170: 156.65 | M170: 3.99518
A171: 162 | B171: PRESTIGE | C171: 194.45 | D171: 194.42 | E171: 180.23 | F171: 166.02 | G171: 151.83 | H171: 208.63 | I171: 222.82 | J171: 237.03 | K171: 208.6 | L171: 180.2 | M171: 0.02985
A172: 163 | B172: PGHH | C172: 9873.45 | D172: 10020.82 | E172: 9353.63 | F172: 8833.82 | G172: 8166.63 | H172: 10540.63 | I172: 11207.82 | J172: 11727.63 | K172: 10688 | L172: 9501 | M172: 154.49355
A173: 164 | B173: PNB | C173: 33.45 | D173: 34.22 | E173: 32.48 | F173: 31.52 | G173: 29.78 | H173: 35.18 | I173: 36.92 | J173: 37.88 | K173: 35.95 | L173: 33.25 | M173: 5.40845
A174: 165 | B174: QUESS | C174: 215.75 | D174: 223.18 | E174: 208.17 | F174: 200.58 | G174: 185.57 | H174: 230.77 | I174: 245.78 | J174: 253.37 | K174: 238.2 | L174: 215.6 | M174: 58.43485
A175: 166 | B175: RBLBANK | C175: 160.25 | D175: 166.28 | E175: 152.77 | F175: 145.28 | G175: 131.77 | H175: 173.77 | I175: 187.28 | J175: 194.77 | K175: 179.8 | L175: 158.8 | M175: 70.38131
A176: 167 | B176: RECLTD | C176: 85 | D176: 87.20 | E176: 81.80 | F176: 78.60 | G176: 73.20 | H176: 90.40 | I176: 95.80 | J176: 99.00 | K176: 92.6 | L176: 84 | M176: 1.23317
A177: 168 | B177: RAJESHEXPO | C177: 577.95 | D177: 583.15 | E177: 558.80 | F177: 539.65 | G177: 515.30 | H177: 602.30 | I177: 626.65 | J177: 645.80 | K177: 607.5 | L177: 564 | M177: 158.86673
A178: 169 | B178: RELIANCE | C178: 1065.6 | D178: 1073.03 | E178: 1038.77 | F178: 1011.93 | G178: 977.67 | H178: 1099.87 | I178: 1134.13 | J178: 1160.97 | K178: 1107.3 | L178: 1046.2 | M178: 4.4517
A179: 170 | B179: SBILIFE | C179: 602.85 | D179: 614.95 | E179: 572.90 | F179: 542.95 | G179: 500.90 | H179: 644.90 | I179: 686.95 | J179: 716.90 | K179: 657 | L179: 585 | M179: 3.14532
A180: 171 | B180: SRF | C180: 2727 | D180: 2759.42 | E180: 2649.63 | F180: 2572.27 | G180: 2462.48 | H180: 2836.78 | I180: 2946.57 | J180: 3023.93 | K180: 2869.2 | L180: 2682.05 | M180: 0.26041
A181: 172 | B181: SHREECEM | C181: 17666.25 | D181: 17690.63 | E181: 16811.67 | F181: 15957.08 | G181: 15078.12 | H181: 18545.22 | I181: 19424.18 | J181: 20278.77 | K181: 18569.6 | L181: 16836.05 | M181: 19.83266
A182: 173 | B182: SRTRANSFIN | C182: 725.2 | D182: 739.88 | E182: 665.52 | F182: 605.83 | G182: 531.47 | H182: 799.57 | I182: 873.93 | J182: 933.62 | K182: 814.25 | L182: 680.2 | M182: 3.34263
A183: 174 | B183: SIEMENS | C183: 1044.15 | D183: 1080.77 | E183: 994.73 | F183: 945.32 | G183: 859.28 | H183: 1130.18 | I183: 1216.22 | J183: 1265.63 | K183: 1166.8 | L183: 1031.35 | M183: 926.56638
A184: 175 | B184: SBIN | C184: 195.95 | D184: 200.95 | E184: 190.00 | F184: 184.05 | G184: 173.10 | H184: 206.90 | I184: 217.85 | J184: 223.80 | K184: 211.9 | L184: 195 | M184: 179.54383
A185: 176 | B185: SAIL | C185: 21.1 | D185: 21.63 | E185: 20.47 | F185: 19.83 | G185: 18.67 | H185: 22.27 | I185: 23.43 | J185: 24.07 | K185: 22.8 | L185: 21 | M185: 8.07575
A186: 177 | B186: STRTECH | C186: 63.9 | D186: 65.23 | E186: 61.97 | F186: 60.03 | G186: 56.77 | H186: 67.17 | I186: 70.43 | J186: 72.37 | K186: 68.5 | L186: 63.3 | M186: 37.57229
A187: 178 | B187: SUNPHARMA | C187: 338.25 | D187: 341.25 | E187: 330.00 | F187: 321.75 | G187: 310.50 | H187: 349.50 | I187: 360.75 | J187: 369.00 | K187: 352.5 | L187: 333 | M187: 15.5546
A188: 179 | B188: SUNTV | C188: 286.9 | D188: 295.95 | E188: 275.15 | F188: 263.40 | G188: 242.60 | H188: 307.70 | I188: 328.50 | J188: 340.25 | K188: 316.75 | L188: 284.2 | M188: 0.78761
A189: 180 | B189: SYNGENE | C189: 224.1 | D189: 225.80 | E189: 216.60 | F189: 209.10 | G189: 199.90 | H189: 233.30 | I189: 242.50 | J189: 250.00 | K189: 235 | L189: 218.3 | M189: 8.43524
A190: 181 | B190: TVSMOTOR | C190: 303.95 | D190: 311.65 | E190: 290.30 | F190: 276.65 | G190: 255.30 | H190: 325.30 | I190: 346.65 | J190: 360.30 | K190: 333 | L190: 298 | M190: 32.87223
A191: 182 | B191: TCS | C191: 1824.5 | D191: 1808.30 | E191: 1766.60 | F191: 1708.70 | G191: 1667.00 | H191: 1866.20 | I191: 1907.90 | J191: 1965.80 | K191: 1850 | L191: 1750.4 | M191: 26.8123
A192: 183 | B192: TATACONSUM | C192: 284.75 | D192: 286.32 | E192: 277.68 | F192: 270.62 | G192: 261.98 | H192: 293.38 | I192: 302.02 | J192: 309.08 | K192: 294.95 | L192: 279.25 | M192: 38.13549
A193: 184 | B193: TATAMTRDVR | C193: 30.55 | D193: 30.97 | E193: 29.68 | F193: 28.82 | G193: 27.53 | H193: 31.83 | I193: 33.12 | J193: 33.98 | K193: 32.25 | L193: 30.1 | M193: 756.21897
A194: 185 | B194: TATAMOTORS | C194: 70.7 | D194: 71.98 | E194: 68.07 | F194: 65.43 | G194: 61.52 | H194: 74.62 | I194: 78.53 | J194: 81.17 | K194: 75.9 | L194: 69.35 | M194: 79.77888
A195: 186 | B195: TATAPOWER | C195: 33.95 | D195: 34.68 | E195: 32.52 | F195: 31.08 | G195: 28.92 | H195: 36.12 | I195: 38.28 | J195: 39.72 | K195: 36.85 | L195: 33.25 | M195: 107.38727
A196: 187 | B196: TATASTEEL | C196: 277.25 | D196: 282.23 | E196: 269.22 | F196: 261.18 | G196: 248.17 | H196: 290.27 | I196: 303.28 | J196: 311.32 | K196: 295.25 | L196: 274.2 | M196: 30.81521
A197: 188 | B197: TECHM | C197: 504.1 | D197: 513.63 | E197: 488.47 | F197: 472.83 | G197: 447.67 | H197: 529.27 | I197: 554.43 | J197: 570.07 | K197: 538.8 | L197: 498 | M197: 1.68669
A198: 189 | B198: NIACL | C198: 98.6 | D198: 102.80 | E198: 91.80 | F198: 85.00 | G198: 74.00 | H198: 109.60 | I198: 120.60 | J198: 127.40 | K198: 113.8 | L198: 96 | M198: 5.867
A199: 190 | B199: RAMCOCEM | C199: 506.25 | D199: 512.00 | E199: 477.10 | F199: 447.95 | G199: 413.05 | H199: 541.15 | I199: 576.05 | J199: 605.20 | K199: 546.9 | L199: 482.85 | M199: 18.09101
A200: 191 | B200: TITAN | C200: 937.05 | D200: 932.68 | E200: 900.37 | F200: 863.68 | G200: 831.37 | H200: 969.37 | I200: 1001.68 | J200: 1038.37 | K200: 965 | L200: 896 | M200: 1.67763
A201: 192 | B201: TORNTPHARM | C201: 1860.15 | D201: 1848.72 | E201: 1802.43 | F201: 1744.72 | G201: 1698.43 | H201: 1906.43 | I201: 1952.72 | J201: 2010.43 | K201: 1895 | L201: 1791 | M201: 11.09871
A202: 193 | B202: TORNTPOWER | C202: 271.85 | D202: 278.55 | E202: 258.30 | F202: 244.75 | G202: 224.50 | H202: 292.10 | I202: 312.35 | J202: 325.90 | K202: 298.8 | L202: 265 | M202: 43.40034
A203: 194 | B203: UPL | C203: 322.2 | D203: 324.50 | E203: 313.00 | F203: 303.80 | G203: 292.30 | H203: 333.70 | I203: 345.20 | J203: 354.40 | K203: 336 | L203: 315.3 | M203: 4.5163
A204: 195 | B204: ULTRACEMCO | C204: 3143.6 | D204: 3212.00 | E204: 3034.00 | F204: 2924.40 | G204: 2746.40 | H204: 3321.60 | I204: 3499.60 | J204: 3609.20 | K204: 3390 | L204: 3102.4 | M204: 21.60583
A205: 196 | B205: UNIONBANK | C205: 29.05 | D205: 29.32 | E205: 27.83 | F205: 26.62 | G205: 25.13 | H205: 30.53 | I205: 32.02 | J205: 33.23 | K205: 30.8 | L205: 28.1 | M205: 3.17811
... 30 more rows

Sheet MidCap Intra
L5: Back To Main Page
A6: FOR INTRA DAY TRADING | K6: =Main!B10 -> 2020-03-30
A9: Sr.no | B9: Scrip | C9: CLOSE RATE | D9: Pivot Point | E9: Supports | H9: Resistances
C10: Point | E10: S1 | F10: S2 | G10: S3 | H10: R1 | I10: R2 | J10: R3 | K10: HIGH | L10: LOW | M10: Total Trade Quanity in Lakhs
A11: 1 | B11: 3MINDIA | C11: 17648.6 | D11: 17854.88 | E11: 17209.77 | F11: 16770.93 | G11: 16125.82 | H11: 18293.72 | I11: 18938.83 | J11: 19377.67 | K11: 18500 | L11: 17416.05 | M11: 0.1381
A12: 2 | B12: AARTIIND | C12: 765.9 | D12: 763.67 | E12: 737.43 | F12: 708.97 | G12: 682.73 | H12: 792.13 | I12: 818.37 | J12: 846.83 | K12: 789.9 | L12: 735.2 | M12: 1.66967
A13: 3 | B13: AAVAS | C13: 1058.1 | D13: 1058.07 | E13: 1058.03 | F13: 1057.97 | G13: 1057.93 | H13: 1058.13 | I13: 1058.17 | J13: 1058.23 | K13: 1058.1 | L13: 1058 | M13: 0.29256
A14: 4 | B14: ABBOTINDIA | C14: 14146.1 | D14: 14277.70 | E14: 13763.40 | F14: 13380.70 | G14: 12866.40 | H14: 14660.40 | I14: 15174.70 | J14: 15557.40 | K14: 14792 | L14: 13895 | M14: 0.12873
A15: 5 | B15: ABCAPITAL | C15: 44.55 | D15: 45.43 | E15: 42.62 | F15: 40.68 | G15: 37.87 | H15: 47.37 | I15: 50.18 | J15: 52.12 | K15: 48.25 | L15: 43.5 | M15: 21.03663
A16: 6 | B16: ABFRL | C16: 167.1 | D16: 167.52 | E16: 159.88 | F16: 152.67 | G16: 145.03 | H16: 174.73 | I16: 182.37 | J16: 189.58 | K16: 175.15 | L16: 160.3 | M16: 5.42814
A17: 7 | B17: ACC | C17: 959.15 | D17: 969.72 | E17: 929.43 | F17: 899.72 | G17: 859.43 | H17: 999.43 | I17: 1039.72 | J17: 1069.43 | K17: 1010 | L17: 940 | M17: 11.91624
A18: 8 | B18: ADANIGAS | C18: 88.5 | D18: 90.52 | E18: 85.28 | F18: 82.07 | G18: 76.83 | H18: 93.73 | I18: 98.97 | J18: 102.18 | K18: 95.75 | L18: 87.3 | M18: 12.94549
A19: 9 | B19: ADANIGREEN | C19: 148.75 | D19: 150.08 | E19: 143.17 | F19: 137.58 | G19: 130.67 | H19: 155.67 | I19: 162.58 | J19: 168.17 | K19: 157 | L19: 144.5 | M19: 5.67761
A20: 10 | B20: ADANIPORTS | C20: 251.3 | D20: 251.63 | E20: 243.67 | F20: 236.03 | G20: 228.07 | H20: 259.27 | I20: 267.23 | J20: 274.87 | K20: 259.6 | L20: 244 | M20: 48.71655
A21: 11 | B21: ADANIPOWER | C21: 27.6 | D21: 29.07 | E21: 25.73 | F21: 23.87 | G21: 20.53 | H21: 30.93 | I21: 34.27 | J21: 36.13 | K21: 32.4 | L21: 27.2 | M21: 140.04031
A22: 12 | B22: ADANITRANS | C22: 186.65 | D22: 191.58 | E22: 181.12 | F22: 175.58 | G22: 165.12 | H22: 197.12 | I22: 207.58 | J22: 213.12 | K22: 202.05 | L22: 186.05 | M22: 1.85779
A23: 13 | B23: ADVENZYMES | C23: 116.3 | D23: 113.78 | E23: 108.57 | F23: 100.83 | G23: 95.62 | H23: 121.52 | I23: 126.73 | J23: 134.47 | K23: 119 | L23: 106.05 | M23: 1.88038
A24: 14 | B24: AEGISCHEM | C24: 137.3 | D24: 135.35 | E24: 130.90 | F24: 124.50 | G24: 120.05 | H24: 141.75 | I24: 146.20 | J24: 152.60 | K24: 139.8 | L24: 128.95 | M24: 1.83016
A25: 15 | B25: AFFLE | C25: 946.55 | D25: 977.70 | E25: 915.40 | F25: 884.25 | G25: 821.95 | H25: 1008.85 | I25: 1071.15 | J25: 1102.30 | K25: 1040 | L25: 946.55 | M25: 0.31627
A26: 16 | B26: AIAENG | C26: 1243.75 | D26: 1264.47 | E26: 1178.18 | F26: 1112.62 | G26: 1026.33 | H26: 1330.03 | I26: 1416.32 | J26: 1481.88 | K26: 1350.75 | L26: 1198.9 | M26: 0.35777
A27: 17 | B27: AJANTPHARM | C27: 1238.55 | D27: 1227.87 | E27: 1200.73 | F27: 1162.92 | G27: 1135.78 | H27: 1265.68 | I27: 1292.82 | J27: 1330.63 | K27: 1255 | L27: 1190.05 | M27: 3.61753
A28: 18 | B28: AKZOINDIA | C28: 2115.3 | D28: 2082.52 | E28: 2015.03 | F28: 1914.77 | G28: 1847.28 | H28: 2182.78 | I28: 2250.27 | J28: 2350.53 | K28: 2150 | L28: 1982.25 | M28: 0.22495
A29: 19 | B29: ALKEM | C29: 2344.95 | D29: 2347.78 | E29: 2232.02 | F29: 2119.08 | G29: 2003.32 | H29: 2460.72 | I29: 2576.48 | J29: 2689.42 | K29: 2463.55 | L29: 2234.85 | M29: 1.11495
A30: 20 | B30: ALLCARGO | C30: 63.25 | D30: 63.98 | E30: 60.42 | F30: 57.58 | G30: 54.02 | H30: 66.82 | I30: 70.38 | J30: 73.22 | K30: 67.55 | L30: 61.15 | M30: 1.11991
A31: 21 | B31: AMARAJABAT | C31: 455.35 | D31: 460.90 | E31: 439.55 | F31: 423.75 | G31: 402.40 | H31: 476.70 | I31: 498.05 | J31: 513.85 | K31: 482.25 | L31: 445.1 | M31: 6.88974
A32: 22 | B32: AMBER | C32: 1224.75 | D32: 1242.92 | E32: 1171.83 | F32: 1118.92 | G32: 1047.83 | H32: 1295.83 | I32: 1366.92 | J32: 1419.83 | K32: 1314 | L32: 1190 | M32: 0.94056
A33: 23 | B33: AMBUJACEM | C33: 141.55 | D33: 144.85 | E33: 137.70 | F33: 133.85 | G33: 126.70 | H33: 148.70 | I33: 155.85 | J33: 159.70 | K33: 152 | L33: 141 | M33: 77.06575
A34: 24 | B34: APLAPOLLO | C34: 1284.7 | D34: 1302.15 | E34: 1255.30 | F34: 1225.90 | G34: 1179.05 | H34: 1331.55 | I34: 1378.40 | J34: 1407.80 | K34: 1349 | L34: 1272.75 | M34: 1.47754
A35: 25 | B35: APLLTD | C35: 537.85 | D35: 534.62 | E35: 522.63 | F35: 507.42 | G35: 495.43 | H35: 549.83 | I35: 561.82 | J35: 577.03 | K35: 546.6 | L35: 519.4 | M35: 0.65935
A36: 26 | B36: APOLLOHOSP | C36: 1167 | D36: 1185.43 | E36: 1111.87 | F36: 1056.73 | G36: 983.17 | H36: 1240.57 | I36: 1314.13 | J36: 1369.27 | K36: 1259 | L36: 1130.3 | M36: 24.80908
A37: 27 | B37: APOLLOTYRE | C37: 82.6 | D37: 82.43 | E37: 78.97 | F37: 75.33 | G37: 71.87 | H37: 86.07 | I37: 89.53 | J37: 93.17 | K37: 85.9 | L37: 78.8 | M37: 48.71515
A38: 28 | B38: ARVINDFASN | C38: 149.35 | D38: 149.92 | E38: 139.83 | F38: 130.32 | G38: 120.23 | H38: 159.43 | I38: 169.52 | J38: 179.03 | K38: 160 | L38: 140.4 | M38: 0.34627
A39: 29 | B39: ASAHIINDIA | C39: 149.9 | D39: 148.23 | E39: 141.47 | F39: 133.03 | G39: 126.27 | H39: 156.67 | I39: 163.43 | J39: 171.87 | K39: 155 | L39: 139.8 | M39: 0.21074
A40: 30 | B40: ASHOKA | C40: 43.9 | D40: 45.37 | E40: 41.83 | F40: 39.77 | G40: 36.23 | H40: 47.43 | I40: 50.97 | J40: 53.03 | K40: 48.9 | L40: 43.3 | M40: 4.98597
A41: 31 | B41: ASHOKLEY | C41: 43.3 | D41: 45.38 | E41: 39.42 | F41: 35.53 | G41: 29.57 | H41: 49.27 | I41: 55.23 | J41: 59.12 | K41: 51.35 | L41: 41.5 | M41: 800.12374
A42: 32 | B42: ASIANPAINT | C42: 1604.15 | D42: 1606.53 | E42: 1547.82 | F42: 1491.48 | G42: 1432.77 | H42: 1662.87 | I42: 1721.58 | J42: 1777.92 | K42: 1665.25 | L42: 1550.2 | M42: 21.02479
A43: 33 | B43: ASTERDM | C43: 93 | D43: 92.93 | E43: 88.97 | F43: 84.93 | G43: 80.97 | H43: 96.97 | I43: 100.93 | J43: 104.97 | K43: 96.9 | L43: 88.9 | M43: 12.46952
A44: 34 | B44: ASTRAL | C44: 908.5 | D44: 938.75 | E44: 866.75 | F44: 825.00 | G44: 753.00 | H44: 980.50 | I44: 1052.50 | J44: 1094.25 | K44: 1010.75 | L44: 897 | M44: 0.68464
A45: 35 | B45: ASTRAZEN | C45: 2197.55 | D45: 2232.45 | E45: 2117.10 | F45: 2036.65 | G45: 1921.30 | H45: 2312.90 | I45: 2428.25 | J45: 2508.70 | K45: 2347.8 | L45: 2152 | M45: 0.28168
A46: 36 | B46: ATUL | C46: 3997.55 | D46: 3993.90 | E46: 3803.65 | F46: 3609.75 | G46: 3419.50 | H46: 4187.80 | I46: 4378.05 | J46: 4571.95 | K46: 4184.15 | L46: 3800 | M46: 0.22336
A47: 37 | B47: AUBANK | C47: 521.55 | D47: 521.55 | E47: 521.55 | F47: 521.55 | G47: 521.55 | H47: 521.55 | I47: 521.55 | J47: 521.55 | K47: 521.55 | L47: 521.55 | M47: 6.01974
A48: 38 | B48: AUROPHARMA | C48: 392.25 | D48: 392.55 | E48: 378.05 | F48: 363.85 | G48: 349.35 | H48: 406.75 | I48: 421.25 | J48: 435.45 | K48: 407.05 | L48: 378.35 | M48: 67.82942
A49: 39 | B49: AVANTIFEED | C49: 297.85 | D49: 302.00 | E49: 286.00 | F49: 274.15 | G49: 258.15 | H49: 313.85 | I49: 329.85 | J49: 341.70 | K49: 318 | L49: 290.15 | M49: 5.39218
A50: 40 | B50: AXISBANK | C50: 359.75 | D50: 374.42 | E50: 339.38 | F50: 319.02 | G50: 283.98 | H50: 394.78 | I50: 429.82 | J50: 450.18 | K50: 409.45 | L50: 354.05 | M50: 710.43359
A51: 41 | B51: BAJAJ-AUTO | C51: 2053.45 | D51: 2075.87 | E51: 1984.73 | F51: 1916.02 | G51: 1824.88 | H51: 2144.58 | I51: 2235.72 | J51: 2304.43 | K51: 2167 | L51: 2007.15 | M51: 9.38567
A52: 42 | B52: BAJAJCON | C52: 126.75 | D52: 127.00 | E52: 120.00 | F52: 113.25 | G52: 106.25 | H52: 133.75 | I52: 140.75 | J52: 147.50 | K52: 134 | L52: 120.25 | M52: 3.27278
A53: 43 | B53: BAJAJELEC | C53: 277.95 | D53: 286.07 | E53: 265.98 | F53: 254.02 | G53: 233.93 | H53: 298.03 | I53: 318.12 | J53: 330.08 | K53: 306.15 | L53: 274.1 | M53: 1.30942
A54: 44 | B54: BAJAJFINSV | C54: 4890.6 | D54: 5075.20 | E54: 4490.40 | F54: 4090.20 | G54: 3505.40 | H54: 5475.40 | I54: 6060.20 | J54: 6460.40 | K54: 5660 | L54: 4675 | M54: 12.91819
A55: 45 | B55: BAJAJHLDNG | C55: 1900 | D55: 1876.43 | E55: 1823.57 | F55: 1747.13 | G55: 1694.27 | H55: 1952.87 | I55: 2005.73 | J55: 2082.17 | K55: 1929.3 | L55: 1800 | M55: 0.7915
A56: 46 | B56: BAJFINANCE | C56: 2542.3 | D56: 2694.10 | E56: 2348.20 | F56: 2154.10 | G56: 1808.20 | H56: 2888.20 | I56: 3234.10 | J56: 3428.20 | K56: 3040 | L56: 2500 | M56: 71.70719
A57: 47 | B57: BALKRISIND | C57: 848.1 | D57: 842.67 | E57: 819.33 | F57: 790.57 | G57: 767.23 | H57: 871.43 | I57: 894.77 | J57: 923.53 | K57: 866 | L57: 813.9 | M57: 10.11957
A58: 48 | B58: BALMLAWRIE | C58: 77.35 | D58: 77.92 | E58: 75.43 | F58: 73.52 | G58: 71.03 | H58: 79.83 | I58: 82.32 | J58: 84.23 | K58: 80.4 | L58: 76 | M58: 1.71347
A59: 49 | B59: BALRAMCHIN | C59: 90.2 | D59: 89.82 | E59: 89.43 | F59: 88.67 | G59: 88.28 | H59: 90.58 | I59: 90.97 | J59: 91.73 | K59: 90.2 | L59: 89.05 | M59: 1.90948
A60: 50 | B60: BANDHANBNK | C60: 249.55 | D60: 249.70 | E60: 229.90 | F60: 210.25 | G60: 190.45 | H60: 269.35 | I60: 289.15 | J60: 308.80 | K60: 269.5 | L60: 230.05 | M60: 247.88799
A61: 51 | B61: BANKBARODA | C61: 54.35 | D61: 56.40 | E61: 51.30 | F61: 48.25 | G61: 43.15 | H61: 59.45 | I61: 64.55 | J61: 67.60 | K61: 61.5 | L61: 53.35 | M61: 389.84067
A62: 52 | B62: BANKINDIA | C62: 33.25 | D62: 33.97 | E62: 32.28 | F62: 31.32 | G62: 29.63 | H62: 34.93 | I62: 36.62 | J62: 37.58 | K62: 35.65 | L62: 33 | M62: 19.0168
A63: 53 | B63: BASF | C63: 1099.3 | D63: 1118.43 | E63: 1056.87 | F63: 1014.43 | G63: 952.87 | H63: 1160.87 | I63: 1222.43 | J63: 1264.87 | K63: 1180 | L63: 1076 | M63: 0.18782
A64: 54 | B64: BATAINDIA | C64: 1226 | D64: 1236.65 | E64: 1179.35 | F64: 1132.70 | G64: 1075.40 | H64: 1283.30 | I64: 1340.60 | J64: 1387.25 | K64: 1293.95 | L64: 1190 | M64: 9.75721
A65: 55 | B65: BAYERCROP | C65: 3217.3 | D65: 3192.63 | E65: 3075.67 | F65: 2934.03 | G65: 2817.07 | H65: 3334.27 | I65: 3451.23 | J65: 3592.87 | K65: 3309.6 | L65: 3051 | M65: 0.16895
A66: 56 | B66: BBTC | C66: 704.25 | D66: 711.87 | E66: 667.73 | F66: 631.22 | G66: 587.08 | H66: 748.38 | I66: 792.52 | J66: 829.03 | K66: 756 | L66: 675.35 | M66: 0.58249
A67: 57 | B67: BDL | C67: 184.95 | D67: 188.38 | E67: 175.57 | F67: 166.18 | G67: 153.37 | H67: 197.77 | I67: 210.58 | J67: 219.97 | K67: 201.2 | L67: 179 | M67: 1.88517
A68: 58 | B68: BEL | C68: 73.15 | D68: 72.88 | E68: 69.02 | F68: 64.88 | G68: 61.02 | H68: 77.02 | I68: 80.88 | J68: 85.02 | K68: 76.75 | L68: 68.75 | M68: 157.42956
A69: 59 | B69: BEML | C69: 450 | D69: 453.47 | E69: 437.68 | F69: 425.37 | G69: 409.58 | H69: 465.78 | I69: 481.57 | J69: 493.88 | K69: 469.25 | L69: 441.15 | M69: 3.31657
A70: 60 | B70: BERGEPAINT | C70: 485.6 | D70: 483.68 | E70: 467.47 | F70: 449.33 | G70: 433.12 | H70: 501.82 | I70: 518.03 | J70: 536.17 | K70: 499.9 | L70: 465.55 | M70: 12.04649
A71: 61 | B71: BHARATFORG | C71: 264.1 | D71: 272.42 | E71: 247.08 | F71: 230.07 | G71: 204.73 | H71: 289.43 | I71: 314.77 | J71: 331.78 | K71: 297.75 | L71: 255.4 | M71: 19.54228
A72: 62 | B72: BHARTIARTL | C72: 448.95 | D72: 453.75 | E72: 432.70 | F72: 416.45 | G72: 395.40 | H72: 470.00 | I72: 491.05 | J72: 507.30 | K72: 474.8 | L72: 437.5 | M72: 160.76582
A73: 63 | B73: BHEL | C73: 20.35 | D73: 20.80 | E73: 19.70 | F73: 19.05 | G73: 17.95 | H73: 21.45 | I73: 22.55 | J73: 23.20 | K73: 21.9 | L73: 20.15 | M73: 223.66596
A74: 64 | B74: BIOCON | C74: 277.7 | D74: 280.30 | E74: 269.40 | F74: 261.10 | G74: 250.20 | H74: 288.60 | I74: 299.50 | J74: 307.80 | K74: 291.2 | L74: 272 | M74: 39.58414
A75: 65 | B75: BIRLACORPN | C75: 414.35 | D75: 424.13 | E75: 399.22 | F75: 384.08 | G75: 359.17 | H75: 439.27 | I75: 464.18 | J75: 479.32 | K75: 449.05 | L75: 409 | M75: 0.60721
A76: 66 | B76: BLISSGVS | C76: 98.4 | D76: 99.33 | E76: 94.17 | F76: 89.93 | G76: 84.77 | H76: 103.57 | I76: 108.73 | J76: 112.97 | K76: 104.5 | L76: 95.1 | M76: 1.81405
A77: 67 | B77: BLUEDART | C77: 1996.8 | D77: 2027.83 | E77: 1948.97 | F77: 1901.13 | G77: 1822.27 | H77: 2075.67 | I77: 2154.53 | J77: 2202.37 | K77: 2106.7 | L77: 1980 | M77: 0.1463
A78: 68 | B78: BLUESTARCO | C78: 488 | D78: 504.32 | E78: 468.63 | F78: 449.27 | G78: 413.58 | H78: 523.68 | I78: 559.37 | J78: 578.73 | K78: 540 | L78: 484.95 | M78: 0.46437
A79: 69 | B79: BOMDYEING | C79: 43.5 | D79: 44.32 | E79: 41.88 | F79: 40.27 | G79: 37.83 | H79: 45.93 | I79: 48.37 | J79: 49.98 | K79: 46.75 | L79: 42.7 | M79: 9.10346
A80: 70 | B80: BOSCHLTD | C80: 9931.5 | D80: 10359.42 | E80: 9372.08 | F80: 8812.67 | G80: 7825.33 | H80: 10918.83 | I80: 11906.17 | J80: 12465.58 | K80: 11346.75 | L80: 9800 | M80: 0.56943
A81: 71 | B81: BPCL | C81: 278.75 | D81: 285.65 | E81: 267.30 | F81: 255.85 | G81: 237.50 | H81: 297.10 | I81: 315.45 | J81: 326.90 | K81: 304 | L81: 274.2 | M81: 60.77944
A82: 72 | B82: BRIGADE | C82: 126.8 | D82: 129.27 | E82: 121.53 | F82: 116.27 | G82: 108.53 | H82: 134.53 | I82: 142.27 | J82: 147.53 | K82: 137 | L82: 124 | M82: 1.18728
A83: 73 | B83: BRITANNIA | C83: 2529.25 | D83: 2581.07 | E83: 2453.18 | F83: 2377.12 | G83: 2249.23 | H83: 2657.13 | I83: 2785.02 | J83: 2861.08 | K83: 2708.95 | L83: 2505 | M83: 4.72582
A84: 74 | B84: BSE | C84: 300.55 | D84: 305.97 | E84: 293.93 | F84: 287.32 | G84: 275.28 | H84: 312.58 | I84: 324.62 | J84: 331.23 | K84: 318 | L84: 299.35 | M84: 2.7867
A85: 75 | B85: BSOFT | C85: 59.55 | D85: 60.52 | E85: 56.23 | F85: 52.92 | G85: 48.63 | H85: 63.83 | I85: 68.12 | J85: 71.43 | K85: 64.8 | L85: 57.2 | M85: 2.90531
A86: 76 | B86: CADILAHC | C86: 252.7 | D86: 255.37 | E86: 245.98 | F86: 239.27 | G86: 229.88 | H86: 262.08 | I86: 271.47 | J86: 278.18 | K86: 264.75 | L86: 248.65 | M86: 18.72352
A87: 77 | B87: CANBK | C87: 90.05 | D87: 91.08 | E87: 86.67 | F87: 83.28 | G87: 78.87 | H87: 94.47 | I87: 98.88 | J87: 102.27 | K87: 95.5 | L87: 87.7 | M87: 123.54848
A88: 78 | B88: CANFINHOME | C88: 305.3 | D88: 312.93 | E88: 288.12 | F88: 270.93 | G88: 246.12 | H88: 330.12 | I88: 354.93 | J88: 372.12 | K88: 337.75 | L88: 295.75 | M88: 2.80615
A89: 79 | B89: CAPLIPOINT | C89: 261.7 | D89: 270.18 | E89: 251.52 | F89: 241.33 | G89: 222.67 | H89: 280.37 | I89: 299.03 | J89: 309.22 | K89: 288.85 | L89: 260 | M89: 1.87286
A90: 80 | B90: CARBORUNIV | C90: 207.95 | D90: 207.40 | E90: 202.10 | F90: 196.25 | G90: 190.95 | H90: 213.25 | I90: 218.55 | J90: 224.40 | K90: 212.7 | L90: 201.55 | M90: 0.44689
A91: 81 | B91: CARERATING | C91: 305 | D91: 300.30 | E91: 280.70 | F91: 256.40 | G91: 236.80 | H91: 324.60 | I91: 344.20 | J91: 368.50 | K91: 319.9 | L91: 276 | M91: 3.66278
A92: 82 | B92: CASTROLIND | C92: 98.85 | D92: 101.98 | E92: 94.87 | F92: 90.88 | G92: 83.77 | H92: 105.97 | I92: 113.08 | J92: 117.07 | K92: 109.1 | L92: 98 | M92: 12.6952
A93: 83 | B93: CCL | C93: 175.6 | D93: 175.23 | E93: 170.47 | F93: 165.33 | G93: 160.57 | H93: 180.37 | I93: 185.13 | J93: 190.27 | K93: 180 | L93: 170.1 | M93: 3.11846
A94: 84 | B94: CDSL | C94: 207.2 | D94: 209.72 | E94: 199.43 | F94: 191.67 | G94: 181.38 | H94: 217.48 | I94: 227.77 | J94: 235.53 | K94: 220 | L94: 201.95 | M94: 6.59221
A95: 85 | B95: CEATLTD | C95: 733.65 | D95: 718.88 | E95: 689.77 | F95: 645.88 | G95: 616.77 | H95: 762.77 | I95: 791.88 | J95: 835.77 | K95: 748 | L95: 675 | M95: 1.04794
A96: 86 | B96: CENTRALBK | C96: 12.35 | D96: 12.53 | E96: 11.82 | F96: 11.28 | G96: 10.57 | H96: 13.07 | I96: 13.78 | J96: 14.32 | K96: 13.25 | L96: 12 | M96: 15.36431
A97: 87 | B97: CENTURYPLY | C97: 115.1 | D97: 115.40 | E97: 111.70 | F97: 108.30 | G97: 104.60 | H97: 118.80 | I97: 122.50 | J97: 125.90 | K97: 119.1 | L97: 112 | M97: 1.88661
A98: 88 | B98: CERA | C98: 2385.7 | D98: 2389.13 | E98: 2038.97 | F98: 1692.23 | G98: 1342.07 | H98: 2735.87 | I98: 3086.03 | J98: 3432.77 | K98: 2739.3 | L98: 2042.4 | M98: 0.07112
A99: 89 | B99: CESC | C99: 389.4 | D99: 396.90 | E99: 375.50 | F99: 361.60 | G99: 340.20 | H99: 410.80 | I99: 432.20 | J99: 446.10 | K99: 418.3 | L99: 383 | M99: 3.89664
A100: 90 | B100: CGCL | C100: 174.9 | D100: 175.52 | E100: 170.48 | F100: 166.07 | G100: 161.03 | H100: 179.93 | I100: 184.97 | J100: 189.38 | K100: 180.55 | L100: 171.1 | M100: 2.05576
A101: 91 | B101: CHALET | C101: 202.3 | D101: 213.83 | E101: 188.27 | F101: 174.23 | G101: 148.67 | H101: 227.87 | I101: 253.43 | J101: 267.47 | K101: 239.4 | L101: 199.8 | M101: 0.05799
A102: 92 | B102: CHAMBLFERT | C102: 110.45 | D102: 113.62 | E102: 106.03 | F102: 101.62 | G102: 94.03 | H102: 118.03 | I102: 125.62 | J102: 130.03 | K102: 121.2 | L102: 109.2 | M102: 6.97577
A103: 93 | B103: CHENNPETRO | C103: 56.85 | D103: 58.63 | E103: 54.52 | F103: 52.18 | G103: 48.07 | H103: 60.97 | I103: 65.08 | J103: 67.42 | K103: 62.75 | L103: 56.3 | M103: 2.2576
A104: 94 | B104: CHOLAFIN | C104: 169.15 | D104: 173.30 | E104: 162.60 | F104: 156.05 | G104: 145.35 | H104: 179.85 | I104: 190.55 | J104: 197.10 | K104: 184 | L104: 166.75 | M104: 44.90909
A105: 95 | B105: CHOLAHLDNG | C105: 340.9 | D105: 343.82 | E105: 322.63 | F105: 304.37 | G105: 283.18 | H105: 362.08 | I105: 383.27 | J105: 401.53 | K105: 365 | L105: 325.55 | M105: 2.7437
A106: 96 | B106: CIPLA | C106: 407.65 | D106: 403.53 | E106: 396.07 | F106: 384.48 | G106: 377.02 | H106: 415.12 | I106: 422.58 | J106: 434.17 | K106: 411 | L106: 391.95 | M106: 64.71292
A107: 97 | B107: COALINDIA | C107: 131.7 | D107: 129.88 | E107: 126.82 | F107: 121.93 | G107: 118.87 | H107: 134.77 | I107: 137.83 | J107: 142.72 | K107: 132.95 | L107: 125 | M107: 183.3475
A108: 98 | B108: COCHINSHIP | C108: 243.85 | D108: 237.95 | E108: 225.90 | F108: 207.95 | G108: 195.90 | H108: 255.90 | I108: 267.95 | J108: 285.90 | K108: 250 | L108: 220 | M108: 2.62792
A109: 99 | B109: COLPAL | C109: 1159.1 | D109: 1174.03 | E109: 1125.07 | F109: 1091.03 | G109: 1042.07 | H109: 1208.07 | I109: 1257.03 | J109: 1291.07 | K109: 1223 | L109: 1140 | M109: 11.62395
A110: 100 | B110: CONCOR | C110: 309.2 | D110: 322.25 | E110: 292.95 | F110: 276.70 | G110: 247.40 | H110: 338.50 | I110: 367.80 | J110: 384.05 | K110: 351.55 | L110: 306 | M110: 29.8015
A111: 101 | B111: COROMANDEL | C111: 521.6 | D111: 521.77 | E111: 490.08 | F111: 458.57 | G111: 426.88 | H111: 553.28 | I111: 584.97 | J111: 616.48 | K111: 553.45 | L111: 490.25 | M111: 2.33858
A112: 102 | B112: CREDITACC | C112: 373.7 | D112: 386.17 | E112: 360.33 | F112: 346.97 | G112: 321.13 | H112: 399.53 | I112: 425.37 | J112: 438.73 | K112: 412 | L112: 372.8 | M112: 3.7046
A113: 103 | B113: CRISIL | C113: 1274.35 | D113: 1333.78 | E113: 1190.57 | F113: 1106.78 | G113: 963.57 | H113: 1417.57 | I113: 1560.78 | J113: 1644.57 | K113: 1477 | L113: 1250 | M113: 0.65633
A114: 104 | B114: CROMPTON | C114: 192.6 | D114: 196.87 | E114: 184.93 | F114: 177.27 | G114: 165.33 | H114: 204.53 | I114: 216.47 | J114: 224.13 | K114: 208.8 | L114: 189.2 | M114: 16.67697
A115: 105 | B115: CUB | C115: 130.85 | D115: 135.00 | E115: 122.20 | F115: 113.55 | G115: 100.75 | H115: 143.65 | I115: 156.45 | J115: 165.10 | K115: 147.8 | L115: 126.35 | M115: 25.9416
A116: 106 | B116: CUMMINSIND | C116: 357.6 | D116: 366.93 | E116: 338.87 | F116: 320.13 | G116: 292.07 | H116: 385.67 | I116: 413.73 | J116: 432.47 | K116: 395 | L116: 348.2 | M116: 6.68074
A117: 107 | B117: CYIENT | C117: 232.75 | D117: 237.43 | E117: 224.87 | F117: 216.98 | G117: 204.42 | H117: 245.32 | I117: 257.88 | J117: 265.77 | K117: 250 | L117: 229.55 | M117: 2.11846
A118: 108 | B118: DABUR | C118: 423 | D118: 428.87 | E118: 412.13 | F118: 401.27 | G118: 384.53 | H118: 439.73 | I118: 456.47 | J118: 467.33 | K118: 445.6 | L118: 418 | M118: 36.74758
A119: 109 | B119: DALBHARAT | C119: 503.75 | D119: 509.33 | E119: 483.52 | F119: 463.28 | G119: 437.47 | H119: 529.57 | I119: 555.38 | J119: 575.62 | K119: 535.15 | L119: 489.1 | M119: 1.38704
A120: 110 | B120: DBCORP | C120: 78.55 | D120: 78.80 | E120: 74.80 | F120: 71.05 | G120: 67.05 | H120: 82.55 | I120: 86.55 | J120: 90.30 | K120: 82.8 | L120: 75.05 | M120: 0.34504
A121: 111 | B121: DBL | C121: 227.9 | D121: 226.25 | E121: 216.65 | F121: 205.40 | G121: 195.80 | H121: 237.50 | I121: 247.10 | J121: 258.35 | K121: 235.85 | L121: 215 | M121: 1.95276
A122: 112 | B122: DCAL | C122: 48.45 | D122: 49.70 | E122: 46.60 | F122: 44.75 | G122: 41.65 | H122: 51.55 | I122: 54.65 | J122: 56.50 | K122: 52.8 | L122: 47.85 | M122: 3.03327
A123: 113 | B123: DCBBANK | C123: 89.5 | D123: 87.37 | E123: 85.23 | F123: 80.97 | G123: 78.83 | H123: 91.63 | I123: 93.77 | J123: 98.03 | K123: 89.5 | L123: 83.1 | M123: 6.81267
A124: 114 | B124: DCMSHRIRAM | C124: 203.85 | D124: 207.45 | E124: 198.90 | F124: 193.95 | G124: 185.40 | H124: 212.40 | I124: 220.95 | J124: 225.90 | K124: 216 | L124: 202.5 | M124: 0.54383
A125: 115 | B125: DEEPAKNTR | C125: 376 | D125: 386.83 | E125: 363.67 | F125: 351.33 | G125: 328.17 | H125: 399.17 | I125: 422.33 | J125: 434.67 | K125: 410 | L125: 374.5 | M125: 6.6124
A126: 116 | B126: DELTACORP | C126: 59.3 | D126: 59.20 | E126: 59.10 | F126: 58.90 | G126: 58.80 | H126: 59.40 | I126: 59.50 | J126: 59.70 | K126: 59.3 | L126: 59 | M126: 14.71875
A127: 117 | B127: DHFL | C127: 9.1 | D127: 9.10 | E127: 8.85 | F127: 8.60 | G127: 8.35 | H127: 9.35 | I127: 9.60 | J127: 9.85 | K127: 9.35 | L127: 8.85 | M127: 25.54393
A128: 118 | B128: DISHTV | C128: 4.45 | D128: 4.58 | E128: 4.32 | F128: 4.18 | G128: 3.92 | H128: 4.72 | I128: 4.98 | J128: 5.12 | K128: 4.85 | L128: 4.45 | M128: 49.3719
A129: 119 | B129: DIVISLAB | C129: 1862.55 | D129: 1872.43 | E129: 1814.87 | F129: 1767.18 | G129: 1709.62 | H129: 1920.12 | I129: 1977.68 | J129: 2025.37 | K129: 1930 | L129: 1824.75 | M129: 5.3884
A130: 120 | B130: DIXON | C130: 3391.35 | D130: 3409.13 | E130: 3319.27 | F130: 3247.18 | G130: 3157.32 | H130: 3481.22 | I130: 3571.08 | J130: 3643.17 | K130: 3499 | L130: 3337.05 | M130: 0.31874
A131: 121 | B131: DLF | C131: 138.75 | D131: 144.80 | E131: 130.75 | F131: 122.75 | G131: 108.70 | H131: 152.80 | I131: 166.85 | J131: 174.85 | K131: 158.85 | L131: 136.8 | M131: 144.70204
A132: 122 | B132: DMART | C132: 2079.7 | D132: 2074.82 | E132: 2055.88 | F132: 2032.07 | G132: 2013.13 | H132: 2098.63 | I132: 2117.57 | J132: 2141.38 | K132: 2093.75 | L132: 2051 | M132: 3.44155
A133: 123 | B133: DRREDDY | C133: 2916.5 | D133: 2936.52 | E133: 2826.08 | F133: 2735.67 | G133: 2625.23 | H133: 3026.93 | I133: 3137.37 | J133: 3227.78 | K133: 3046.95 | L133: 2846.1 | M133: 8.01588
A134: 124 | B134: ECLERX | C134: 373.75 | D134: 378.43 | E134: 367.92 | F134: 362.08 | G134: 351.57 | H134: 384.27 | I134: 394.78 | J134: 400.62 | K134: 388.95 | L134: 372.6 | M134: 0.22634
A135: 125 | B135: EDELWEISS | C135: 34.9 | D135: 34.90 | E135: 34.90 | F135: 34.90 | G135: 34.90 | H135: 34.90 | I135: 34.90 | J135: 34.90 | K135: 34.9 | L135: 34.9 | M135: 8.29178
A136: 126 | B136: EICHERMOT | C136: 14319.8 | D136: 14571.93 | E136: 13747.87 | F136: 13175.93 | G136: 12351.87 | H136: 15143.87 | I136: 15967.93 | J136: 16539.87 | K136: 15396 | L136: 14000 | M136: 1.10635
A137: 127 | B137: EIDPARRY | C137: 125.05 | D137: 126.37 | E137: 119.68 | F137: 114.32 | G137: 107.63 | H137: 131.73 | I137: 138.42 | J137: 143.78 | K137: 133.05 | L137: 121 | M137: 1.16268
A138: 128 | B138: EIHOTEL | C138: 66.7 | D138: 67.70 | E138: 64.10 | F138: 61.50 | G138: 57.90 | H138: 70.30 | I138: 73.90 | J138: 76.50 | K138: 71.3 | L138: 65.1 | M138: 0.95295
A139: 129 | B139: ELGIEQUIP | C139: 117.2 | D139: 119.08 | E139: 112.17 | F139: 107.13 | G139: 100.22 | H139: 124.12 | I139: 131.03 | J139: 136.07 | K139: 126 | L139: 114.05 | M139: 0.48203
A140: 130 | B140: EMAMILTD | C140: 156.4 | D140: 158.75 | E140: 147.65 | F140: 138.90 | G140: 127.80 | H140: 167.50 | I140: 178.60 | J140: 187.35 | K140: 169.85 | L140: 150 | M140: 11.93235
A141: 131 | B141: ENDURANCE | C141: 640.05 | D141: 647.30 | E141: 629.65 | F141: 619.25 | G141: 601.60 | H141: 657.70 | I141: 675.35 | J141: 685.75 | K141: 664.95 | L141: 636.9 | M141: 0.72436
A142: 132 | B142: ENGINERSIN | C142: 60.05 | D142: 60.55 | E142: 57.30 | F142: 54.55 | G142: 51.30 | H142: 63.30 | I142: 66.55 | J142: 69.30 | K142: 63.8 | L142: 57.8 | M142: 16.77332
A143: 133 | B143: EQUITAS | C143: 43.35 | D143: 44.57 | E143: 39.88 | F143: 36.42 | G143: 31.73 | H143: 48.03 | I143: 52.72 | J143: 56.18 | K143: 49.25 | L143: 41.1 | M143: 104.98248
A144: 134 | B144: ERIS | C144: 378.75 | D144: 380.30 | E144: 368.55 | F144: 358.35 | G144: 346.60 | H144: 390.50 | I144: 402.25 | J144: 412.45 | K144: 392.05 | L144: 370.1 | M144: 0.12278
A145: 135 | B145: ESCORTS | C145: 654.8 | D145: 676.02 | E145: 622.53 | F145: 590.27 | G145: 536.78 | H145: 708.28 | I145: 761.77 | J145: 794.03 | K145: 729.5 | L145: 643.75 | M145: 33.85412
A146: 136 | B146: ESSELPACK | C146: 155.9 | D146: 158.08 | E146: 150.27 | F146: 144.63 | G146: 136.82 | H146: 163.72 | I146: 171.53 | J146: 177.17 | K146: 165.9 | L146: 152.45 | M146: 1.22226
A147: 137 | B147: EXIDEIND | C147: 130.6 | D147: 129.98 | E147: 126.62 | F147: 122.63 | G147: 119.27 | H147: 133.97 | I147: 137.33 | J147: 141.32 | K147: 133.35 | L147: 126 | M147: 25.7289
A148: 138 | B148: FCONSUMER | C148: 8.05 | D148: 8.05 | E148: 8.05 | F148: 8.05 | G148: 8.05 | H148: 8.05 | I148: 8.05 | J148: 8.05 | K148: 8.05 | L148: 8.05 | M148: 4.03999
A149: 139 | B149: FDC | C149: 192.7 | D149: 193.55 | E149: 188.15 | F149: 183.60 | G149: 178.20 | H149: 198.10 | I149: 203.50 | J149: 208.05 | K149: 198.95 | L149: 189 | M149: 0.81032
A150: 140 | B150: FEDERALBNK | C150: 44.45 | D150: 44.93 | E150: 42.12 | F150: 39.78 | G150: 36.97 | H150: 47.27 | I150: 50.08 | J150: 52.42 | K150: 47.75 | L150: 42.6 | M150: 423.05101
A151: 141 | B151: FINCABLES | C151: 188.5 | D151: 188.20 | E151: 183.20 | F151: 177.90 | G151: 172.90 | H151: 193.50 | I151: 198.50 | J151: 203.80 | K151: 193.2 | L151: 182.9 | M151: 1.12497
A152: 142 | B152: FINEORG | C152: 1954.5 | D152: 1985.48 | E152: 1896.02 | F152: 1837.53 | G152: 1748.07 | H152: 2043.97 | I152: 2133.43 | J152: 2191.92 | K152: 2074.95 | L152: 1927 | M152: 0.09719
A153: 143 | B153: FINPIPE | C153: 377.2 | D153: 370.82 | E153: 361.38 | F153: 345.57 | G153: 336.13 | H153: 386.63 | I153: 396.07 | J153: 411.88 | K153: 380.25 | L153: 355 | M153: 0.2685
A154: 144 | B154: FLFL | C154: 130.65 | D154: 130.65 | E154: 130.65 | F154: 130.65 | G154: 130.65 | H154: 130.65 | I154: 130.65 | J154: 130.65 | K154: 130.65 | L154: 130.65 | M154: 0.11247
A155: 145 | B155: FMGOETZE | C155: 294.25 | D155: 302.42 | E155: 281.93 | F155: 269.62 | G155: 249.13 | H155: 314.73 | I155: 335.22 | J155: 347.53 | K155: 322.9 | L155: 290.1 | M155: 0.01374
A156: 146 | B156: FORTIS | C156: 128.95 | D156: 128.82 | E156: 125.13 | F156: 121.32 | G156: 117.63 | H156: 132.63 | I156: 136.32 | J156: 140.13 | K156: 132.5 | L156: 125 | M156: 18.97551
A157: 147 | B157: FRETAIL | C157: 86.7 | D157: 86.70 | E157: 86.70 | F157: 86.70 | G157: 86.70 | H157: 86.70 | I157: 86.70 | J157: 86.70 | K157: 86.7 | L157: 86.7 | M157: 1.83049
A158: 148 | B158: FSL | C158: 27.45 | D158: 27.92 | E158: 26.53 | F158: 25.62 | G158: 24.23 | H158: 28.83 | I158: 30.22 | J158: 31.13 | K158: 29.3 | L158: 27 | M158: 18.14683
A159: 149 | B159: GAIL | C159: 69.5 | D159: 71.25 | E159: 67.35 | F159: 65.20 | G159: 61.30 | H159: 73.40 | I159: 77.30 | J159: 79.45 | K159: 75.15 | L159: 69.1 | M159: 275.56638
A160: 150 | B160: GALAXYSURF | C160: 1136.55 | D160: 1205.27 | E160: 1061.28 | F160: 986.02 | G160: 842.03 | H160: 1280.53 | I160: 1424.52 | J160: 1499.78 | K160: 1349.25 | L160: 1130 | M160: 0.15788
A161: 151 | B161: GARFIBRES | C161: 1042.15 | D161: 1045.65 | E161: 1016.50 | F161: 990.85 | G161: 961.70 | H161: 1071.30 | I161: 1100.45 | J161: 1126.10 | K161: 1074.8 | L161: 1020 | M161: 0.10767
A162: 152 | B162: GAYAPROJ | C162: 8.55 | D162: 8.55 | E162: 8.55 | F162: 8.55 | G162: 8.55 | H162: 8.55 | I162: 8.55 | J162: 8.55 | K162: 8.55 | L162: 8.55 | M162: 0.49855
A163: 153 | B163: GEPIL | C163: 463.65 | D163: 467.33 | E163: 452.32 | F163: 440.98 | G163: 425.97 | H163: 478.67 | I163: 493.68 | J163: 505.02 | K163: 482.35 | L163: 456 | M163: 0.03856
A164: 154 | B164: GESHIP | C164: 199.4 | D164: 200.88 | E164: 190.87 | F164: 182.33 | G164: 172.32 | H164: 209.42 | I164: 219.43 | J164: 227.97 | K164: 210.9 | L164: 192.35 | M164: 0.30882
A165: 155 | B165: GET&D | C165: 70.8 | D165: 70.60 | E165: 68.45 | F165: 66.10 | G165: 63.95 | H165: 72.95 | I165: 75.10 | J165: 77.45 | K165: 72.75 | L165: 68.25 | M165: 0.21952
A166: 156 | B166: GHCL | C166: 81 | D166: 80.38 | E166: 79.77 | F166: 78.53 | G166: 77.92 | H166: 81.62 | I166: 82.23 | J166: 83.47 | K166: 81 | L166: 79.15 | M166: 2.84171
A167: 157 | B167: GICRE | C167: 99.05 | D167: 98.37 | E167: 97.68 | F167: 96.32 | G167: 95.63 | H167: 99.73 | I167: 100.42 | J167: 101.78 | K167: 99.05 | L167: 97 | M167: 1.41435
A168: 158 | B168: GILLETTE | C168: 5235.05 | D168: 5214.72 | E168: 5070.33 | F168: 4905.62 | G168: 4761.23 | H168: 5379.43 | I168: 5523.82 | J168: 5688.53 | K168: 5359.1 | L168: 5050 | M168: 0.05239
A169: 159 | B169: GLAXO | C169: 1179.55 | D169: 1182.97 | E169: 1118.63 | F169: 1057.72 | G169: 993.38 | H169: 1243.88 | I169: 1308.22 | J169: 1369.13 | K169: 1247.3 | L169: 1122.05 | M169: 0.3741
A170: 160 | B170: GLENMARK | C170: 199.15 | D170: 204.13 | E170: 192.07 | F170: 184.98 | G170: 172.92 | H170: 211.22 | I170: 223.28 | J170: 230.37 | K170: 216.2 | L170: 197.05 | M170: 23.1255
A171: 161 | B171: GMDCLTD | C171: 29.85 | D171: 30.85 | E171: 28.45 | F171: 27.05 | G171: 24.65 | H171: 32.25 | I171: 34.65 | J171: 36.05 | K171: 33.25 | L171: 29.45 | M171: 9.21225
A172: 162 | B172: GMRINFRA | C172: 15.9 | D172: 16.17 | E172: 15.33 | F172: 14.77 | G172: 13.93 | H172: 16.73 | I172: 17.57 | J172: 18.13 | K172: 17 | L172: 15.6 | M172: 162.81633
A173: 163 | B173: GNFC | C173: 106.25 | D173: 108.62 | E173: 102.83 | F173: 99.42 | G173: 93.63 | H173: 112.03 | I173: 117.82 | J173: 121.23 | K173: 114.4 | L173: 105.2 | M173: 5.64713
A174: 164 | B174: GODFRYPHLP | C174: 918.1 | D174: 932.70 | E174: 875.40 | F174: 832.70 | G174: 775.40 | H174: 975.40 | I174: 1032.70 | J174: 1075.40 | K174: 990 | L174: 890 | M174: 0.72861
A175: 165 | B175: GODREJAGRO | C175: 312.75 | D175: 322.33 | E175: 295.62 | F175: 278.48 | G175: 251.77 | H175: 339.47 | I175: 366.18 | J175: 383.32 | K175: 349.05 | L175: 305.2 | M175: 1.23637
A176: 166 | B176: GODREJCP | C176: 499.45 | D176: 499.12 | E176: 480.93 | F176: 462.42 | G176: 444.23 | H176: 517.63 | I176: 535.82 | J176: 554.33 | K176: 517.3 | L176: 480.6 | M176: 25.79284
A177: 167 | B177: GODREJIND | C177: 284.3 | D177: 291.77 | E177: 273.53 | F177: 262.77 | G177: 244.53 | H177: 302.53 | I177: 320.77 | J177: 331.53 | K177: 310 | L177: 281 | M177: 4.31254
A178: 168 | B178: GODREJPROP | C178: 690.45 | D178: 699.52 | E178: 651.28 | F178: 612.12 | G178: 563.88 | H178: 738.68 | I178: 786.92 | J178: 826.08 | K178: 747.75 | L178: 660.35 | M178: 3.21435
A179: 169 | B179: GPPL | C179: 53.15 | D179: 53.00 | E179: 51.00 | F179: 48.85 | G179: 46.85 | H179: 55.15 | I179: 57.15 | J179: 59.30 | K179: 55 | L179: 50.85 | M179: 2.35889
A180: 170 | B180: GRANULES | C180: 145.9 | D180: 141.83 | E180: 134.67 | F180: 123.43 | G180: 116.27 | H180: 153.07 | I180: 160.23 | J180: 171.47 | K180: 149 | L180: 130.6 | M180: 28.63893
A181: 171 | B181: GRAPHITE | C181: 117.5 | D181: 116.10 | E181: 114.70 | F181: 111.90 | G181: 110.50 | H181: 118.90 | I181: 120.30 | J181: 123.10 | K181: 117.5 | L181: 113.3 | M181: 4.79669
A182: 172 | B182: GRASIM | C182: 460.9 | D182: 467.18 | E182: 440.57 | F182: 420.23 | G182: 393.62 | H182: 487.52 | I182: 514.13 | J182: 534.47 | K182: 493.8 | L182: 446.85 | M182: 20.20718
A183: 173 | B183: GREAVESCOT | C183: 72.9 | D183: 75.48 | E183: 69.47 | F183: 66.03 | G183: 60.02 | H183: 78.92 | I183: 84.93 | J183: 88.37 | K183: 81.5 | L183: 72.05 | M183: 2.6032
A184: 174 | B184: GRINDWELL | C184: 458 | D184: 459.22 | E184: 443.43 | F184: 428.87 | G184: 413.08 | H184: 473.78 | I184: 489.57 | J184: 504.13 | K184: 475 | L184: 444.65 | M184: 0.38516
A185: 175 | B185: GSFC | C185: 34.9 | D185: 35.70 | E185: 33.70 | F185: 32.50 | G185: 30.50 | H185: 36.90 | I185: 38.90 | J185: 40.10 | K185: 37.7 | L185: 34.5 | M185: 5.06788
A186: 176 | B186: GSPL | C186: 164.45 | D186: 164.87 | E186: 158.98 | F186: 153.52 | G186: 147.63 | H186: 170.33 | I186: 176.22 | J186: 181.68 | K186: 170.75 | L186: 159.4 | M186: 8.38356
A187: 177 | B187: GUJALKALI | C187: 211.4 | D187: 216.10 | E187: 205.20 | F187: 199.00 | G187: 188.10 | H187: 222.30 | I187: 233.20 | J187: 239.40 | K187: 227 | L187: 209.9 | M187: 0.52733
A188: 178 | B188: GUJGASLTD | C188: 228.3 | D188: 230.95 | E188: 222.90 | F188: 217.50 | G188: 209.45 | H188: 236.35 | I188: 244.40 | J188: 249.80 | K188: 239 | L188: 225.55 | M188: 8.61068
A189: 179 | B189: GULFOILLUB | C189: 527.9 | D189: 521.67 | E189: 512.23 | F189: 496.57 | G189: 487.13 | H189: 537.33 | I189: 546.77 | J189: 562.43 | K189: 531.1 | L189: 506 | M189: 0.11664
A190: 180 | B190: HAL | C190: 525.15 | D190: 540.08 | E190: 485.17 | F190: 445.18 | G190: 390.27 | H190: 580.07 | I190: 634.98 | J190: 674.97 | K190: 595 | L190: 500.1 | M190: 1.30558
A191: 181 | B191: HATSUN | C191: 535.4 | D191: 542.00 | E191: 487.00 | F191: 438.60 | G191: 383.60 | H191: 590.40 | I191: 645.40 | J191: 693.80 | K191: 597 | L191: 493.6 | M191: 0.14658
A192: 182 | B192: HAVELLS | C192: 511.15 | D192: 505.70 | E192: 492.00 | F192: 472.85 | G192: 459.15 | H192: 524.85 | I192: 538.55 | J192: 557.70 | K192: 519.4 | L192: 486.55 | M192: 38.22048
A193: 183 | B193: HCLTECH | C193: 430.65 | D193: 436.20 | E193: 414.95 | F193: 399.25 | G193: 378.00 | H193: 451.90 | I193: 473.15 | J193: 488.85 | K193: 457.45 | L193: 420.5 | M193: 91.51132
A194: 184 | B194: HDFC | C194: 1754 | D194: 1771.23 | E194: 1692.82 | F194: 1631.63 | G194: 1553.22 | H194: 1832.42 | I194: 1910.83 | J194: 1972.02 | K194: 1849.65 | L194: 1710.05 | M194: 90.48464
A195: 185 | B195: HDFCAMC | C195: 2083.45 | D195: 2134.47 | E195: 2018.98 | F195: 1954.52 | G195: 1839.03 | H195: 2198.93 | I195: 2314.42 | J195: 2378.88 | K195: 2249.95 | L195: 2070 | M195: 6.7687
A196: 186 | B196: HDFCBANK | C196: 904.45 | D196: 921.73 | E196: 854.82 | F196: 805.18 | G196: 738.27 | H196: 971.37 | I196: 1038.28 | J196: 1087.92 | K196: 988.65 | L196: 872.1 | M196: 276.19436
A197: 187 | B197: HDFCLIFE | C197: 441 | D197: 454.93 | E197: 426.07 | F197: 411.13 | G197: 382.27 | H197: 469.87 | I197: 498.73 | J197: 513.67 | K197: 483.8 | L197: 440 | M197: 144.40644
A198: 188 | B198: HEG | C198: 459.6 | D198: 471.57 | E198: 438.13 | F198: 416.67 | G198: 383.23 | H198: 493.03 | I198: 526.47 | J198: 547.93 | K198: 505 | L198: 450.1 | M198: 1.61598
A199: 189 | B199: HEIDELBERG | C199: 142.1 | D199: 145.05 | E199: 137.15 | F199: 132.20 | G199: 124.30 | H199: 150.00 | I199: 157.90 | J199: 162.85 | K199: 152.95 | L199: 140.1 | M199: 2.54863
A200: 190 | B200: HERITGFOOD | C200: 205.8 | D200: 203.48 | E200: 197.32 | F200: 188.83 | G200: 182.67 | H200: 211.97 | I200: 218.13 | J200: 226.62 | K200: 209.65 | L200: 195 | M200: 0.57207
A201: 191 | B201: HEROMOTOCO | C201: 1661.2 | D201: 1710.72 | E201: 1591.08 | F201: 1520.97 | G201: 1401.33 | H201: 1780.83 | I201: 1900.47 | J201: 1970.58 | K201: 1830.35 | L201: 1640.6 | M201: 15.15015
A202: 192 | B202: HEXAWARE | C202: 215.05 | D202: 222.32 | E202: 205.73 | F202: 196.42 | G202: 179.83 | H202: 231.63 | I202: 248.22 | J202: 257.53 | K202: 238.9 | L202: 213 | M202: 2.81811
A203: 193 | B203: HFCL | C203: 9.05 | D203: 9.30 | E203: 8.70 | F203: 8.35 | G203: 7.75 | H203: 9.65 | I203: 10.25 | J203: 10.60 | K203: 9.9 | L203: 8.95 | M203: 23.66206
A204: 194 | B204: HIMATSEIDE | C204: 56.6 | D204: 55.58 | E204: 53.97 | F204: 51.33 | G204: 49.72 | H204: 58.22 | I204: 59.83 | J204: 62.47 | K204: 57.2 | L204: 52.95 | M204: 0.9878
A205: 195 | B205: HINDALCO | C205: 91.55 | D205: 93.72 | E205: 88.13 | F205: 84.72 | G205: 79.13 | H205: 97.13 | I205: 102.72 | J205: 106.13 | K205: 99.3 | L205: 90.3 | M205: 91.59047
A206: 196 | B206: HINDCOPPER | C206: 20.85 | D206: 21.20 | E206: 20.20 | F206: 19.55 | G206: 18.55 | H206: 21.85 | I206: 22.85 | J206: 23.50 | K206: 22.2 | L206: 20.55 | M206: 9.60632
... 321 more rows

Sheet Bulk Deals
E6: Back To Main Page
A7: Subject : | B7: BULK DEAL | D7: =Main!B10 -> 2020-03-30
A9: Date | B9: Scrip code | C9: Scrip Name | D9: Client Name | E9: Buy / Sell | F9: Quantity Traded | G9: Trade Price / Wt.Avg.trade price | H9: Exchange
A10: 2020-03-27 | B10: 541152 | C10: ADVITIYA | D10: JYOJAI48 | E10: SELL | F10: 74,000 | G10: 27.02 | H10: BSE
A11: 2020-03-27 | B11: 541152 | C11: ADVITIYA | D11: SURENDER KUMAR | E11: BUY | F11: 52,000 | G11: 26.6 | H11: BSE
A12: 2020-03-27 | B12: 537766 | C12: BCP | D12: AGARWAL THERMOPAC INDIA LLP | E12: BUY | F12: 713,629 | G12: 12.55 | H12: BSE
A13: 2020-03-27 | B13: 537766 | C13: BCP | D13: BIPIN SHANTILAL SHAH | E13: SELL | F13: 461,000 | G13: 12.55 | H13: BSE
A14: 2020-03-27 | B14: 526546 | C14: CHOKSILA | D14: SANGITA GUPTA | E14: BUY | F14: 80,000 | G14: 8 | H14: BSE
A15: 2020-03-27 | B15: 526546 | C15: CHOKSILA | D15: SANJAY KUMAR MUNJE | E15: SELL | F15: 80,000 | G15: 8 | H15: BSE
A16: 2020-03-27 | B16: 540596 | C16: ERIS | D16: HIMANSHU JAYANTBHAI SHAH | E16: SELL | F16: 1,900,000 | G16: 360.01 | H16: BSE
A17: 2020-03-27 | B17: 540596 | C17: ERIS | D17: EMERALD INVESTMENTS LIMITED | E17: BUY | F17: 1,794,139 | G17: 360 | H17: BSE
A18: 2020-03-27 | B18: 540777 | C18: HDFCLIFE | D18: STANDARD LIFE (MAURITIUS HOLDINGS) 2006 LTD | E18: SELL | F18: 50,000,000 | G18: 441.24 | H18: BSE
A19: 2020-03-27 | B19: 541627 | C19: HITECHWIND | D19: KIRTI AMRUTLAL GAJRA (HUF) | E19: BUY | F19: 27,739 | G19: 12.3 | H19: BSE
A20: 2020-03-27 | B20: 541233 | C20: LEMONTREE | D20: WF ASIAN RECONNAISSANCE FUND LIMITED | E20: BUY | F20: 5,167,305 | G20: 23.64 | H20: BSE
A21: 2020-03-27 | B21: 500284 | C21: LORDSCHLO | D21: BHAVYA SAHNI | E21: SELL | F21: 407,050 | G21: 18.36 | H21: BSE
A22: 2020-03-27 | B22: 500284 | C22: LORDSCHLO | D22: YUVRAJ AHUJA | E22: BUY | F22: 408,949 | G22: 18.36 | H22: BSE
A23: 2020-03-27 | B23: 539938 | C23: MIL | D23: SILKON TRADES LLP | E23: BUY | F23: 31,627 | G23: 15.55 | H23: BSE
A24: 2020-03-27 | B24: 539938 | C24: MIL | D24: RAMNARESH DASHADEEN NIRMAL | E24: SELL | F24: 30,000 | G24: 15.55 | H24: BSE
A25: 2020-03-27 | B25: 524654 | C25: NATCAPSUQ | D25: CHARTERED FINANCE AND LEASING LTD | E25: BUY | F25: 50,000 | G25: 36.7 | H25: BSE
A26: 2020-03-27 | B26: 524654 | C26: NATCAPSUQ | D26: SANJAY KOTHARI | E26: SELL | F26: 50,000 | G26: 36.7 | H26: BSE
A27: 2020-03-27 | B27: 539116 | C27: OPCHAINS | D27: ASHOK KUMAR GOYAL | E27: BUY | F27: 110,000 | G27: 11 | H27: BSE
A28: 2020-03-27 | B28: 539116 | C28: OPCHAINS | D28: SHIVAM GOYAL | E28: BUY | F28: 200,000 | G28: 11 | H28: BSE
A29: 2020-03-27 | B29: 539116 | C29: OPCHAINS | D29: A. G. SHARES AND SECURITIES LIMITED | E29: SELL | F29: 295,000 | G29: 11 | H29: BSE
A30: 2020-03-27 | B30: 506852 | C30: PACL | D30: HDFC BANK LIMITED | E30: SELL | F30: 141,919 | G30: 25.5 | H30: BSE
A31: 2020-03-27 | B31: 541601 | C31: RAJNISH | D31: SHRI MAHALAXMI AGRICULTURAL DEVELOPMENTS LIMITED | E31: BUY | F31: 66,000 | G31: 19.6 | H31: BSE
A32: 2020-03-27 | B32: 541601 | C32: RAJNISH | D32: SUMIT KUMAR RAMESH GUPTA | E32: SELL | F32: 66,000 | G32: 19.6 | H32: BSE
A33: 2020-03-27 | B33: 541945 | C33: RANJEET | D33: AUMIT CAPITAL ADVISORS LIMITED | E33: BUY | F33: 60,000 | G33: 20 | H33: BSE
A34: 2020-03-27 | B34: 500325 | C34: RELIANCE | D34: TATTVAM ENTERPRISES LLP | E34: BUY | F34: 76,735,388 | G34: 1056 | H34: BSE
A35: 2020-03-27 | B35: 500325 | C35: RELIANCE | D35: DEVARSHI COMMERCIALS LLP | E35: SELL | F35: 86,552,244 | G35: 1056.61 | H35: BSE
A36: 2020-03-27 | B36: 543171 | C36: ROJL | D36: ARVINDBHAI BABULAL SANGHAVI | E36: SELL | F36: 15,000 | G36: 36 | H36: BSE
A37: 2020-03-27 | B37: 543171 | C37: ROJL | D37: BEELINE BROKING LIMITED | E37: SELL | F37: 21,000 | G37: 36 | H37: BSE
A38: 2020-03-27 | B38: 526407 | C38: RPIL | D38: FEMELLA FASHIONS LIMITED | E38: BUY | F38: 78,688 | G38: 7.99 | H38: BSE
A39: 2020-03-27 | B39: 526407 | C39: RPIL | D39: HEMANT SOOD HUF | E39: SELL | F39: 80,000 | G39: 7.99 | H39: BSE
A40: 2020-03-27 | B40: 517548 | C40: STARLITE | D40: PUSHPATEKCHANDANI | E40: BUY | F40: 100,400 | G40: 2.43 | H40: BSE
A41: 2020-03-27 | B41: 517548 | C41: STARLITE | D41: JAMNA DEVI | E41: SELL | F41: 108,700 | G41: 2.43 | H41: BSE
A42: 2020-03-27 | B42: AAKASH | C42: Aakash Exploration Ser L | D42: SACHIN AMRUTLAL PARMAR | E42: BUY | F42: 105,000 | G42: 33.15 | H42: NSE
A43: 2020-03-27 | B43: AAKASH | C43: Aakash Exploration Ser L | D43: ABHIK NARENDRABHAI PATEL | E43: BUY | F43: 150,000 | G43: 33.15 | H43: NSE
A44: 2020-03-27 | B44: BIL | C44: Bhartiya Intl Limited | D44: BHARTIYA GLOBAL VENTURES PRIVATE LIMITED | E44: BUY | F44: 65,000 | G44: 73.1 | H44: NSE
A45: 2020-03-27 | B45: GANECOS | C45: Ganesha Ecosphere Limited | D45: SANGEETA PAREEKH | E45: BUY | F45: 216,950 | G45: 149.23 | H45: NSE
A46: 2020-03-27 | B46: GANECOS | C46: Ganesha Ecosphere Limited | D46: SECUROCROP SEC. INDIA ( P) LTD. | E46: BUY | F46: 3 | G46: 149.9 | H46: NSE
A47: 2020-03-27 | B47: GREENPOWER | C47: Orient Green Power Co Ltd | D47: INTELENT DATA SCIENCES PRIVATE LIMITED | E47: BUY | F47: 23,329,142 | G47: 1.3 | H47: NSE
A48: 2020-03-27 | B48: IBULHSGFIN | C48: Indiabulls Hsg Fin Ltd | D48: TOWER RESEARCH CAPITAL MARKETS INDIA PRIVATE LIMITED | E48: BUY | F48: 3,854,612 | G48: 97.82 | H48: NSE
A49: 2020-03-27 | B49: INFIBEAM | C49: Infibeam Avenues Limited | D49: RAVI OMPRAKASH AGRAWAL | E49: BUY | F49: 5,270,180 | G49: 34.1 | H49: NSE
A50: 2020-03-27 | B50: JUSTDIAL | C50: Justdial Ltd. | D50: HRTI PRIVATE LIMITED | E50: BUY | F50: 428,218 | G50: 296.29 | H50: NSE
A51: 2020-03-27 | B51: KAYA | C51: Kaya Limited | D51: INVESTMENTS DERIVE | E51: BUY | F51: 95,032 | G51: 103.59 | H51: NSE
A52: 2020-03-27 | B52: KHFM | C52: KHFM Hos Fac Mana Ser Ltd | D52: PRATAY NIVESH (P) LTD | E52: BUY | F52: 78,000 | G52: 27.6 | H52: NSE
A53: 2020-03-27 | B53: MAHASTEEL | C53: Mahamaya Steel Inds Ltd | D53: AGRAWAL RAJESH | E53: BUY | F53: 74,900 | G53: 67.19 | H53: NSE
A54: 2020-03-27 | B54: MATRIMONY | C54: Matrimony.Com Limited | D54: MARATHON EDGE PARTNERS LLP | E54: BUY | F54: 388,000 | G54: 280 | H54: NSE
A55: 2020-03-27 | B55: MCX | C55: Multi Commodity Exchange | D55: WF ASIAN SMALLER COMPANIES FUND LIMITED | E55: BUY | F55: 300,000 | G55: 1044.65 | H55: NSE
A56: 2020-03-27 | B56: NCC | C56: NCC Limited | D56: TOWER RESEARCH CAPITAL MARKETS INDIA PRIVATE LIMITED | E56: BUY | F56: 3,691,310 | G56: 18.37 | H56: NSE
A57: 2020-03-27 | B57: NCC | C57: NCC Limited | D57: HRTI PRIVATE LIMITED | E57: BUY | F57: 3,461,198 | G57: 18.05 | H57: NSE
A58: 2020-03-27 | B58: SIMPLEXINF | C58: Simplex Infrastructures L | D58: ALPHA LEON ENTERPRISES LLP | E58: BUY | F58: 717,057 | G58: 20.2 | H58: NSE
A59: 2020-03-27 | B59: SONISOYA | C59: Soni Soya Product Limited | D59: SANGITA GUPTA | E59: BUY | F59: 96,000 | G59: 4.9 | H59: NSE
A60: 2020-03-27 | B60: SUPRAJIT | C60: Suprajit Engineering Limi | D60: HDFC MUTUAL FUND (HDFC SMALL AND MID CAP FUND) | E60: BUY | F60: 3,000,000 | G60: 122 | H60: NSE
A61: 2020-03-27 | B61: USHAMART | C61: Usha Martin Limited | D61: NEUTRAL PUBLISHING HOUSE LTD | E61: BUY | F61: 2,227,912 | G61: 13.67 | H61: NSE
A62: 2020-03-27 | B62: AAKASH | C62: Aakash Exploration Ser L | D62: MEHTA ATULBHAI AMRATLAL HUF | E62: SELL | F62: 216,000 | G62: 33.15 | H62: NSE
A63: 2020-03-27 | B63: AAKASH | C63: Aakash Exploration Ser L | D63: MEHTA ATULKUMAR AMRITLAL HUF | E63: SELL | F63: 69,000 | G63: 33.15 | H63: NSE
A64: 2020-03-27 | B64: APOLLOPIPE | C64: Apollo Pipes Limited | D64: SAKET AGRAWAL | E64: SELL | F64: 137,102 | G64: 265 | H64: NSE
A65: 2020-03-27 | B65: BIL | C65: Bhartiya Intl Limited | D65: SILVERLINE TRADERS | E65: SELL | F65: 65,000 | G65: 73.1 | H65: NSE
A66: 2020-03-27 | B66: GANECOS | C66: Ganesha Ecosphere Limited | D66: SECUROCROP SEC. INDIA ( P) LTD. | E66: SELL | F66: 218,537 | G66: 149.27 | H66: NSE
A67: 2020-03-27 | B67: GREENPOWER | C67: Orient Green Power Co Ltd | D67: EDELWEISS MULTI STRATEGY FUNDS MANAGEMENT PRIVATE LIMITED | E67: SELL | F67: 23,334,718 | G67: 1.3 | H67: NSE
A68: 2020-03-27 | B68: IBULHSGFIN | C68: Indiabulls Hsg Fin Ltd | D68: TOWER RESEARCH CAPITAL MARKETS INDIA PRIVATE LIMITED | E68: SELL | F68: 3,642,421 | G68: 98.3 | H68: NSE
A69: 2020-03-27 | B69: INFIBEAM | C69: Infibeam Avenues Limited | D69: L7 HITECH PRIVATE LIMITED | E69: SELL | F69: 8,000,000 | G69: 34.91 | H69: NSE
A70: 2020-03-27 | B70: JUSTDIAL | C70: Justdial Ltd. | D70: HRTI PRIVATE LIMITED | E70: SELL | F70: 428,218 | G70: 296.46 | H70: NSE
A71: 2020-03-27 | B71: KHFM | C71: KHFM Hos Fac Mana Ser Ltd | D71: GUPTA RAJKUMAR RADHAKRISHNA | E71: SELL | F71: 78,000 | G71: 27.6 | H71: NSE
A72: 2020-03-27 | B72: MAHASTEEL | C72: Mahamaya Steel Inds Ltd | D72: AGRAWAL RAMANAND | E72: SELL | F72: 74,621 | G72: 67.17 | H72: NSE
A73: 2020-03-27 | B73: MATRIMONY | C73: Matrimony.Com Limited | D73: GOLDMAN SACHS INDIA LTD | E73: SELL | F73: 484,902 | G73: 280.02 | H73: NSE
A74: 2020-03-27 | B74: NCC | C74: NCC Limited | D74: TOWER RESEARCH CAPITAL MARKETS INDIA PRIVATE LIMITED | E74: SELL | F74: 3,622,285 | G74: 18.33 | H74: NSE
A75: 2020-03-27 | B75: NCC | C75: NCC Limited | D75: HRTI PRIVATE LIMITED | E75: SELL | F75: 3,461,198 | G75: 18.09 | H75: NSE
A76: 2020-03-27 | B76: SANCO | C76: Sanco Industries Ltd. | D76: MILAN CHANDRAKANTBHAI DOBARIYA | E76: SELL | F76: 51,755 | G76: 7.05 | H76: NSE
A77: 2020-03-27 | B77: SIMPLEXINF | C77: Simplex Infrastructures L | D77: RAJDAN PANKAJ JAWAHARLAL | E77: SELL | F77: 300,000 | G77: 20.2 | H77: NSE
A78: 2020-03-27 | B78: SIMPLEXINF | C78: Simplex Infrastructures L | D78: ALPHA LEON ENTERPRISES LLP | E78: SELL | F78: 217,312 | G78: 21.2 | H78: NSE
A79: 2020-03-27 | B79: SONISOYA | C79: Soni Soya Product Limited | D79: SANJAY KUMAR MUNJE | E79: SELL | F79: 96,000 | G79: 4.9 | H79: NSE
A80: 2020-03-27 | B80: SUPRAJIT | C80: Suprajit Engineering Limi | D80: CAISSE DE DEPOT ET PLACEMENT DU QUEBEC | E80: SELL | F80: 703,001 | G80: 122 | H80: NSE
A81: 2020-03-27 | B81: SUPRAJIT | C81: Suprajit Engineering Limi | D81: THE SCOTTISH ORIENTAL SMALLER COMPANIES TRUST PLC SOSC | E81: SELL | F81: 995,880 | G81: 122 | H81: NSE
A82: 2020-03-27 | B82: SUPRAJIT | C82: Suprajit Engineering Limi | D82: FIRST STATE INDIAN SUBCONTINENT FUND | E82: SELL | F82: 1,287,641 | G82: 122 | H82: NSE

Sheet Call Tracker (Equity & F&O)
M5: Back To Main Page
A6: Retail Research Technical Calls & Fundamental Performance Report for the month of March-2020
M7: =Main!B10 -> 2020-03-30
B8: Positional Call
A9: Sr.no | B9: Date | D9: Company | E9: Rec | F9: Rec Price | G9: Stop Loss*** | H9: Call Closed At | I9: Target | J9: Remark | K9: Profit / Loss per Share | L9: Gain / Loss % | M9: Status | N9: Closed Date | O9: NSE Closed Price
A10: 1 | B10: 2020-02-04 | D10: MARICO<> | E10: Buy | F10: 303.75 | G10: 287.8 | H10: 286 | I10: 335-345 | J10: Loss of Rs.17.75/- | K10: =H10-F10 -> -17.75 | L10: =K10/F10 -> -5.84% | M10: Unsuccessful | N10: 2020-03-06 | R10: R
A11: 2 | B11: 2020-02-05 | D11: FINPIPE{} | E11: Buy | F11: 552 | G11: 518 | H11: 558 | I11: 600-630 | J11: Profit of Rs.6/- | K11: =H11-F11 -> 6 | L11: =K11/F11 -> 1.09% | M11: Successful | N11: 2020-03-06 | R11: H
A12: 3 | B12: 2020-02-05 | D12: IOC{} | E12: Buy | F12: 114 | G12: 107 | H12: 110 | I12: 124-128 | J12: Loss of Rs.4/- | K12: -4 | L12: -3.51% | M12: Unsuccessful | N12: 2020-03-06 | R12: H
A13: 4 | B13: 2020-02-26 | D13: TITAN | E13: Buy | F13: 1260 | G13: 1189 | H13: 1180 | I13: 1350-1400 | J13: Loss of Rs.145/- | K13: -80 | L13: -6.35% | M13: Unsuccessful | N13: 2020-03-12 | R13: H
A14: 5 | B14: 2020-02-26 | D14: WHIRLPOOL | E14: Buy | F14: 2245 | G14: 2145 | H14: 2100 | I14: 2430-2450 | J14: Loss of Rs.145/- | K14: =H14-F14 -> -145 | L14: =K14/F14 -> -6.46% | M14: Unsuccessful | N14: 2020-03-06 | R14: R
A15: 6 | B15: 2020-02-27 | D15: MARUTI | E15: Buy | F15: 6300 | G15: 6100 | H15: 6305 | I15: 6700 | J15: Profit of Rs.5/- | K15: =H15-F15 -> 5 | L15: =K15/F15 -> 0.08% | M15: Neutral | N15: 2020-03-02 | R15: A
A16: 7 | B16: 2020-02-27 | D16: JKPAPER<> | E16: Buy | F16: 117 | G16: 113 | H16: 112 | I16: 132-135 | J16: Loss of Rs.5/- | K16: -5 | L16: -4.27% | M16: Unsuccessful | N16: 2020-03-05 | R16: N
A17: 8 | B17: 2020-02-27 | D17: SUNPHARMA | E17: Buy | F17: 390 | G17: 370 | H17: 369 | I17: 430 | J17: Loss of Rs.21/- | K17: =H17-F17 -> -21 | L17: =K17/F17 -> -5.38% | M17: Unsuccessful | N17: 2020-03-02 | R17: A
A18: 9 | B18: 2020-02-27 | D18: HDFCLIFE | E18: Buy | F18: 566 | G18: 535 | H18: 531 | I18: 625 | J18: Loss of Rs.35/- | K18: -35 | L18: -6.18% | M18: Unsuccessful | N18: 2020-03-09 | R18: N
A19: 10 | B19: 2020-02-28 | D19: NTPC | E19: Buy | F19: 109 | G19: 102 | H19: 102 | I19: 125 | J19: Loss of Rs.7/- | K19: =H19-F19 -> -7 | L19: =K19/F19 -> -6.42% | M19: Unsuccessful | N19: 2020-03-09 | R19: R
A20: 11 | B20: 2020-03-02 | D20: M&M | E20: Buy | F20: 447.5 | G20: 420 | H20: 468 | I20: 490-500 | J20: Profit of Rs.20.50/- | K20: =H20-F20 -> 20.5 | L20: =K20/F20 -> 4.58% | M20: Successful | N20: 2020-03-02 | R20: N
A21: 12 | B21: 2020-03-02 | D21: MCDOWELL-N | E21: Buy | F21: 676 | G21: 645 | H21: 637.5 | I21: 730-750 | J21: Loss of Rs.38.5/- | K21: -38.5 | L21: -5.70% | M21: Unsuccessful | N21: 2020-03-09 | R21: H
A22: 13 | B22: 2020-03-03 | D22: ACC | E22: Buy | F22: 1310 | G22: 1260 | H22: 1250 | I22: 1400-1420 | J22: Loss of Rs.60/- | K22: -60 | L22: -4.58% | M22: Unsuccessful | N22: 2020-03-09 | R22: R
A23: 14 | B23: 2020-03-03 | D23: FEDERALBNK | E23: Buy | F23: 84.2 | G23: 79.7 | H23: 78 | I23: 91-93 | J23: Loss of Rs.6.20/- | K23: -6.2 | L23: -7.36% | M23: Unsuccessful | N23: 2020-03-09 | R23: R
A24: 15 | B24: 2020-03-03 | D24: ULTRACEMCO{} | E24: Buy | F24: 4165 | G24: 3930 | H24: 4065 | I24: 4600-4800 | J24: Loss of Rs.100/- | K24: =H24-F24 -> -100 | L24: =K24/F24 -> -2.40% | M24: Successful | N24: 2020-03-12 | R24: H
A25: 16 | B25: 2020-03-03 | D25: VIPIND | E25: Buy | F25: 397.5 | G25: 378.3 | H25: 372 | I25: 338-442 | J25: Loss of Rs.25.50/- | K25: -25.5 | L25: -6.42% | M25: Unsuccessful | N25: 2020-03-09 | R25: R
A26: 17 | B26: 2020-03-04 | D26: NH | E26: Buy | F26: 320.5 | G26: 303 | H26: 302.5 | I26: 350-360 | J26: Loss of Rs.18/- | K26: =H26-F26 -> -18 | L26: =K26/F26 -> -5.62% | M26: Unsuccessful | N26: 2020-03-12 | R26: R
A27: 18 | B27: 2020-03-04 | D27: BIRLACORPN | E27: Buy | F27: 697.5 | G27: 648 | H27: 650 | I27: 790-810 | J27: Loss of Rs.47.50/- | K27: =H27-F27 -> -47.5 | L27: =K27/F27 -> -6.81% | M27: Unsuccessful | N27: 2020-03-12 | R27: H
A28: 19 | B28: 2020-03-04 | D28: AMARAJABAT | E28: Buy | F28: 631 | G28: 590 | H28: 580 | I28: 690-700 | J28: Loss of Rs.51/- | K28: =H28-F28 -> -51 | L28: =K28/F28 -> -8.08% | M28: Unsuccessful | N28: 2020-03-12 | R28: N
A29: 20 | B29: 2020-03-11 | D29: HDFC{} | E29: Buy | F29: 2000 | G29: 1890 | H29: 1928.75 | I29: 2150-2250 | J29: Loss of Rs. 71.25/- | K29: =H29-F29 -> -71.25 | L29: =K29/F29 -> -3.56% | M29: Unsuccessful | N29: 2020-03-13 | R29: H
A30: 21 | B30: 2020-03-11 | D30: AXISBANK | E30: Buy | F30: 625 | G30: 590 | H30: 595 | I30: 670-680 | J30: Loss of Rs.30/- | K30: -30 | L30: -4.80% | M30: Unsuccessful | N30: 2020-03-12 | R30: H
A31: 22 | B31: 2020-03-11 | D31: M&M | E31: Buy | F31: 457 | G31: 430 | H31: 430 | I31: 500-520 | J31: Loss of Rs.27/- | K31: =H31-F31 -> -27 | L31: =K31/F31 -> -5.91% | M31: Unsuccessful | N31: 2020-03-12 | R31: N
A32: 23 | B32: 2020-03-11 | D32: TCS | E32: Buy | F32: 1982.5 | G32: 1880 | H32: 1860 | I32: 2180-2200 | J32: Loss of Rs.122.5/- | K32: =H32-F32 -> -122.5 | L32: =K32/F32 -> -6.18% | M32: Unsuccessful | N32: 2020-03-12 | R32: A
A33: 24 | B33: 2020-03-12 | D33: HDFCBANK | E33: Buy | F33: 1045 | G33: 990 | H33: 990 | I33: 1150-1170 | J33: Loss of Rs. 55/- | K33: -55 | L33: -5.26% | M33: Unsuccessful | N33: 2020-03-13 | R33: H
A34: 25 | B34: 2020-03-16 | D34: HDFCBANK | E34: Buy | F34: 1000 | G34: 920 | H34: 1030 | I34: 1130-1170 | J34: Profit of Rs.30/- | K34: 30 | L34: 3.00% | M34: Successful | N34: 2020-03-16 | R34: H
A35: 26 | B35: 2020-03-16 | D35: MGL | E35: Buy | F35: 885 | G35: 810 | H35: 815 | I35: 1050 | J35: Loss of Rs. 70/- | K35: =H35-F35 -> -70 | L35: =K35/F35 -> -7.91% | M35: Unsuccessful | N35: 2020-03-18 | R35: N
A36: 27 | B36: 2020-03-17 | D36: HDFCBANK | E36: Buy | F36: 1000 | G36: 920 | H36: 920 | I36: 1130-1170 | J36: Loss of Rs.80/- | K36: =H36-F36 -> -80 | L36: =K36/F36 -> -8.00% | M36: Unsuccessful | N36: 2020-03-18 | R36: H
A37: 28 | B37: 2020-03-17 | D37: HDFC | E37: Buy | F37: 1850 | G37: 1725 | H37: 1710 | I37: 2050-2100 | J37: Loss of Rs. 140/- | K37: -140 | L37: -7.57% | M37: Unsuccessful | N37: 2020-03-18 | R37: H
A38: 29 | B38: 2020-03-17 | D38: ACC | E38: Buy | F38: 1115 | G38: 1030 | H38: 1152.5 | I38: 1200-1220 | J38: Profit of Rs.37.5/- | K38: =H38-F38 -> 37.5 | L38: =K38/F38 -> 3.36% | M38: Successful | N38: 2020-03-17 | R38: N
A39: 30 | B39: 2020-03-17 | D39: BATAINDIA | E39: Buy | F39: 1307.5 | G39: 1190 | H39: 1360 | I39: 1550-1600 | J39: Profit of Rs.52.5/- | K39: =H39-F39 -> 52.5 | L39: =K39/F39 -> 4.02% | M39: Successful | N39: 2020-03-17 | R39: H
A40: 31 | B40: 2020-03-17 | D40: COLPAL | E40: Buy | F40: 1170 | G40: 1090 | H40: 1090 | I40: 1300-1350 | J40: Loss of Rs. 80/- | K40: -80 | L40: -6.84% | M40: Unsuccessful | N40: 2020-03-19 | R40: N
A41: 32 | B41: 2020-03-17 | D41: IGL | E41: Buy | F41: 372.5 | G41: 338 | H41: 385.5 | I41: 425 | J41: Profit of Rs.13/- | K41: =H41-F41 -> 13 | L41: =K41/F41 -> 3.49% | M41: Successful | N41: 2020-03-17 | R41: H
A42: 33 | B42: 2020-03-17 | D42: MCDOWELL-N | E42: Buy | F42: 531 | G42: 493 | H42: 495 | I42: 580-600 | J42: Loss of Rs. 36/- | K42: -36 | L42: -6.78% | M42: Unsuccessful | N42: 2020-03-19 | R42: H
A43: 34 | B43: 2020-03-17 | D43: APOLLOHOSP | E43: Buy | F43: 1460 | G43: 1350 | H43: 1350 | I43: 1650-1700 | J43: Loss of Rs. 140/- | K43: =H43-F43 -> -110 | L43: =K43/F43 -> -7.53% | M43: Unsuccessful | N43: 2020-03-18 | R43: H
A44: 35 | B44: 2020-03-17 | D44: M&M | E44: Buy | F44: 398.5 | G44: 373 | H44: 372.5 | I44: 450 | J44: Loss of Rs.26/- | K44: =H44-F44 -> -26 | L44: =K44/F44 -> -6.52% | M44: Unsuccessful | N44: 2020-03-17 | R44: N
A45: 36 | B45: 2020-03-17 | D45: AMARAJABAT | E45: Buy | F45: 532 | G45: 495 | H45: 490 | I45: 580-600 | J45: Loss of Rs. 42/- | K45: -42 | L45: -7.89% | M45: Unsuccessful | N45: 2020-03-18 | R45: H
A46: 37 | B46: 2020-03-18 | D46: DABUR | E46: Buy | F46: 432 | G46: 415 | H46: 405 | I46: 460-465 | J46: Loss of Rs. 27/- | K46: -27 | L46: -6.25% | M46: Unsuccessful | N46: 2020-03-19 | R46: N
A47: 38 | B47: 2020-03-18 | D47: ACC | E47: Buy | F47: 1107.5 | G47: 1030 | H47: 1030 | I47: 1200-1220 | J47: Loss of Rs. 77.5/- | K47: -77.5 | L47: -7.00% | M47: Unsuccessful | N47: 2020-03-19 | R47: N
A48: 39 | B48: 2020-03-18 | D48: ULTRACEMCO | E48: Buy | F48: 3475 | G48: 3240 | H48: 3170 | I48: 3800-3900 | J48: Loss of Rs. 305/- | K48: -305 | L48: -8.78% | M48: Unsuccessful | N48: 2020-03-19 | R48: H
A49: 40 | B49: 2020-03-18 | D49: BATAINDIA | E49: Buy | F49: 1300 | G49: 1190 | H49: 1210 | I49: 1150-1160 | J49: Loss of Rs. 90/- | K49: =H49-F49 -> -90 | L49: =K49/F49 -> -6.92% | M49: Unsuccessful | N49: 2020-03-18 | R49: H
A50: 41 | B50: 2020-03-20 | D50: HDFCLIFE | E50: Buy | F50: 422.5 | G50: 392 | H50: 436.5 | I50: 460-480 | J50: Profit of Rs.14/- | K50: 14 | L50: 3.31% | M50: Successful | N50: 2020-03-20 | R50: N
A51: 42 | B51: 2020-03-20 | D51: HDFCBANK | E51: Buy | F51: 855 | G51: 780 | H51: 895 | I51: 950 | J51: Profit of Rs.40/- | K51: =H51-F51 -> 40 | L51: =K51/F51 -> 4.68% | M51: Successful | N51: 2020-03-20 | R51: H
A52: 43 | B52: 2020-03-20 | D52: M&M | E52: Buy | F52: 314.5 | G52: 295 | H52: 326 | I52: 350-360 | J52: Profit of Rs.11.5/- | K52: =H52-F52 -> 11.5 | L52: =K52/F52 -> 3.66% | M52: Successful | N52: 2020-03-20 | R52: H
A53: 44 | B53: 2020-03-20 | D53: MCDOWELL-N | E53: Buy | F53: 515 | G53: 485 | H53: 485 | I53: 570-590 | J53: Loss of Rs. 30/- | K53: -30 | L53: -5.83% | M53: Unsuccessful | N53: 2020-03-23 | R53: N
A54: 45 | B54: 2020-03-20 | D54: AMARAJABAT | E54: Buy | F54: 450 | G54: 410 | H54: 420 | I54: 500-520 | J54: Loss of Rs. 30/- | K54: =H54-F54 -> -30 | L54: -6.67% | M54: Unsuccessful | N54: 2020-03-23 | R54: N
A55: 46 | B55: 2020-03-20 | D55: AMBUJACEM | E55: Buy | F55: 162.5 | G55: 149 | H55: 150.9 | I55: 185-190 | J55: Loss of Rs. 11.60/- | K55: -11.6 | L55: -7.14% | M55: Unsuccessful | N55: 2020-03-23 | R55: H
A56: 47 | B56: 2020-03-20 | D56: COLPAL | E56: Buy | F56: 1160 | G56: 1085 | H56: 1150 | I56: 1280-1300 | J56: Loss of Rs. 10/- | K56: -10 | L56: -0.86% | M56: Neutral | N56: 2020-03-23 | R56: H
A57: 48 | B57: 2020-03-24 | D57: ACC | E57: Buy | F57: 1015 | G57: 949 | H57: 937.5 | I57: 1120-1150 | J57: Loss of Rs. 77.5/- | K57: =H57-F57 -> -77.5 | L57: =K57/F57 -> -7.64% | M57: Unsuccessful | N57: 2020-03-23 | R57: N
A58: 49 | B58: 2020-03-24 | D58: TATACONSUM | E58: Buy | F58: 213.5 | G58: 199 | H58: 224.5 | I58: 235-240 | J58: Profit of Rs.11/- | K58: =H58-F58 -> 11 | L58: =K58/F58 -> 5.15% | M58: Successful | N58: 2020-03-24 | R58: H
A59: 50 | B59: 2020-03-24 | D59: ULTRACEMCO | E59: Buy | F59: 3035 | G59: 2895 | H59: 3165 | I59: 3300-3400 | J59: Profit of Rs.130/- | K59: =H59-F59 -> 130 | L59: =K59/F59 -> 4.28% | M59: Successful | N59: 2020-03-24 | R59: H
A60: 51 | B60: 2020-03-24 | D60: LT | E60: Buy | F60: 685 | G60: 645 | H60: 708 | I60: 760-780 | J60: Profit of Rs.23/- | K60: =H60-F60 -> 23 | L60: =K60/F60 -> 3.36% | M60: Successful | N60: 2020-03-24 | R60: H
A61: 52 | B61: 2020-03-24 | D61: HDFC | E61: Buy | F61: 1530 | G61: 1430 | H61: 1595 | I61: 1650-1700 | J61: Profit of Rs.65/- | K61: 65 | L61: 4.25% | M61: Successful | N61: 2020-03-24 | R61: N
A62: 53 | B62: 2020-03-24 | D62: COLPAL | E62: Buy | F62: 1125 | G62: 1070 | H62: 1172.5 | I62: 1200-1220 | J62: Profit of Rs.47.5/- | K62: 47.5 | L62: 4.22% | M62: Successful | N62: 2020-03-26 | R62: H
A63: 54 | B63: 2020-03-24 | D63: ULTRACEMCO | E63: Buy | F63: 3060 | G63: 2895 | H63: 3170 | I63: 3300-3400 | J63: Profit of Rs.110/- | K63: =H63-F63 -> 110 | L63: =K63/F63 -> 3.59% | M63: Successful | N63: 2020-03-25 | R63: H
A64: 55 | B64: 2020-03-25 | D64: TCS | E64: Buy | F64: 1685 | G64: 1560 | H64: 1745 | I64: 1900-1920 | J64: Profit of Rs.60/- | K64: 60 | L64: 3.56% | M64: Successful | N64: 2020-03-25 | R64: N
A65: 56 | B65: 2020-03-25 | D65: ASIANPAINT | E65: Buy | F65: 1500 | G65: 1405 | H65: 1560 | I65: 1700 | J65: Profit of Rs.60/- | K65: 60 | L65: 4.00% | M65: Successful | N65: 2020-03-25 | R65: N
A66: 57 | B66: 2020-03-25 | D66: APOLLOHOSP | E66: Buy | F66: 1105 | G66: 1030 | H66: 1155 | I66: 1200-1220 | J66: Profit of Rs.50/- | K66: =H66-F66 -> 50 | L66: 4.52% | M66: Successful | N66: 2020-03-25 | R66: H
A67: 58 | B67: 2020-03-25 | D67: MARICO | E67: Buy | F67: 252 | G67: 237 | H67: 260.5 | I67: 270-275 | J67: Profit of Rs.8.5/- | K67: 8.5 | L67: =K67/F67 -> 3.37% | M67: Successful | N67: 2020-03-26 | R67: N
A68: 59 | B68: 2020-03-25 | D68: HCLTECH | E68: Buy | F68: 447 | G68: 425 | H68: 462.5 | I68: 500 | J68: Profit of Rs.15.5/- | K68: 15.5 | L68: 3.47% | M68: Successful | N68: 2020-03-26 | R68: N
A69: 60 | B69: 2020-03-25 | D69: ICICIBANK | E69: Buy | F69: 312.5 | G69: 290 | H69: 324.5 | I69: 340-350 | J69: Profit of Rs.12/- | K69: 12 | L69: 3.84% | M69: Successful | N69: 2020-03-26 | R69: H
A70: 61 | B70: 2020-03-26 | D70: MINDTREE | E70: Buy | F70: 800 | G70: 745 | H70: 835 | I70: 900 | J70: Profit of Rs.35/- | K70: =H70-F70 -> 35 | L70: =K70/F70 -> 4.38% | M70: Successful | N70: 2020-03-26 | R70: N
A71: 62 | B71: 2020-03-26 | D71: PIDILITIND | E71: Buy | F71: 1265 | G71: 1175 | H71: 1315 | I71: 1400-1450 | J71: Profit of Rs.50/- | K71: 50 | L71: 3.95% | M71: Successful | N71: 2020-03-27 | R71: H
A72: 63 | B72: 2020-03-26 | D72: ZEEL | E72: Buy | F72: 127.5 | G72: 119 | H72: 134.5 | I72: 140 | J72: Profit of Rs.7/- | K72: =H72-F72 -> 7 | L72: =K72/F72 -> 5.49% | M72: Successful | N72: 2020-03-27 | R72: N
A73: 64 | B73: 2020-03-26 | D73: SUNPHARMA | E73: Buy | F73: 345-350 | G73: 324 | I73: 400 | J73: Open | R73: N
A74: 65 | B74: 2020-03-27 | D74: HCLTECH | E74: Buy | F74: 445-450 | G74: 424 | I74: 500 | J74: Open | R74: N
A75: 66 | B75: 2020-03-27 | D75: COLPAL | E75: Buy | F75: 1150-1170 | G75: 1080 | I75: 1280-1300 | J75: Open | R75: H
A76: 67 | B76: 2020-03-27 | D76: APOLLOHOSP | E76: Buy | F76: 1180-1190 | G76: 1100 | I76: 1320-1350 | J76: Open | R76: N
A77: 68 | B77: 2020-03-27 | D77: ULTRACEMCO | E77: Buy | F77: 3150-3200 | G77: 2940 | I77: 3400-3500 | J77: Open | R77: H
A78: 69 | B78: 2020-03-27 | D78: ASIANPAINTS | E78: Buy | F78: 1562.5 | G78: 1450 | H78: 1615 | I78: 1750-1800 | J78: Profit of Rs.52.5/- | K78: =H78-F78 -> 52.5 | L78: =K78/F78 -> 3.36% | M78: Successful | N78: 2020-03-27 | R78: H
A81: CLBS = Closing Basis ***
A82: Dividend adjusted <> | F82: Reinitiated $
A83: Part book {} | F83: Revised stoploss #
B85: Momentum Call
A86: Sr.no | B86: Date | D86: Company | E86: Rec | F86: Rec Price | G86: Stop Loss | H86: Call Closed At | I86: Target | J86: Remark | K86: Profit / Loss per Share/Lot | L86: Gain / Loss % | M86: Gain / Loss per Lot | N86: Lot | O86: Status | P86: Closed Date
A87: 1 | B87: 2020-02-28 | D87: HDFCBANK | E87: Buy | F87: 1172.5 | G87: 1140 | H87: 1200 | I87: 1210-1230 | J87: Profit of Rs.27.5/- | K87: =H87-F87 -> 27.5 | L87: =K87/F87 -> 2.35% | O87: Successful | P87: 2020-03-02 | R87: H
A88: 2 | B88: 2020-02-28 | D88: SBIN | E88: Buy | F88: 311.5 | G88: 299 | H88: 301.5 | I88: 325-330 | J88: Loss of Rs.10/- | K88: =H88-F88 -> -10 | L88: -3.21% | O88: Unsuccessful | P88: 2020-03-02 | R88: H
A89: 3 | B89: 2020-03-02 | D89: HEROMOTOCO | E89: Sell | F89: 2095 | G89: 2167 | H89: 2065.5 | I89: 2000-1970 | J89: Profit of Rs.29.50/- | K89: =F89-H89 -> 29.5 | L89: =K89/F89 -> 1.41% | O89: Successful | P89: 2020-03-02 | R89: H
A90: 4 | B90: 2020-03-02 | D90: APOLLOHOSP MAR FUT | E90: Buy | F90: 1740 | G90: 1715 | H90: 1754 | I90: 1780-1790 | J90: Profit of Rs.14/- | K90: =H90-F90 -> 14 | M90: =N90*K90 -> 7000 | N90: 500 | O90: Successful | P90: 2020-03-02 | R90: N
A91: 5 | B91: 2020-03-02 | D91: HDFCBANK | E91: Buy | F91: 1178 | G91: 1145 | H91: 1190 | I91: 1220-1240 | J91: Profit of Rs.12/- | K91: 12 | L91: =K91/F91 -> 1.02% | O91: Successful | P91: 2020-03-02 | R91: H
A92: 6 | B92: 2020-03-02 | D92: IGL | E92: Buy | F92: 444 | G92: 429 | H92: 429 | I92: 465-470 | J92: Loss of Rs.15/- | K92: -15 | L92: -3.38% | O92: Unsuccessful | P92: 2020-03-06 | R92: H
A93: 7 | B93: 2020-03-02 | D93: AXISBANK | E93: Buy | F93: 690 | G93: 670 | H93: 700.5 | I93: 730 | J93: Profit of Rs.10.5/- | K93: =H93-F93 -> 10.5 | L93: =K93/F93 -> 1.52% | O93: Successful | P93: 2020-03-02 | R93: N
A94: 8 | B94: 2020-03-03 | D94: ASIANPAINT MAR FUT | E94: Buy | F94: 1811.5 | G94: 1790 | H94: 1791.5 | I94: 1840-1850 | J94: Loss of Rs.20/- | K94: -20 | M94: =N94*K94 -> -12000 | N94: 600 | O94: Unsuccessful | P94: 2020-03-03 | R94: N
A95: 9 | B95: 2020-03-03 | D95: HDFCBANK | E95: Buy | F95: 1175 | G95: 1138 | H95: 1130 | I95: 1220-1230 | J95: Loss of Rs.45/- | K95: -45 | L95: =K95/F95 -> -3.83% | O95: Unsuccessful | P95: 2020-03-06 | R95: H
A96: 10 | B96: 2020-03-03 | D96: AXISBANK | E96: Buy | F96: 690.5 | G96: 670 | H96: 655 | I96: 730 | J96: Loss of Rs.35.5/- | K96: -35.5 | L96: -5.14% | O96: Unsuccessful | P96: 2020-03-06 | R96: H
A97: 11 | B97: 2020-03-03 | D97: VEDL MAR FUT | E97: Sell | F97: 113.7 | G97: 117.3 | H97: 117.25 | I97: 108 | J97: Loss of Rs.3.55/- | K97: =F97-H97 -> -3.55 | M97: =N97*K97 -> -12425 | N97: 3500 | O97: Unsuccessful | P97: 2020-03-03 | R97: R
A98: 12 | B98: 2020-03-03 | D98: NIITTECH | E98: Sell | F98: 1887.5 | G98: 1933.3 | H98: 1845 | I98: 1780-1760 | J98: Profit of Rs.42.50/- | K98: =F98-H98 -> 42.5 | L98: =K98/F98 -> 2.25% | O98: Successful | P98: 2020-03-04 | R98: R
A99: 13 | B99: 2020-03-04 | D99: NIFTY MAR FUT | E99: Buy | F99: 11230 | G99: 11100 | H99: 11100 | I99: 11400-11450 | J99: Loss of Rs.130/- | K99: =H99-F99 -> -130 | M99: =N99*K99 -> -9750 | N99: 75 | O99: Unsuccessful | P99: 2020-03-04 | R99: R
A100: 14 | B100: 2020-03-11 | D100: COLPAL MAR FUT | E100: Buy | F100: 1272 | G100: 1255 | H100: 1253 | I100: 1300 | J100: Loss of Rs.19/- | K100: =H100-F100 -> -19 | M100: =N100*K100 -> -13300 | N100: 700 | O100: Unsuccessful | P100: 2020-03-11 | R100: N
A101: 15 | B101: 2020-03-11 | D101: PIDILITIND | E101: Sell | F101: 1695 | G101: 1765 | H101: 1660 | I101: 1620-1600 | J101: Profit of Rs.35/- | K101: =F101-H101 -> 35 | L101: =K101/F101 -> 2.06% | O101: Successful | P101: 2020-03-12 | R101: H
A102: 16 | B102: 2020-03-16 | D102: DABUR | E102: Buy | F102: 448 | G102: 437 | H102: 437 | I102: 470-475 | J102: Loss of Rs.11/- | K102: =H102-F102 -> -11 | L102: -2.46% | O102: Unsuccessful | P102: 2020-03-16 | R102: H
A103: 17 | B103: 2020-03-16 | D103: IGL | E103: Buy | F103: 395.5 | G103: 379 | H103: 395 | I103: 415-420 | J103: Loss of Rs.05/- | K103: =H103-F103 -> -0.5 | L103: =K103/F103 -> -0.13% | O103: Neutral | P103: 2020-03-16 | R103: H
A104: 18 | B104: 2020-03-16 | D104: BAJAJ-AUTO | E104: Sell | F104: 2362.5 | G104: 2455 | H104: 2315 | I104: 2250-2200 | J104: Profit of Rs.47.50/- | K104: =F104-H104 -> 47.5 | L104: 2.01% | O104: Successful | P104: 2020-03-16 | R104: H
A105: 19 | B105: 2020-03-17 | D105: LT | E105: Buy | F105: 980 | G105: 940 | H105: 997.5 | I105: 1020-1030 | J105: Profit of Rs.17.5/- | K105: =H105-F105 -> 17.5 | L105: 1.79% | O105: Successful | P105: 2020-03-17 | R105: H
A106: 20 | B106: 2020-03-17 | D106: LT | E106: Buy | F106: 975 | G106: 940 | H106: 975 | I106: 1020-1030 | J106: Neutral | K106: 0 | L106: =K106/F106 -> 0.00% | O106: Neutral | P106: 2020-03-17 | R106: H
A107: 21 | B107: 2020-03-18 | D107: LT | E107: Buy | F107: 970 | G107: 935 | H107: 935 | I107: 1020-1030 | J107: Loss of Rs.35/- | K107: -35 | L107: -3.61% | O107: Unsuccessful | P107: 2020-03-18 | R107: H
A108: 22 | B108: 2020-03-20 | D108: BRITANNIA | E108: Buy | F108: 2345 | G108: 2285 | H108: 2405 | I108: 2470-2500 | J108: Profit of Rs.60/- | K108: =H108-F108 -> 60 | L108: 2.56% | O108: Successful | P108: 2020-03-20 | R108: H
A109: 23 | B109: 2020-03-20 | D109: ICICIBANK | E109: Buy | F109: 324.5 | G109: 310 | H109: 332 | I109: 350-360 | J109: Profit of Rs.7.5/- | K109: =H109-F109 -> 7.5 | L109: =K109/F109 -> 2.31% | O109: Successful | P109: 2020-03-20 | R109: H
A110: 24 | B110: 2020-03-24 | D110: DABUR | E110: Buy | F110: 391.5 | G110: 379 | H110: 417.5 | I110: 420-425 | J110: Profit of Rs.26/- | K110: 26 | L110: 6.64% | O110: Successful | P110: 2020-03-24 | R110: H
A111: 25 | B111: 2020-03-24 | D111: HDFCBANK | E111: Buy | F111: 770 | G111: 738 | H111: 787.5 | I111: 820-830 | J111: Profit of Rs.17.5/- | K111: =H111-F111 -> 17.5 | L111: =K111/F111 -> 2.27% | O111: Successful | P111: 2020-03-24 | R111: H
A112: 26 | B112: 2020-03-24 | D112: M&M | E112: Buy | F112: 286.5 | G112: 275 | H112: 275 | I112: 305-310 | J112: Loss of Rs.11.5/- | K112: -11.5 | L112: -4.01% | O112: Unsuccessful | P112: 2020-03-24 | R112: N
A113: 27 | B113: 2020-03-24 | D113: HDFCBANK | E113: Buy | F113: 768.5 | G113: 738 | H113: 785.5 | I113: 820-830 | J113: Profit of Rs.17/- | K113: =H113-F113 -> 17 | L113: =K113/F113 -> 2.21% | O113: Successful | P113: 2020-03-24 | R113: H
A114: 28 | B114: 2020-03-25 | D114: DABUR | E114: Buy | F114: 396 | G114: 380 | H114: 404 | I114: 420-425 | J114: Profit of Rs.8/- | K114: 8 | L114: 2.02% | O114: Successful | P114: 2020-03-25 | R114: N
A115: 29 | B115: 2020-03-25 | D115: HDFCBANK | E115: Buy | F115: 765 | G115: 738 | H115: 780 | I115: 820-830 | J115: Profit of Rs.15/- | K115: 15 | L115: 1.96% | O115: Successful | P115: 2020-03-25 | R115: H
A116: 30 | B116: 2020-03-27 | D116: HDFCBANK | E116: Buy | F116: 884 | G116: 855 | H116: 902.5 | I116: 930-940 | J116: Profit of Rs.18.5/- | K116: =H116-F116 -> 18.5 | L116: =K116/F116 -> 2.09% | O116: Successful | P116: 2020-03-27 | R116: H
A118: CLBS = Closing Basis ***
A119: Dividend adjusted <> | F119: Reinitiated $
F120: Revised stoploss #
A122: Master Trade High Risk
A123: Sr.no | B123: Date | D123: Company | E123: Rec | F123: Rec Price | G123: Stop Loss | H123: Call Closed At | I123: Target | J123: Remark | K123: Profit / Loss per share | L123: Gain / Loss per Lot | M123: Lot | N123: Status | O123: Closed Date
A124: 1 | B124: 2020-03-02 | D124: NIFTY MAR FUT | E124: Buy | F124: 11315 | G124: 11170 | H124: 11170 | I124: 11600 | J124: Loss of Rs.120/- | K124: =H124-F124 -> -145 | L124: =+-120*75 -> -9000 | M124: 75 | N124: Unsuccessful | O124: 2020-03-02 | R124: H
D125: NIFTY 26 MARCH 11500 CE | E125: Sell | F125: 152.50 | H125: 127.5 | K125: =F125-H125 -> 25 | R125: H
A133: Master Trade Medium Risk
A134: Sr.no | B134: Date | D134: Company | E134: Rec | F134: Rec Price | G134: Stop Loss | H134: Call Closed At | I134: Target | J134: Remark | K134: Profit/ Loss per lot | L134: Gain / Loss per Lot | M134: Lot | N134: Status | O134: Closed Date
A135: 1 | B135: 2020-03-03 | D135: BANKNIFTY 29200 05-MAR CE | E135: Buy | F135: 200 | H135: 245 | I135: 400-450 | J135: Profit of Rs.45/- | K135: =H135-F135 -> 45 | L135: =M135*K135 -> 900 | M135: 20 | N135: Successful | O135: 2020-03-03 | R135: H
A136: 2 | B136: 2020-03-03 | D136: BANKNIFTY 29100 05-MAR CE | E136: Buy | F136: 230 | H136: 275 | I136: 400-450 | J136: Profit of Rs.45/- | K136: =H136-F136 -> 45 | L136: 900 | M136: 20 | N136: Successful | O136: 2020-03-03 | R136: H
A137: 3 | B137: 2020-03-03 | D137: POWERGRID MAR 190 CE | E137: Buy | F137: 2.2 | G137: 0.9 | H137: 2.8 | I137: 3.50-4.00 | J137: Profit of Rs.0.6/- | K137: =H137-F137 -> 0.6 | L137: 2400 | M137: 4000 | N137: Successful | O137: 2020-03-04 | R137: H
A138: 4 | B138: 2020-03-04 | D138: BANKNIFTY 29500 12-MAR CE | E138: Buy | F138: 225 | H138: 0 | I138: 400-450 | J138: Loss of Rs.225/- | K138: =H138-F138 -> -225 | L138: -4500 | M138: 20 | N138: Successful | O138: 2020-03-12 | R138: H
A139: 5 | B139: 2020-03-05 | D139: NIFTY 11350 05-MAR PE | E139: Buy | F139: 23.5 | H139: 35.5 | I139: 50-60 | J139: Profit of Rs.12/- | K139: =H139-F139 -> 12 | L139: 900 | M139: 75 | N139: Successful | O139: 2020-03-05 | R139: N
A140: 6 | B140: 2020-03-05 | D140: LT MAR 1200 CE | E140: Buy | F140: 23.5 | G140: 13 | H140: 27.5 | I140: 40-45 | J140: Profit of Rs.4/- | K140: =H140-F140 -> 4 | L140: 1500 | M140: 375 | N140: Successful | O140: 2020-03-05 | R140: H
A141: 7 | B141: 2020-03-06 | D141: LT MAR 1200 CE | E141: Buy | F141: 16.5 | G141: 8 | H141: 19.5 | I141: 30-35 | J141: Profit of Rs.3/- | K141: =H141-F141 -> 3 | L141: 1125 | M141: 375 | N141: Successful | O141: 2020-03-06 | R141: H
A144: Techno -Funda (positional)
A145: Sr.no | B145: Date | D145: Company | E145: Rec | F145: Rec Price | G145: Stop Loss*** | H145: Call Closed At | I145: Target | J145: Remark | K145: Profit / Loss per Share | L145: Gain / Loss % | M145: Status | N145: Closed Date | O145: NSE Closed Price
A146: 1 | B146: 2020-03-05 | D146: KALPATPOWR | E146: Buy | F146: 332 | G146: 298 | H146: 300 | I146: 400-420 | J146: Loss of Rs.32/- | K146: =H146-F146 -> -32 | L146: =K146/F146 -> -9.64% | M146: Unsuccessful | N146: 2020-03-11 | R146: H
A148: CLBS = Closing Basis *** | F148: Reinitiated $
A149: Dividend adjusted <> | F149: Revised stoploss #
B154: Investment Idea
A155: Sr.no | B155: Date | D155: Company | E155: Rec | F155: Rec Price | G155: Point of Review | H155: Close Rate | I155: Target | J155: Remark | K155: Profit / Loss per Share | L155: Gain / Loss % | M155: Status | N155: Closed Date
A156: 1 | B156: 2013-11-01 | D156: L&T Finance Holding | E156: Accu | F156: 82.00 | G156: - | H156: 100 | I156: 100.00 | J156: Target Achieved | K156: =H156-F156 -> 18.00 | L156: =K156/F156 -> 21.95% | M156: Successful | N156: 2016-10-14
A157: 2 | B157: 2014-06-04 | D157: Finolex Inds | E157: Buy | F157: 257.00 | G157: - | H157: 300 | I157: 300.00 | J157: Target Achieved | K157: 43.00 | L157: 16.73% | M157: Successful | N157: 2014-07-02
A158: 3 | B158: 2014-07-08 | D158: JK Cement | E158: Buy | F158: 393.00 | G158: - | H158: 468 | I158: 468.00 | J158: Target Achieved | K158: 75.00 | L158: 19.08% | M158: Successful | N158: 2014-08-12
A159: 4 | B159: 2014-08-06 | D159: Finolex Cables | E159: Buy | F159: 205.00 | G159: - | H159: 275 | I159: 250.00 | J159: Target Achieved | K159: 70.00 | L159: 34.15% | M159: Successful | N159: 2014-11-19
A160: 5 | B160: 2014-09-04 | D160: Exide Inds | E160: Buy | F160: 162.00 | G160: - | H160: 190 | I160: 190.00 | J160: Target Achieved | K160: 28.00 | L160: 17.28% | M160: Successful | N160: 2015-01-02
A161: 6 | B161: 2014-09-04 | D161: Deepak Nitrite | E161: Buy | F161: 75.00 | G161: - | H161: 91.5 | I161: 95-100 | J161: Profit of Rs.16.50/- | K161: 16.50 | L161: 22.00% | M161: Successful | N161: 2014-11-11
A162: 7 | B162: 2014-10-01 | D162: Mercks | E162: Buy | F162: 850.00 | G162: - | H162: 982.5 | I162: 1050.00 | J162: Profit of Rs.132.50/- | K162: 132.50 | L162: 15.59% | M162: Successful | N162: 2015-02-04
A163: 8 | B163: 2014-10-01 | D163: Grindwell Norton | E163: Buy | F163: 475.00 | G163: - | H163: 515 | I163: 600.00 | J163: Profit of Rs.40/- | K163: 40.00 | L163: 8.42% | M163: Successful | N163: 2014-10-27
A164: 9 | B164: 2014-10-01 | D164: Snowman Logistics | E164: Buy | F164: 86.00 | G164: - | H164: 99 | I164: 140.00 | J164: Profit of Rs.13.00/- | K164: 13.00 | L164: 15.12% | M164: Successful | N164: 2014-10-27
A165: 10 | B165: 2014-10-14 | D165: Birla Corp | E165: Buy | F165: 496.60 | G165: - | H165: 621 | I165: 580.00 | J165: Target Achieved | K165: 124.40 | L165: 25.05% | M165: Successful | N165: 2016-08-23
A166: 11 | B166: 2014-10-14 | D166: Ultratech Cem | E166: Buy | F166: 2481.90 | G166: - | H166: 2840 | I166: 2870.00 | J166: Profit of Rs.358.10/- | K166: 358.10 | L166: 14.43% | M166: Successful | N166: 2015-01-13
A167: 12 | B167: 2014-10-16 | D167: Sintex Inds | E167: Buy | F167: 84.50 | G167: - | H167: 93 | I167: 110.00 | J167: Profit of Rs.8.50/- | K167: 8.50 | L167: 10.06% | M167: Successful | N167: 2014-10-27
A168: 13 | B168: 2014-10-16 | D168: HSIL | E168: Buy | F168: 401.00 | G168: - | H168: 428 | I168: 450.00 | J168: Profit of Rs.27.00/- | K168: 27.00 | L168: 6.73% | M168: Successful | N168: 2015-01-16
A169: 14 | B169: 2014-10-16 | D169: Eveready Inds | E169: Buy | F169: 101.00 | G169: - | H169: 112 | I169: 120.00 | J169: Profit of Rs.11.00/- | K169: 11.00 | L169: 10.89% | M169: Successful | N169: 2014-10-27
A170: 15 | B170: 2014-11-11 | D170: Pennar Inds | E170: Buy | F170: 59.00 | G170: - | H170: 76 | I170: 76.00 | J170: Target Achieved | K170: 17.00 | L170: 28.81% | M170: Successful | N170: 2017-10-24
A171: 16 | B171: 2014-11-11 | D171: Snowman Logistics | E171: Buy | F171: 99.00 | G171: - | H171: 120 | I171: 120.00 | J171: Profit of Rs.21/- | K171: 21.00 | L171: 21.21% | M171: Successful | N171: 2014-11-17
A172: 17 | B172: 2014-11-13 | D172: Dharamsi Morarji Chem | E172: Buy | F172: 22.00 | G172: - | H172: 33.55 | I172: 32.00 | J172: Profit of Rs 11.55/- | K172: 11.55 | L172: 52.50% | M172: Successful | N172: 2015-07-03
A173: 18 | B173: 2014-12-03 | D173: Tatachem | E173: Buy | F173: 440.00 | G173: - | H173: 520 | I173: 520.00 | J173: Profit of Rs 80.00/- | K173: 80.00 | L173: 18.18% | M173: Successful | N173: 2015-07-23
A174: 19 | B174: 2014-12-03 | D174: Advanta | E174: Buy | F174: 360.00 | G174: - | H174: 427 | I174: 425.00 | J174: Profit of Rs.67.00/- | K174: 67.00 | L174: 18.61% | M174: Successful | N174: 2015-02-23
A175: 20 | B175: 2015-01-08 | D175: GDL | E175: Buy | F175: 360.00 | G175: - | H175: 455 | I175: 420.00 | J175: Profit of Rs.95.00/- | K175: 95.00 | L175: 26.39% | M175: Successful | N175: 2015-01-20
A176: 21 | B176: 2015-01-08 | D176: NRB Bearing | E176: Buy | F176: 130.00 | H176: 175.5 | I176: 165.00 | J176: Profit of Rs 45.50/- | K176: 45.50 | L176: 35.00% | M176: Successful | N176: 2017-12-19
A177: 22 | B177: 2015-02-05 | D177: GSFC | E177: Accu | F177: 98.00 | H177: 120 | I177: 120.00 | J177: Target Achieved | K177: 22.00 | L177: 22.45% | M177: Successful | N177: 2017-01-18
A178: 23 | B178: 2015-02-05 | D178: Sundrmfast | E178: Accu | F178: 196.00 | H178: 262 | I178: 255.00 | J178: Target Achieved | K178: 66.00 | L178: 33.67% | M178: Successful | N178: 2016-08-17
A179: 24 | B179: 2015-03-04 | D179: GPPL | E179: Accu | F179: 235 | H179: 77.00 | I179: 280-285 | J179: Loss of Rs.158/- | K179: -158.00 | L179: -67.23% | M179: Unsuccessful | N179: 2019-02-26
A180: 25 | B180: 2015-03-04 | D180: ORIENTCEM | E180: Accu | F180: 185.00 | H180: 224 | I180: 220-225 | J180: Target Achieved | K180: 39.00 | L180: 21.08% | M180: Successful | N180: 2016-10-04
A181: 26 | B181: 2015-03-27 | D181: PFS | E181: Accu | F181: 49.5 | H181: 15.85 | I181: 67.00 | J181: Loss of Rs.33.65/- | K181: -33.65 | L181: -68% | M181: Unsuccessful | N181: 2019-06-11
A182: 27 | B182: 2015-03-30 | D182: Walchandnagar Ind Ltd | E182: Accu | F182: 183.50 | H182: 219 | I182: 218.00 | J182: Profit of Rs.35.50/- | K182: 35.50 | L182: 19.35% | M182: Successful | N182: 2015-04-09
A183: 28 | B183: 2015-04-20 | D183: Kalpataru Power Transmission Ltd | E183: Accu | F183: =(227+237)/2 -> 232.00 | H183: 298 | I183: 298.00 | J183: Target Achieved | K183: 66.00 | L183: 28.45% | M183: Successful | N183: 2017-03-29
A184: 29 | B184: 2015-05-04 | D184: Mastek Ltd | E184: Buy | F184: 385.00 | H184: =212.5+331 -> 543.5 | I184: 510.00 | J184: Profit of Rs 158.50/- | K184: 158.50 | L184: 41.17% | M184: Successful | N184: 2015-08-19
A185: 30 | B185: 2015-05-04 | D185: Suprajit Eng | E185: Buy | F185: 115.50 | H185: 146 | I185: 142.00 | J185: Profit of Rs 30.50/- | K185: 30.50 | L185: 26.41% | M185: Successful | N185: 2015-07-17
A186: 31 | B186: 2015-05-27 | D186: TCI | E186: Buy | F186: 237.50 | H186: 279.5 | I186: 278.00 | J186: Target Achieved | K186: 42.00 | L186: 17.68% | M186: Successful | N186: 2015-08-06
A187: 32 | B187: 2015-06-19 | D187: HSIL | E187: Accu | F187: 340.00 | H187: 448 | I187: 448.00 | J187: Target Achieved | K187: 108.00 | L187: 31.76% | M187: Successful | N187: 2017-10-10
A188: 33 | B188: 2015-07-06 | D188: Capital First | E188: Accu | F188: 390.00 | H188: 460 | I188: 460.00 | J188: Target Achieved | K188: =H188-F188 -> 70.00 | L188: =K188/F188 -> 17.95% | M188: Successful | N188: 2016-04-18
A189: 34 | B189: 2015-07-10 | D189: Dolphin OffShore | E189: Accu | F189: 122.5 | H189: 61.00 | I189: 172.00 | J189: Loss of Rs.61.50/- | K189: -61.50 | L189: -50.20% | M189: Unsuccessful | N189: 2018-08-21
A190: 35 | B190: 2015-08-03 | D190: Allcargo logistics | E190: Accu | F190: 297.50 | H190: 350 | I190: 360.00 | J190: Profit of Rs 52.50/- | K190: 52.50 | L190: 17.65% | M190: Successful | N190: 2015-08-16
A191: 36 | B191: 2015-08-03 | D191: Camline Fine | E191: Accu | F191: 115.50 | H191: 149 | I191: 140.00 | J191: Profit of Rs 33.50/- | K191: 33.50 | L191: 29.00% | M191: Successful | N191: 2017-01-05
A192: 37 | B192: 2015-09-04 | D192: TCI | E192: Accu | F192: 226.00 | H192: 292 | I192: 292.00 | J192: Target Achieved | K192: 66.00 | L192: 29.20% | M192: Successful | N192: 2015-10-09
A193: 38 | B193: 2015-09-07 | D193: Kalpataru Power Transmission Ltd | E193: Accu | F193: 232.50 | H193: 312.5 | I193: 310.00 | J193: Target Achieved | K193: 80.00 | L193: 34.41% | M193: Successful | N193: 2017-03-29
A194: 39 | B194: 2015-09-21 | D194: LLOYD ELECTRIC & ENG LTD | E194: Accu | F194: 196.50 | H194: 238 | I194: 238.00 | J194: Target Achieved | K194: 41.50 | L194: 21.12% | M194: Successful | N194: 2015-10-14
A195: 40 | B195: 2015-09-24 | D195: L&T Finance Holding | E195: Accu | F195: 65.00 | H195: 82 | I195: 82.00 | J195: Target Achieved | K195: 17.00 | L195: 26.15% | M195: Successful | N195: 2016-07-27
A196: 41 | B196: 2015-10-14 | D196: KEC International ltd | E196: Accu | F196: 144.00 | H196: 182.5 | I196: 181.00 | J196: Target Achieved | K196: 38.50 | L196: 26.74% | M196: Successful | N196: 2017-03-23
A197: 42 | B197: 2015-10-14 | D197: Gruh Finance | E197: Accu | F197: 264.00 | H197: 311 | I197: 311.00 | J197: Target Achieved | K197: 47.00 | L197: 17.80% | M197: Successful | N197: 2016-08-22
A198: 43 | B198: 2015-11-10 | D198: Pidilitind | E198: Buy | F198: 549.50 | H198: 630 | I198: 630.00 | J198: Target Achieved | K198: 80.50 | L198: 14.65% | M198: Successful | N198: 2016-02-19
A199: 44 | B199: 2015-12-04 | D199: Zensar Technology | E199: Accu | F199: 1027.50 | H199: 1315 | I199: 1250.00 | J199: Target Achieved | K199: 287.50 | L199: 27.98% | M199: Successful | N199: 2018-05-24
A200: 45 | B200: 2015-12-29 | D200: Vinati Organics Ltd | E200: Accu | F200: 465.00 | H200: 540 | I200: 540.00 | J200: Target Achieved | K200: 75.00 | L200: 16.13% | M200: Successful | N200: 2016-06-09
A201: 46 | B201: 2016-01-11 | D201: GSFC | E201: Buy | F201: 81.00 | H201: 110 | I201: 110.00 | J201: Target Achieved | K201: 29.00 | L201: 35.80% | M201: Successful | N201: 2017-01-10
A202: 47 | B202: 2016-01-13 | D202: SSWL | E202: Buy | F202: 417.50 | H202: 547 | I202: 535.00 | J202: Target Achieved | K202: 129.50 | L202: 31.02% | M202: Successful | N202: 2016-07-27
A203: 48 | B203: 2016-02-08 | D203: Persistent System Ltd | E203: Accu | F203: 650.00 | H203: 800 | I203: 800.00 | J203: Target Achieved | K203: 150.00 | L203: 23.08% | M203: Successful | N203: 2018-02-23
A204: 49 | B204: 2016-03-04 | D204: UPL | E204: Accu | F204: 437.50 | H204: 504.5 | I204: 522.00 | J204: Profit of Rs.67/- | K204: 67.00 | L204: 15.31% | M204: Successful | N204: 2016-04-20
A205: 50 | B205: 2016-03-09 | D205: Ashoka Buildcon Ltd | E205: Accu | F205: 189.50 | H205: 218 | I205: 218.00 | J205: Target Achieved | K205: 28.50 | L205: 15.04% | M205: Successful | N205: 2017-10-26
A206: 51 | B206: 2016-04-11 | D206: PTC INDIA FIN SERV LTD | E206: Accu | F206: 36.5 | H206: 15.85 | I206: 60.00 | J206: Loss of Rs.20.65/- | K206: -20.65 | L206: -56.58% | M206: Unsuccessful | N206: 2019-06-11
A207: 52 | B207: 2016-04-12 | D207: CAMLINFINE $ | E207: Accu | F207: 93.00 | H207: 149 | I207: 140.00 | J207: Profit of Rs 56/- | K207: 56.00 | L207: 60.22% | M207: Successful | N207: 2017-01-05
A208: 53 | B208: 2016-04-12 | D208: Greaves Cotton Ltd. | E208: Accu | F208: 130.00 | H208: 150 | I208: 150-155 | J208: Target Achieved | K208: 20.00 | L208: 15.38% | M208: Successful | N208: 2016-07-13
A209: 54 | B209: 2016-04-13 | D209: DHFL | E209: Accu | F209: 196.00 | H209: 299 | I209: 299.00 | J209: Target Achieved | K209: 103.00 | L209: 52.55% | M209: Successful | N209: 2016-09-07
A210: 55 | B210: 2016-04-13 | D210: Magma | E210: Accu | F210: 88.00 | H210: 103 | I210: 103.00 | J210: Target Achieved | K210: 15.00 | L210: 17.05% | M210: Successful | N210: 2016-06-09
A211: 56 | B211: 2016-05-02 | D211: KEC International ltd $ | E211: Accu | F211: 127.50 | H211: 148 | I211: 148-150 | J211: Target Achieved | K211: =H211-F211 -> 20.50 | L211: =K211/F211 -> 16.08% | M211: Successful | N211: 2016-07-13
A212: 57 | B212: 2016-05-03 | D212: Mindtree | E212: Accu | F212: 675.00 | H212: 815 | I212: 790-800 | J212: Target Achieved | K212: =H212-F212 -> 140.00 | L212: =K212/F212 -> 20.74% | M212: Successful | N212: 2018-02-23
A213: 58 | B213: 2016-06-01 | D213: Atulauto | E213: Accu | F213: 500 | H213: 232.50 | I213: 565-570 | J213: Loss of Rs.267.50 /- | K213: =H213-F213 -> -267.50 | L213: =K213/F213 -> -53.50% | M213: Unsuccessful | N213: 2019-09-27
A214: 59 | B214: 2016-06-06 | D214: TRITURBINE | E214: Accu | F214: 110.00 | H214: 126.5 | I214: 125.00 | J214: Profit of Rs.16.50/- | K214: =H214-F214 -> 16.50 | L214: =K214/F214 -> 15.00% | M214: Successful | N214: 2016-07-01
A215: 60 | B215: 2016-06-17 | D215: Pennar Industries Ltd | E215: Accu | F215: 44.00 | H215: 69.5 | I215: 69.50 | J215: Profit of Rs.25.50/- | K215: =H215-F215 -> 25.50 | L215: =K215/F215 -> 57.95% | M215: Successful | N215: 2017-08-30
A216: 61 | B216: 2016-06-28 | D216: EVEREADY | E216: Accu | F216: 262.50 | H216: 340 | I216: 333.00 | J216: Profit of Rs.77.50/- | K216: 77.50 | L216: 29.52% | M216: Successful | N216: 2017-10-09
A217: 62 | B217: 2016-06-28 | D217: FIEMIND | E217: Accu | F217: 840.00 | H217: 1230 | I217: 1230.00 | J217: Target Achieved | K217: 390.00 | L217: 46.43% | M217: Successful | N217: 2016-10-06
A218: 63 | B218: 2016-07-05 | D218: Bajaj Corp Ltd | E218: Accu | F218: 395 | H218: =(468.5+342.5)/2 -> 405.50 | I218: 510.00 | J218: Profit of Rs.10.50/- | K218: =H218-F218 -> 10.50 | L218: =K218/F218 -> 3% | M218: Neutral | N218: 2019-05-21
A219: 64 | B219: 2016-08-02 | D219: GPPL $ | E219: Buy | F219: =169.5-12.8 -> 156.7 | H219: 77.00 | I219: 198-200 | J219: Loss of Rs.79.7/- | K219: -79.70 | L219: -50.86% | M219: Unsuccessful | N219: 2019-02-26
A220: 65 | B220: 2016-08-04 | D220: WONDERLA HOLIDAYS LTD | E220: Accu | F220: 400 | H220: 305.00 | I220: 475.00 | J220: Loss of Rs.95/- | K220: -95.00 | L220: -23.75% | M220: Unsuccessful | N220: 2019-05-21
A221: 66 | B221: 2016-08-11 | D221: CAMLINFINE | E221: Accu | F221: 86.50 | H221: 130 | I221: 130.00 | J221: Profit of Rs.43.50/- | K221: 43.50 | L221: 50.29% | M221: Successful | N221: 2017-12-22
A222: 67 | B222: 2016-08-18 | D222: GRANULES | E222: Accu | F222: 133.5 | H222: 126.50 | I222: 178.00 | J222: Exit | K222: -7.00 | L222: -5.24% | M222: Unsuccessful | N222: 2016-09-02
A223: 68 | B223: 2016-08-31 | D223: VA TECH WABAG | E223: Accu | F223: 560.00 | H223: 725 | I223: 725.00 | J223: Target Achieved | K223: 165.00 | L223: 29.46% | M223: Successful | N223: 2016-03-27
... 85 more rows

Sheet Sheet2 (hidden)
A1: SYMBOL | B1: SERIES | C1: OPEN | D1: HIGH | E1: LOW | F1: CLOSE | G1: LAST | H1: PREVCLOSE | I1: TOTTRDQTY | J1: TOTTRDVAL | K1: TIMESTAMP | L1: TOTALTRADES | M1: ISIN | N1: ISIN
A2: 20MICRONS | B2: EQ | C2: 22.95 | D2: 24.8 | E2: 21.05 | F2: 22.25 | G2: 22.55 | H2: 23.05 | I2: 411131 | J2: 8733610.2 | K2: 2020-03-19 | L2: 677 | M2: INE144J01027
A3: 21STCENMGM | B3: EQ | C3: 11.25 | D3: 11.25 | E3: 11.25 | F3: 11.25 | G3: 11.25 | H3: 11.25 | I3: 14 | J3: 157.5 | K3: 2020-03-19 | L3: 4 | M3: INE253B01015
A4: 3IINFOTECH | B4: EQ | C4: 1.5 | D4: 1.5 | E4: 1.4 | F4: 1.5 | G4: 1.5 | H4: 1.5 | I4: 1341839 | J4: 1959118.8 | K4: 2020-03-19 | L4: 1026 | M4: INE748C01020
A5: 3MINDIA | B5: EQ | C5: 17000 | D5: 17546.85 | E5: 16317.95 | F5: 16931.15 | G5: 16750 | H5: 17539.25 | I5: 12132 | J5: 204329664.9 | K5: 2020-03-19 | L5: 5961 | M5: INE470A01017
A6: 3PLAND | B6: EQ | C6: 3.8 | D6: 3.8 | E6: 3.65 | F6: 3.8 | G6: 3.8 | H6: 3.8 | I6: 1283 | J6: 4724.8 | K6: 2020-03-19 | L6: 11 | M6: INE105C01023
A7: 5PAISA | B7: EQ | C7: 104 | D7: 131.7 | E7: 91.65 | F7: 110 | G7: 110 | H7: 114.55 | I7: 40824 | J7: 4094826.05 | K7: 2020-03-19 | L7: 727 | M7: INE618L01018
A8: 63MOONS | B8: EQ | C8: 55 | D8: 55.1 | E8: 49.45 | F8: 50.8 | G8: 50.1 | H8: 56.4 | I8: 111235 | J8: 5717098.1 | K8: 2020-03-19 | L8: 4294 | M8: INE111B01023
A9: A2ZINFRA | B9: EQ | C9: 3.35 | D9: 3.6 | E9: 3 | F9: 3.4 | G9: 3.35 | H9: 3.35 | I9: 247863 | J9: 801250.8 | K9: 2020-03-19 | L9: 550 | M9: INE619I01012
A10: AARTIDRUGS | B10: EQ | C10: 469.95 | D10: 474 | E10: 421.85 | F10: 465.8 | G10: 470 | H10: 469.95 | I10: 35765 | J10: 16008533.35 | K10: 2020-03-19 | L10: 2445 | M10: INE767A01016
A11: AARTIIND | B11: EQ | C11: 750 | D11: 793 | E11: 737.05 | F11: 748.45 | G11: 746.95 | H11: 790.5 | I11: 267158 | J11: 202688625.6 | K11: 2020-03-19 | L11: 24971 | M11: INE769A01020
A12: AARVEEDEN | B12: EQ | C12: 8.05 | D12: 8.75 | E12: 7 | F12: 8.2 | G12: 8.75 | H12: 8.05 | I12: 13896 | J12: 109844.25 | K12: 2020-03-19 | L12: 126 | M12: INE273D01019
A13: AAVAS | B13: EQ | C13: 1325 | D13: 1371.65 | E13: 1168.3 | F13: 1309.15 | G13: 1299 | H13: 1442.15 | I13: 106464 | J13: 137241543.1 | K13: 2020-03-19 | L13: 16172 | M13: INE216P01012
A14: ABAN | B14: EQ | C14: 14 | D14: 14.7 | E14: 13.85 | F14: 13.85 | G14: 13.85 | H14: 14.55 | I14: 126200 | J14: 1772010.4 | K14: 2020-03-19 | L14: 933 | M14: INE421A01028
A15: ABB | B15: EQ | C15: 880 | D15: 925 | E15: 835 | F15: 895.9 | G15: 901.95 | H15: 905.1 | I15: 280603 | J15: 237433682.4 | K15: 2020-03-19 | L15: 5218 | M15: INE117A01022
A16: ABBOTINDIA | B16: EQ | C16: 13500 | D16: 13820 | E16: 12501.45 | F16: 13249.3 | G16: 13220 | H16: 14238.8 | I16: 33398 | J16: 443617914.4 | K16: 2020-03-19 | L16: 10277 | M16: INE358A01014
A17: ABCAPITAL | B17: EQ | C17: 47.5 | D17: 48.8 | E17: 45 | F17: 45.8 | G17: 46.3 | H17: 49.45 | I17: 2782549 | J17: 130824768.4 | K17: 2020-03-19 | L17: 17813 | M17: INE674K01013
A18: ABFRL | B18: EQ | C18: 175 | D18: 187 | E18: 160.6 | F18: 181.65 | G18: 174.85 | H18: 184.7 | I18: 2005915 | J18: 347155188.3 | K18: 2020-03-19 | L18: 36768 | M18: INE647O01011
A19: ABSLBANETF | B19: EQ | C19: 236 | D19: 249.9 | E19: 210 | F19: 210.28 | G19: 210 | H19: 235 | I19: 90 | J19: 20569 | K19: 2020-03-19 | L19: 24 | M19: INF209KB1O58
A20: ABSLNN50ET | B20: EQ | C20: 243 | D20: 248 | E20: 214.7 | F20: 214.78 | G20: 214.7 | H20: 230 | I20: 60 | J20: 13393.9 | K20: 2020-03-19 | L20: 14 | M20: INF209KB1B87
A21: ACC | B21: EQ | C21: 1033.9 | D21: 1131.75 | E21: 1000.45 | F21: 1089.95 | G21: 1066.6 | H21: 1079.1 | I21: 1213355 | J21: 1313310347 | K21: 2020-03-19 | L21: 53082 | M21: INE012A01025
A22: ACCELYA | B22: EQ | C22: 826 | D22: 899 | E22: 826 | F22: 876.45 | G22: 875.15 | H22: 870.35 | I22: 23386 | J22: 20546589.65 | K22: 2020-03-19 | L22: 1308 | M22: INE793A01012
A23: ACE | B23: EQ | C23: 42.1 | D23: 44.5 | E23: 39.5 | F23: 41.25 | G23: 40.5 | H23: 45.1 | I23: 178055 | J23: 7428301 | K23: 2020-03-19 | L23: 1874 | M23: INE731H01025
A24: ADANIENT | B24: EQ | C24: 121 | D24: 132.95 | E24: 118.2 | F24: 128.9 | G24: 130 | H24: 130.2 | I24: 5517080 | J24: 694275216 | K24: 2020-03-19 | L24: 29278 | M24: INE423A01024
A25: ADANIGAS | B25: EQ | C25: 99.7 | D25: 103.4 | E25: 95.65 | F25: 98.85 | G25: 98.5 | H25: 103.65 | I25: 1739558 | J25: 175555344.9 | K25: 2020-03-19 | L25: 21347 | M25: INE399L01023
A26: ADANIGREEN | B26: EQ | C26: 125 | D26: 135.85 | E26: 122.95 | F26: 135.65 | G26: 135.85 | H26: 129.4 | I26: 920137 | J26: 121040308.5 | K26: 2020-03-19 | L26: 10818 | M26: INE364U01010
A27: ADANIPORTS | B27: EQ | C27: 248 | D27: 264.15 | E27: 241 | F27: 258.35 | G27: 257 | H27: 260.4 | I27: 8727962 | J27: 2233696246 | K27: 2020-03-19 | L27: 64991 | M27: INE742F01042
A28: ADANIPOWER | B28: EQ | C28: 27 | D28: 28 | E28: 24 | F28: 27 | G28: 26.95 | H28: 28.15 | I28: 13335416 | J28: 357227914.6 | K28: 2020-03-19 | L28: 24309 | M28: INE814H01011
A29: ADANITRANS | B29: EQ | C29: 192.15 | D29: 211.35 | E29: 175.55 | F29: 205.9 | G29: 203 | H29: 192.15 | I29: 1114006 | J29: 228415390.5 | K29: 2020-03-19 | L29: 13504 | M29: INE931S01010
A30: ADFFOODS | B30: EQ | C30: 135.1 | D30: 145.2 | E30: 128.75 | F30: 141.3 | G30: 140.95 | H30: 142.95 | I30: 72933 | J30: 9927341.35 | K30: 2020-03-19 | L30: 934 | M30: INE982B01019
A31: ADHUNIKIND | B31: EQ | C31: 18.05 | D31: 18.05 | E31: 18.05 | F31: 18.05 | G31: 18.05 | H31: 19 | I31: 1151 | J31: 20775.55 | K31: 2020-03-19 | L31: 19 | M31: INE452L01012
A32: ADLABS | B32: EQ | C32: 2.7 | D32: 2.7 | E32: 2.5 | F32: 2.5 | G32: 2.5 | H32: 2.6 | I32: 42468 | J32: 106917.8 | K32: 2020-03-19 | L32: 146 | M32: INE172N01012
A33: ADORWELD | B33: EQ | C33: 195.9 | D33: 203 | E33: 185.2 | F33: 189.1 | G33: 187.1 | H33: 219.95 | I33: 20213 | J33: 3863207.9 | K33: 2020-03-19 | L33: 950 | M33: INE045A01017
A34: ADROITINFO | B34: EQ | C34: 5 | D34: 5 | E34: 5 | F34: 5 | G34: 5 | H34: 5.25 | I34: 35 | J34: 175 | K34: 2020-03-19 | L34: 5 | M34: INE737B01033
A35: ADSL | B35: EQ | C35: 12.3 | D35: 12.3 | E35: 12.3 | F35: 12.3 | G35: 12.3 | H35: 12.9 | I35: 12055 | J35: 148276.5 | K35: 2020-03-19 | L35: 34 | M35: INE102I01027
A36: ADVANIHOTR | B36: EQ | C36: 39.7 | D36: 41.85 | E36: 31.2 | F36: 37.55 | G36: 38 | H36: 35.75 | I36: 7413 | J36: 273868.25 | K36: 2020-03-19 | L36: 294 | M36: INE199C01026
A37: ADVENZYMES | B37: EQ | C37: 115.1 | D37: 116 | E37: 100 | F37: 109.6 | G37: 110 | H37: 118.95 | I37: 116599 | J37: 12630846.45 | K37: 2020-03-19 | L37: 2785 | M37: INE837H01020
A38: AEGISCHEM | B38: EQ | C38: 125.9 | D38: 141.55 | E38: 116.1 | F38: 139.05 | G38: 141 | H38: 128.7 | I38: 293224 | J38: 39112847.3 | K38: 2020-03-19 | L38: 5717 | M38: INE208C01025
A39: AFFLE | B39: BE | C39: 1202.25 | D39: 1202.25 | E39: 1202.25 | F39: 1202.25 | G39: 1202.25 | H39: 1265.5 | I39: 9145 | J39: 10994576.25 | K39: 2020-03-19 | L39: 696 | M39: INE00WC01019
A40: AGARIND | B40: EQ | C40: 51 | D40: 58 | E40: 50.4 | F40: 54.9 | G40: 54.5 | H40: 54.8 | I40: 8771 | J40: 477441.2 | K40: 2020-03-19 | L40: 161 | M40: INE204E01012
A41: AGCNET | B41: BE | C41: 222.9 | D41: 222.9 | E41: 222.9 | F41: 222.9 | G41: 222.9 | H41: 234.6 | I41: 56 | J41: 12482.4 | K41: 2020-03-19 | L41: 4 | M41: INE676A01019
A42: AGRITECH | B42: EQ | C42: 20.2 | D42: 23.6 | E42: 20.2 | F42: 20.5 | G42: 20.4 | H42: 22.35 | I42: 14706 | J42: 310663.45 | K42: 2020-03-19 | L42: 252 | M42: INE449G01018
A43: AGROPHOS | B43: EQ | C43: 7.8 | D43: 8.6 | E43: 7.8 | F43: 8.1 | G43: 7.8 | H43: 8.2 | I43: 99353 | J43: 798315.65 | K43: 2020-03-19 | L43: 414 | M43: INE740V01019
A44: AHLEAST | B44: EQ | C44: 125.95 | D44: 155.6 | E44: 115.55 | F44: 123.7 | G44: 122 | H44: 141.1 | I44: 875 | J44: 115981.3 | K44: 2020-03-19 | L44: 88 | M44: INE926K01017
A45: AHLUCONT | B45: EQ | C45: 260 | D45: 262 | E45: 219.75 | F45: 230.65 | G45: 220 | H45: 258.8 | I45: 133522 | J45: 34377563.2 | K45: 2020-03-19 | L45: 4821 | M45: INE758C01029
A46: AHLWEST | B46: EQ | C46: 260.2 | D46: 273 | E46: 240.05 | F46: 272.35 | G46: 269 | H46: 271 | I46: 3066 | J46: 818775.65 | K46: 2020-03-19 | L46: 487 | M46: INE915K01010
A47: AIAENG | B47: EQ | C47: 1400 | D47: 1473.85 | E47: 1375.05 | F47: 1420.4 | G47: 1401 | H47: 1454.95 | I47: 70881 | J47: 100180621.9 | K47: 2020-03-19 | L47: 9448 | M47: INE212H01026
A48: AIONJSW | B48: EQ | C48: 9 | D48: 9.35 | E48: 8.6 | F48: 8.65 | G48: 8.85 | H48: 9.05 | I48: 168071 | J48: 1458618 | K48: 2020-03-19 | L48: 379 | M48: INE743C01021
A49: AIRAN | B49: EQ | C49: 10.6 | D49: 10.6 | E49: 9.2 | F49: 9.85 | G49: 10.1 | H49: 10.15 | I49: 18633 | J49: 186657 | K49: 2020-03-19 | L49: 53 | M49: INE645W01026
A50: AJANTPHARM | B50: EQ | C50: 1200 | D50: 1228.15 | E50: 1152.65 | F50: 1189.4 | G50: 1198 | H50: 1230.2 | I50: 124709 | J50: 147199853.8 | K50: 2020-03-19 | L50: 19555 | M50: INE031B01049
A51: AJMERA | B51: EQ | C51: 61 | D51: 64.75 | E51: 52.5 | F51: 61.7 | G51: 64.75 | H51: 61.65 | I51: 59429 | J51: 3452306.4 | K51: 2020-03-19 | L51: 1130 | M51: INE298G01027
A52: AKSHARCHEM | B52: EQ | C52: 160.05 | D52: 173.85 | E52: 152 | F52: 162.7 | G52: 160 | H52: 168 | I52: 11306 | J52: 1875714.75 | K52: 2020-03-19 | L52: 820 | M52: INE542B01011
A53: AKSHOPTFBR | B53: EQ | C53: 3.35 | D53: 3.35 | E53: 3.35 | F53: 3.35 | G53: 3.35 | H53: 3.5 | I53: 114782 | J53: 384519.7 | K53: 2020-03-19 | L53: 196 | M53: INE523B01011
A54: AKZOINDIA | B54: EQ | C54: 2150 | D54: 2150 | E54: 1914 | F54: 1998.85 | G54: 2000 | H54: 2159.95 | I54: 81840 | J54: 162821276.8 | K54: 2020-03-19 | L54: 8508 | M54: INE133A01011
A55: ALANKIT | B55: EQ | C55: 10.5 | D55: 10.5 | E55: 9.55 | F55: 9.55 | G55: 9.55 | H55: 10.6 | I55: 80268 | J55: 769457.55 | K55: 2020-03-19 | L55: 406 | M55: INE914E01040
A56: ALBERTDAVD | B56: EQ | C56: 301 | D56: 321.95 | E56: 297.55 | F56: 315.4 | G56: 316.95 | H56: 317.6 | I56: 19346 | J56: 6000520.5 | K56: 2020-03-19 | L56: 632 | M56: INE155C01010
A57: ALBK | B57: EQ | C57: 7.6 | D57: 7.75 | E57: 7.3 | F57: 7.6 | G57: 7.55 | H57: 7.75 | I57: 2130293 | J57: 16120600 | K57: 2020-03-19 | L57: 4787 | M57: INE428A01015
A58: ALCHEM | B58: BE | C58: 1.2 | D58: 1.2 | E58: 1.1 | F58: 1.1 | G58: 1.1 | H58: 1.15 | I58: 3195 | J58: 3788 | K58: 2020-03-19 | L58: 24 | M58: INE964B01033
A59: ALEMBICLTD | B59: EQ | C59: 40.1 | D59: 41 | E59: 38.1 | F59: 38.85 | G59: 39 | H59: 41.05 | I59: 159935 | J59: 6319907.5 | K59: 2020-03-19 | L59: 1291 | M59: INE426A01027
A60: ALICON | B60: EQ | C60: 182.25 | D60: 194.9 | E60: 167.9 | F60: 177.2 | G60: 179 | H60: 204.7 | I60: 20041 | J60: 3548232.25 | K60: 2020-03-19 | L60: 569 | M60: INE062D01024
A61: ALKALI | B61: EQ | C61: 33.6 | D61: 33.6 | E61: 25.2 | F61: 26.45 | G61: 27.15 | H61: 31.5 | I61: 58182 | J61: 1522558.5 | K61: 2020-03-19 | L61: 541 | M61: INE773I01017
A62: ALKEM | B62: EQ | C62: 2250 | D62: 2266.9 | E62: 2102.6 | F62: 2177.85 | G62: 2195 | H62: 2294.2 | I62: 82486 | J62: 183144863.2 | K62: 2020-03-19 | L62: 9765 | M62: INE540L01014
A63: ALKYLAMINE | B63: EQ | C63: 1101 | D63: 1133.55 | E63: 1031 | F63: 1083.9 | G63: 1060 | H63: 1172.85 | I63: 46945 | J63: 51077206 | K63: 2020-03-19 | L63: 5130 | M63: INE150B01021
A64: ALLCARGO | B64: EQ | C64: 72 | D64: 73.5 | E64: 63.9 | F64: 68.4 | G64: 68 | H64: 74.65 | I64: 241888 | J64: 16247208.55 | K64: 2020-03-19 | L64: 3349 | M64: INE418H01029
A65: ALLSEC | B65: EQ | C65: 151 | D65: 154.95 | E65: 136.5 | F65: 136.85 | G65: 136.5 | H65: 151.65 | I65: 15950 | J65: 2196789.5 | K65: 2020-03-19 | L65: 181 | M65: INE835G01018
A66: ALMONDZ | B66: EQ | C66: 14.95 | D66: 14.95 | E66: 14.95 | F66: 14.95 | G66: 14.95 | H66: 15.7 | I66: 2 | J66: 29.9 | K66: 2020-03-19 | L66: 2 | M66: INE326B01027
A67: ALOKINDS | B67: EQ | C67: 5.7 | D67: 5.7 | E67: 5.7 | F67: 5.7 | G67: 5.7 | H67: 6 | I67: 299349 | J67: 1706289.3 | K67: 2020-03-19 | L67: 399 | M67: INE270A01029
A68: ALPA | B68: EQ | C68: 12 | D68: 13.45 | E68: 11.2 | F68: 12.65 | G68: 12.55 | H68: 12.2 | I68: 19899 | J68: 249026.75 | K68: 2020-03-19 | L68: 171 | M68: INE385I01010
A69: ALPHAGEO | B69: EQ | C69: 136 | D69: 147 | E69: 133 | F69: 134.85 | G69: 135 | H69: 136.1 | I69: 65882 | J69: 9129212.95 | K69: 2020-03-19 | L69: 1551 | M69: INE137C01018
A70: ALPSINDUS | B70: EQ | C70: 0.5 | D70: 0.6 | E70: 0.5 | F70: 0.6 | G70: 0.6 | H70: 0.55 | I70: 23979 | J70: 14368.6 | K70: 2020-03-19 | L70: 38 | M70: INE093B01015
A71: AMARAJABAT | B71: EQ | C71: 455 | D71: 470 | E71: 433 | F71: 451.3 | G71: 443 | H71: 485.8 | I71: 679020 | J71: 305657427.6 | K71: 2020-03-19 | L71: 27871 | M71: INE885A01032
A72: AMBER | B72: EQ | C72: 1025 | D72: 1185 | E72: 985.05 | F72: 1101.3 | G72: 1081 | H72: 1116.05 | I72: 83765 | J72: 89918445.3 | K72: 2020-03-19 | L72: 12680 | M72: INE371P01015
A73: AMBIKCO | B73: EQ | C73: 590 | D73: 610 | E73: 552.2 | F73: 603.3 | G73: 610 | H73: 599.05 | I73: 5936 | J73: 3489253.05 | K73: 2020-03-19 | L73: 722 | M73: INE540G01014
A74: AMBUJACEM | B74: EQ | C74: 154 | D74: 161.15 | E74: 149.4 | F74: 153.95 | G74: 151.2 | H74: 159.65 | I74: 11032807 | J74: 1719305632 | K74: 2020-03-19 | L74: 77949 | M74: INE079A01024
A75: AMDIND | B75: EQ | C75: 8.55 | D75: 10.65 | E75: 8.55 | F75: 9.6 | G75: 9.5 | H75: 9.85 | I75: 9323 | J75: 90982.1 | K75: 2020-03-19 | L75: 123 | M75: INE005I01014
A76: AMJLAND | B76: EQ | C76: 16.1 | D76: 17.7 | E76: 15 | F76: 16.2 | G76: 15.75 | H76: 17.05 | I76: 11839 | J76: 188287.2 | K76: 2020-03-19 | L76: 225 | M76: INE606A01024
A77: AMRUTANJAN | B77: EQ | C77: 280.35 | D77: 324 | E77: 276.95 | F77: 298.3 | G77: 295 | H77: 309.45 | I77: 65535 | J77: 19662903.25 | K77: 2020-03-19 | L77: 4596 | M77: INE098F01031
A78: ANANTRAJ | B78: EQ | C78: 19 | D78: 20.2 | E78: 18.4 | F78: 19.55 | G78: 19.45 | H78: 20.25 | I78: 237013 | J78: 4592124.05 | K78: 2020-03-19 | L78: 1387 | M78: INE242C01024
A79: ANDHRABANK | B79: EQ | C79: 9.35 | D79: 9.6 | E79: 8.8 | F79: 9.1 | G79: 9.05 | H79: 9.4 | I79: 1119198 | J79: 10350813.2 | K79: 2020-03-19 | L79: 2771 | M79: INE434A01013
A80: ANDHRACEMT | B80: EQ | C80: 1.65 | D80: 1.7 | E80: 1.6 | F80: 1.6 | G80: 1.6 | H80: 1.65 | I80: 88321 | J80: 144937.2 | K80: 2020-03-19 | L80: 135 | M80: INE666E01012
A81: ANDHRAPAP | B81: EQ | C81: 164.95 | D81: 164.95 | E81: 144.1 | F81: 151.95 | G81: 150 | H81: 160.1 | I81: 8128 | J81: 1214884.3 | K81: 2020-03-19 | L81: 302 | M81: INE435A01028
A82: ANDHRSUGAR | B82: EQ | C82: 190.8 | D82: 191 | E82: 162 | F82: 178.1 | G82: 180 | H82: 202.55 | I82: 88206 | J82: 15438943.35 | K82: 2020-03-19 | L82: 2851 | M82: INE715B01013
A83: ANIKINDS | B83: EQ | C83: 6.75 | D83: 7 | E83: 6.4 | F83: 7 | G83: 7 | H83: 6.7 | I83: 10028 | J83: 68691.45 | K83: 2020-03-19 | L83: 83 | M83: INE087B01017
A84: ANKITMETAL | B84: EQ | C84: 0.45 | D84: 0.45 | E84: 0.4 | F84: 0.45 | G84: 0.45 | H84: 0.45 | I84: 26902 | J84: 11296.55 | K84: 2020-03-19 | L84: 22 | M84: INE106I01010
A85: ANSALAPI | B85: EQ | C85: 3.95 | D85: 4.15 | E85: 3.95 | F85: 4 | G85: 3.95 | H85: 4.15 | I85: 27006 | J85: 107052.35 | K85: 2020-03-19 | L85: 79 | M85: INE436A01026
A86: ANSALHSG | B86: EQ | C86: 3.1 | D86: 3.1 | E86: 2.95 | F86: 2.95 | G86: 2.95 | H86: 3.1 | I86: 11030 | J86: 32568 | K86: 2020-03-19 | L86: 48 | M86: INE880B01015
A87: ANUP | B87: EQ | C87: 348.9 | D87: 348.9 | E87: 281.3 | F87: 306.25 | G87: 302 | H87: 348.9 | I87: 22309 | J87: 6778167.7 | K87: 2020-03-19 | L87: 1300 | M87: INE294Z01018
A88: APARINDS | B88: EQ | C88: 296.95 | D88: 314.9 | E88: 268.75 | F88: 304.95 | G88: 310 | H88: 297.5 | I88: 20384 | J88: 5938444.75 | K88: 2020-03-19 | L88: 1350 | M88: INE372A01015
A89: APCL | B89: EQ | C89: 95 | D89: 104 | E89: 90 | F89: 97.3 | G89: 104 | H89: 98.3 | I89: 25703 | J89: 2564200.95 | K89: 2020-03-19 | L89: 263 | M89: INE071F01012
A90: APCOTEXIND | B90: EQ | C90: 75 | D90: 75 | E90: 66.8 | F90: 70.15 | G90: 72.7 | H90: 77.2 | I90: 54654 | J90: 3862528.35 | K90: 2020-03-19 | L90: 1428 | M90: INE116A01032
A91: APEX | B91: EQ | C91: 176 | D91: 192.7 | E91: 170.2 | F91: 181.8 | G91: 180 | H91: 191.15 | I91: 149015 | J91: 26985364.55 | K91: 2020-03-19 | L91: 5374 | M91: INE346W01013
A92: APLAPOLLO | B92: EQ | C92: 1115 | D92: 1347.95 | E92: 1030 | F92: 1302.35 | G92: 1315 | H92: 1248.4 | I92: 96213 | J92: 111580110.2 | K92: 2020-03-19 | L92: 8045 | M92: INE702C01019
A93: APLLTD | B93: EQ | C93: 450.1 | D93: 508.05 | E93: 450.1 | F93: 494.4 | G93: 493.9 | H93: 486.2 | I93: 156354 | J93: 76915638.8 | K93: 2020-03-19 | L93: 8074 | M93: INE901L01018
A94: APOLLO | B94: EQ | C94: 48.9 | D94: 48.9 | E94: 44.8 | F94: 46.45 | G94: 46.9 | H94: 49.8 | I94: 22703 | J94: 1051828.6 | K94: 2020-03-19 | L94: 806 | M94: INE713T01010
A95: APOLLOHOSP | B95: EQ | C95: 1195.1 | D95: 1248.25 | E95: 1052.35 | F95: 1180.1 | G95: 1182 | H95: 1282.7 | I95: 2412020 | J95: 2775762509 | K95: 2020-03-19 | L95: 140798 | M95: INE437A01024
A96: APOLLOPIPE | B96: EQ | C96: 288.35 | D96: 290.35 | E96: 245.3 | F96: 280.5 | G96: 290.35 | H96: 289.9 | I96: 24962 | J96: 6671004.2 | K96: 2020-03-19 | L96: 2235 | M96: INE126J01016
A97: APOLLOTYRE | B97: EQ | C97: 86 | D97: 91.35 | E97: 83.65 | F97: 86.2 | G97: 86.2 | H97: 89.4 | I97: 4347529 | J97: 380619792.7 | K97: 2020-03-19 | L97: 34213 | M97: INE438A01022
A98: APOLSINHOT | B98: EQ | C98: 299 | D98: 325.05 | E98: 295.95 | F98: 323.4 | G98: 325 | H98: 328.8 | I98: 2827 | J98: 844779.55 | K98: 2020-03-19 | L98: 85 | M98: INE451F01024
A99: APTECHT | B99: EQ | C99: 76.65 | D99: 83 | E99: 69.65 | F99: 80.25 | G99: 80 | H99: 80.25 | I99: 177621 | J99: 13608630.1 | K99: 2020-03-19 | L99: 5128 | M99: INE266F01018
A100: ARCHIDPLY | B100: EQ | C100: 12.05 | D100: 16.5 | E100: 12.05 | F100: 16.1 | G100: 16.45 | H100: 14.2 | I100: 15073 | J100: 225439 | K100: 2020-03-19 | L100: 164 | M100: INE877I01016
A101: ARCHIES | B101: EQ | C101: 10 | D101: 10.1 | E101: 9.6 | F101: 9.7 | G101: 10 | H101: 10 | I101: 69605 | J101: 690082.6 | K101: 2020-03-19 | L101: 207 | M101: INE731A01020
A102: ARCOTECH | B102: EQ | C102: 0.8 | D102: 0.85 | E102: 0.8 | F102: 0.8 | G102: 0.8 | H102: 0.85 | I102: 55007 | J102: 44372.6 | K102: 2020-03-19 | L102: 70 | M102: INE574I01035
A103: ARIES | B103: EQ | C103: 38.8 | D103: 40 | E103: 35 | F103: 39.4 | G103: 39.7 | H103: 38.35 | I103: 62388 | J103: 2355568.35 | K103: 2020-03-19 | L103: 893 | M103: INE298I01015
A104: ARIHANT | B104: EQ | C104: 12 | D104: 12.4 | E104: 11.4 | F104: 12.35 | G104: 12.4 | H104: 12 | I104: 1872 | J104: 22549.5 | K104: 2020-03-19 | L104: 31 | M104: INE413D01011
A105: ARIHANTSUP | B105: EQ | C105: 21.55 | D105: 21.55 | E105: 19.55 | F105: 20.75 | G105: 21.45 | H105: 20.55 | I105: 5252 | J105: 111441.8 | K105: 2020-03-19 | L105: 37 | M105: INE643K01018
A106: ARMANFIN | B106: EQ | C106: 526 | D106: 590 | E106: 502.4 | F106: 511.65 | G106: 502.4 | H106: 558.2 | I106: 24010 | J106: 12631188.25 | K106: 2020-03-19 | L106: 1747 | M106: INE109C01017
A107: AROGRANITE | B107: EQ | C107: 19.65 | D107: 19.65 | E107: 16.3 | F107: 16.55 | G107: 16.9 | H107: 18 | I107: 24301 | J107: 406380.5 | K107: 2020-03-19 | L107: 261 | M107: INE210C01013
A108: ARROWGREEN | B108: BE | C108: 30.35 | D108: 33.4 | E108: 30.3 | F108: 33.4 | G108: 33.4 | H108: 31.85 | I108: 19810 | J108: 652769.5 | K108: 2020-03-19 | L108: 60 | M108: INE570D01018
A109: ARSHIYA | B109: EQ | C109: 8.55 | D109: 9.1 | E109: 7.85 | F109: 8.85 | G109: 8.35 | H109: 9.2 | I109: 275888 | J109: 2353312.6 | K109: 2020-03-19 | L109: 336 | M109: INE968D01022
A110: ARSSINFRA | B110: EQ | C110: 11.9 | D110: 12.3 | E110: 9.65 | F110: 10.2 | G110: 10 | H110: 11.55 | I110: 42413 | J110: 451919.9 | K110: 2020-03-19 | L110: 249 | M110: INE267I01010
A111: ARTEMISMED | B111: EQ | C111: 120 | D111: 148.9 | E111: 115.5 | F111: 142.3 | G111: 138.1 | H111: 140.05 | I111: 923 | J111: 125811 | K111: 2020-03-19 | L111: 37 | M111: INE025R01013
A112: ARVIND | B112: EQ | C112: 25.1 | D112: 26 | E112: 23.3 | F112: 23.45 | G112: 23.45 | H112: 26.15 | I112: 1305934 | J112: 30930623.05 | K112: 2020-03-19 | L112: 15964 | M112: INE034A01011
A113: ARVINDFASN | B113: EQ | C113: 159 | D113: 176.9 | E113: 152.85 | F113: 155.5 | G113: 153.3 | H113: 169.8 | I113: 44157 | J113: 7146502.65 | K113: 2020-03-19 | L113: 2224 | M113: INE955V01021
A114: ARVSMART | B114: EQ | C114: 76.45 | D114: 81.6 | E114: 76 | F114: 79.15 | G114: 81 | H114: 79.65 | I114: 44334 | J114: 3442223.25 | K114: 2020-03-19 | L114: 670 | M114: INE034S01021
A115: ASAHIINDIA | B115: EQ | C115: 181.25 | D115: 182 | E115: 157.3 | F115: 165.25 | G115: 162.95 | H115: 182.95 | I115: 39952 | J115: 6663009.05 | K115: 2020-03-19 | L115: 1421 | M115: INE439A01020
A116: ASAHISONG | B116: EQ | C116: 97.1 | D116: 127 | E116: 92.1 | F116: 111.05 | G116: 110 | H116: 106.35 | I116: 49232 | J116: 5764495.6 | K116: 2020-03-19 | L116: 1177 | M116: INE228I01012
A117: ASAL | B117: EQ | C117: 12.35 | D117: 12.65 | E117: 12.35 | F117: 12.45 | G117: 12.35 | H117: 12.95 | I117: 7052 | J117: 88143.75 | K117: 2020-03-19 | L117: 48 | M117: INE900C01027
A118: ASALCBR | B118: EQ | C118: 145.95 | D118: 151 | E118: 131.55 | F118: 140.15 | G118: 136.5 | H118: 146.35 | I118: 19449 | J118: 2695397.05 | K118: 2020-03-19 | L118: 1195 | M118: INE073G01016
A119: ASHAPURMIN | B119: EQ | C119: 24.65 | D119: 26.5 | E119: 24.65 | F119: 24.65 | G119: 24.65 | H119: 25.9 | I119: 137061 | J119: 3402490.35 | K119: 2020-03-19 | L119: 302 | M119: INE348A01023
A120: ASHIANA | B120: EQ | C120: 56.1 | D120: 60.25 | E120: 52 | F120: 54 | G120: 54 | H120: 62 | I120: 125531 | J120: 7063177.15 | K120: 2020-03-19 | L120: 1636 | M120: INE365D01021
A121: ASHIMASYN | B121: EQ | C121: 3.5 | D121: 3.7 | E121: 3.2 | F121: 3.35 | G121: 3.5 | H121: 3.55 | I121: 129913 | J121: 447887.6 | K121: 2020-03-19 | L121: 278 | M121: INE440A01010
A122: ASHOKA | B122: EQ | C122: 55.4 | D122: 55.95 | E122: 49.15 | F122: 52.7 | G122: 55 | H122: 56.75 | I122: 1072603 | J122: 54798635.05 | K122: 2020-03-19 | L122: 11772 | M122: INE442H01029
A123: ASHOKLEY | B123: EQ | C123: 57.4 | D123: 57.4 | E123: 47.1 | F123: 48.05 | G123: 47.5 | H123: 64.25 | I123: 83216053 | J123: 4314070800 | K123: 2020-03-19 | L123: 279062 | M123: INE208A01029
A124: ASIANHOTNR | B124: EQ | C124: 62.35 | D124: 66.45 | E124: 62.3 | F124: 65 | G124: 64 | H124: 64.85 | I124: 31827 | J124: 2067050.85 | K124: 2020-03-19 | L124: 84 | M124: INE363A01022
A125: ASIANPAINT | B125: EQ | C125: 1540 | D125: 1653.95 | E125: 1431.2 | F125: 1601.2 | G125: 1603 | H125: 1618.2 | I125: 4906647 | J125: 7534853574 | K125: 2020-03-19 | L125: 215886 | M125: INE021A01026
A126: ASIANTILES | B126: EQ | C126: 178 | D126: 189 | E126: 169.95 | F126: 186.05 | G126: 182.1 | H126: 180 | I126: 107964 | J126: 19814232.75 | K126: 2020-03-19 | L126: 4680 | M126: INE022I01019
A127: ASPINWALL | B127: EQ | C127: 98 | D127: 101 | E127: 86.05 | F127: 92.35 | G127: 86.95 | H127: 107.2 | I127: 908 | J127: 85494.4 | K127: 2020-03-19 | L127: 82 | M127: INE991I01015
A128: ASTEC | B128: EQ | C128: 370 | D128: 374.95 | E128: 354.3 | F128: 370.15 | G128: 369.95 | H128: 377.8 | I128: 43518 | J128: 15923788.1 | K128: 2020-03-19 | L128: 1391 | M128: INE563J01010
A129: ASTERDM | B129: EQ | C129: 108.5 | D129: 108.5 | E129: 88.25 | F129: 88.65 | G129: 90.9 | H129: 110.3 | I129: 1580010 | J129: 149994579.3 | K129: 2020-03-19 | L129: 14973 | M129: INE914M01019
A130: ASTRAL | B130: EQ | C130: 950 | D130: 1009.9 | E130: 894.95 | F130: 930.45 | G130: 922 | H130: 996.3 | I130: 229129 | J130: 211328793.1 | K130: 2020-03-19 | L130: 16716 | M130: INE006I01046
A131: ASTRAMICRO | B131: EQ | C131: 58.5 | D131: 58.6 | E131: 52.9 | F131: 54.05 | G131: 54 | H131: 60.65 | I131: 522463 | J131: 28891240 | K131: 2020-03-19 | L131: 4929 | M131: INE386C01029
A132: ASTRAZEN | B132: EQ | C132: 1980 | D132: 2149 | E132: 1901.25 | F132: 2070.15 | G132: 2149 | H132: 2042.95 | I132: 51357 | J132: 105641503.6 | K132: 2020-03-19 | L132: 4086 | M132: INE203A01020
A133: ASTRON | B133: EQ | C133: 27 | D133: 28 | E133: 26 | F133: 27.05 | G133: 27 | H133: 28.3 | I133: 48063 | J133: 1290348.65 | K133: 2020-03-19 | L133: 920 | M133: INE646X01014
A134: ATFL | B134: EQ | C134: 423.15 | D134: 433.95 | E134: 406.05 | F134: 422.85 | G134: 411.05 | H134: 447.8 | I134: 12999 | J134: 5452689.2 | K134: 2020-03-19 | L134: 1142 | M134: INE209A01019
A135: ATLANTA | B135: EQ | C135: 3.35 | D135: 3.35 | E135: 3.35 | F135: 3.35 | G135: 3.35 | H135: 3.5 | I135: 13825 | J135: 46313.75 | K135: 2020-03-19 | L135: 33 | M135: INE285H01022
A136: ATLASCYCLE | B136: BE | C136: 33.95 | D136: 33.95 | E136: 32.3 | F136: 32.3 | G136: 32.3 | H136: 33.95 | I136: 2036 | J136: 66859.1 | K136: 2020-03-19 | L136: 33 | M136: INE446A01025
A137: ATNINTER | B137: BE | C137: 0.15 | D137: 0.15 | E137: 0.1 | F137: 0.1 | G137: 0.1 | H137: 0.15 | I137: 49512 | J137: 4968.8 | K137: 2020-03-19 | L137: 34 | M137: INE803A01027
A138: ATUL | B138: EQ | C138: 3520.5 | D138: 4075 | E138: 3251 | F138: 3869.45 | G138: 3876 | H138: 3711.85 | I138: 61736 | J138: 225351892.2 | K138: 2020-03-19 | L138: 16163 | M138: INE100A01010
A139: ATULAUTO | B139: EQ | C139: 142 | D139: 151.95 | E139: 131.9 | F139: 143.55 | G139: 147.9 | H139: 144.9 | I139: 29760 | J139: 4186137.9 | K139: 2020-03-19 | L139: 1332 | M139: INE951D01028
A140: AUBANK | B140: EQ | C140: 616 | D140: 664.45 | E140: 554.65 | F140: 621.85 | G140: 630 | H140: 683.95 | I140: 2546670 | J140: 1574697232 | K140: 2020-03-19 | L140: 192086 | M140: INE949L01017
A141: AURIONPRO | B141: EQ | C141: 29.3 | D141: 39.05 | E141: 29.3 | F141: 37.95 | G141: 38.5 | H141: 33.5 | I141: 49892 | J141: 1726641.45 | K141: 2020-03-19 | L141: 641 | M141: INE132H01018
A142: AUROPHARMA | B142: EQ | C142: 360 | D142: 362.95 | E142: 341.4 | F142: 346 | G142: 345.8 | H142: 363.65 | I142: 6339469 | J142: 2244501167 | K142: 2020-03-19 | L142: 85958 | M142: INE406A01037
A143: AUSOMENT | B143: EQ | C143: 27.15 | D143: 28.6 | E143: 27.15 | F143: 28.6 | G143: 28.6 | H143: 28.5 | I143: 708 | J143: 20036.1 | K143: 2020-03-19 | L143: 14 | M143: INE218C01016
A144: AUTOAXLES | B144: EQ | C144: 383 | D144: 421.95 | E144: 365.7 | F144: 379.55 | G144: 385 | H144: 403.55 | I144: 11471 | J144: 4469538.1 | K144: 2020-03-19 | L144: 1364 | M144: INE449A01011
A145: AUTOIND | B145: EQ | C145: 12.1 | D145: 12.1 | E145: 12.1 | F145: 12.1 | G145: 12.1 | H145: 12.7 | I145: 2690 | J145: 32549 | K145: 2020-03-19 | L145: 29 | M145: INE718H01014
A146: AUTOLITIND | B146: EQ | C146: 10.8 | D146: 12.6 | E146: 10.8 | F146: 11.85 | G146: 11.65 | H146: 11.9 | I146: 12267 | J146: 142698.1 | K146: 2020-03-19 | L146: 98 | M146: INE448A01013
A147: AVADHSUGAR | B147: EQ | C147: 113.9 | D147: 113.9 | E147: 109.45 | F147: 109.55 | G147: 109.45 | H147: 121.6 | I147: 111090 | J147: 12313818.4 | K147: 2020-03-19 | L147: 2106 | M147: INE349W01017
A148: AVANTIFEED | B148: EQ | C148: 284.1 | D148: 297.3 | E148: 271.6 | F148: 278.9 | G148: 278.3 | H148: 298.9 | I148: 713404 | J148: 202531793.8 | K148: 2020-03-19 | L148: 45827 | M148: INE871C01038
A149: AVTNPL | B149: EQ | C149: 25 | D149: 25.4 | E149: 23.4 | F149: 24.05 | G149: 24 | H149: 25.65 | I149: 115796 | J149: 2791963.75 | K149: 2020-03-19 | L149: 1144 | M149: INE488D01021
A150: AXISBANK | B150: EQ | C150: 441.05 | D150: 464.95 | E150: 423.75 | F150: 428.25 | G150: 428 | H150: 473.45 | I150: 33244422 | J150: 1.464949245e+10 | K150: 2020-03-19 | L150: 397399 | M150: INE238A01034
A151: AXISCADES | B151: EQ | C151: 31.5 | D151: 34 | E151: 30.85 | F151: 32.7 | G151: 33.7 | H151: 32.45 | I151: 57640 | J151: 1818774.7 | K151: 2020-03-19 | L151: 240 | M151: INE555B01013
A152: AXISGOLD | B152: EQ | C152: 3501 | D152: 3547 | E152: 3420.1 | F152: 3526.75 | G152: 3525 | H152: 3562.85 | I152: 2343 | J152: 8177086.8 | K152: 2020-03-19 | L152: 385 | M152: INF846K01347
A153: AXISNIFTY | B153: EQ | C153: 1058.7 | D153: 1058.7 | E153: 948.9 | F153: 1050 | G153: 1050 | H153: 1100 | I153: 83 | J153: 84703.9 | K153: 2020-03-19 | L153: 36 | M153: INF846K01ZL0
A154: AYMSYNTEX | B154: EQ | C154: 20 | D154: 20 | E154: 18.6 | F154: 19.85 | G154: 20 | H154: 19.9 | I154: 6743 | J154: 132318.35 | K154: 2020-03-19 | L154: 147 | M154: INE193B01039
A155: BAFNAPH | B155: EQ | C155: 9.1 | D155: 9.1 | E155: 9.1 | F155: 9.1 | G155: 9.1 | H155: 8.3 | I155: 1052 | J155: 9573.2 | K155: 2020-03-19 | L155: 11 | M155: INE878I01022
A156: BAGFILMS | B156: EQ | C156: 1.7 | D156: 1.7 | E156: 1.6 | F156: 1.7 | G156: 1.7 | H156: 1.65 | I156: 309651 | J156: 515912.45 | K156: 2020-03-19 | L156: 808 | M156: INE116D01028
A157: BAJAJ-AUTO | B157: EQ | C157: 2119.75 | D157: 2377.4 | E157: 2032.35 | F157: 2166.6 | G157: 2186.7 | H157: 2169 | I157: 1010352 | J157: 2220768499 | K157: 2020-03-19 | L157: 88650 | M157: INE917I01010
A158: BAJAJCON | B158: EQ | C158: 126 | D158: 138 | E158: 120 | F158: 135.75 | G158: 136 | H158: 128.3 | I158: 277608 | J158: 36663470.75 | K158: 2020-03-19 | L158: 6483 | M158: INE933K01021
A159: BAJAJELEC | B159: EQ | C159: 314.05 | D159: 350 | E159: 270 | F159: 328.55 | G159: 340 | H159: 322.75 | I159: 471355 | J159: 152339148.6 | K159: 2020-03-19 | L159: 4065 | M159: INE193E01025
A160: BAJAJFINSV | B160: EQ | C160: 5865 | D160: 6205.85 | E160: 5442.65 | F160: 5785.5 | G160: 5842 | H160: 6310.2 | I160: 816638 | J160: 4740409080 | K160: 2020-03-19 | L160: 114537 | M160: INE918I01018
A161: BAJAJHIND | B161: EQ | C161: 3.2 | D161: 3.2 | E161: 2.9 | F161: 2.95 | G161: 3 | H161: 3.2 | I161: 2821637 | J161: 8436627.05 | K161: 2020-03-19 | L161: 1951 | M161: INE306A01021
A162: BAJAJHLDNG | B162: EQ | C162: 2340.2 | D162: 2469.65 | E162: 2140 | F162: 2300.6 | G162: 2307.9 | H162: 2539.05 | I162: 407407 | J162: 891251020 | K162: 2020-03-19 | L162: 18634 | M162: INE118A01012
A163: BAJFINANCE | B163: EQ | C163: 2800 | D163: 3053.05 | E163: 2484.7 | F163: 2746.1 | G163: 2755.25 | H163: 3061.35 | I163: 8324859 | J163: 2.311009061e+10 | K163: 2020-03-19 | L163: 529439 | M163: INE296A01024
A164: BALAJITELE | B164: EQ | C164: 31.15 | D164: 34.45 | E164: 30.55 | F164: 32.1 | G164: 31.85 | H164: 33.75 | I164: 45007 | J164: 1438584.75 | K164: 2020-03-19 | L164: 745 | M164: INE794B01026
A165: BALAMINES | B165: EQ | C165: 230 | D165: 246.75 | E165: 213.3 | F165: 219.15 | G165: 219.35 | H165: 236.35 | I165: 103374 | J165: 23275105.25 | K165: 2020-03-19 | L165: 3412 | M165: INE050E01027
A166: BALAXI | B166: BE | C166: 79 | D166: 79 | E166: 79 | F166: 79 | G166: 79 | H166: 82.45 | I166: 361 | J166: 28519 | K166: 2020-03-19 | L166: 7 | M166: INE618N01014
A167: BALKRISHNA | B167: EQ | C167: 10.6 | D167: 10.6 | E167: 9.65 | F167: 9.75 | G167: 9.7 | H167: 10.15 | I167: 3370 | J167: 33252.15 | K167: 2020-03-19 | L167: 46 | M167: INE875R01011
A168: BALKRISIND | B168: EQ | C168: 786 | D168: 809.7 | E168: 750 | F168: 760.9 | G168: 752 | H168: 829.5 | I168: 975034 | J168: 764113547.8 | K168: 2020-03-19 | L168: 25917 | M168: INE787D01026
A169: BALLARPUR | B169: EQ | C169: 0.35 | D169: 0.35 | E169: 0.3 | F169: 0.35 | G169: 0.35 | H169: 0.3 | I169: 2150807 | J169: 720999.45 | K169: 2020-03-19 | L169: 329 | M169: INE294A01037
A170: BALMLAWRIE | B170: EQ | C170: 74.5 | D170: 79.8 | E170: 74.5 | F170: 78.8 | G170: 79 | H170: 79.6 | I170: 117391 | J170: 9126984.75 | K170: 2020-03-19 | L170: 2100 | M170: INE164A01016
A171: BALPHARMA | B171: EQ | C171: 26 | D171: 27 | E171: 24.2 | F171: 26.4 | G171: 26.8 | H171: 26.8 | I171: 7681 | J171: 197582.45 | K171: 2020-03-19 | L171: 167 | M171: INE083D01012
A172: BALRAMCHIN | B172: EQ | C172: 85 | D172: 90 | E172: 84 | F172: 85.15 | G172: 84.8 | H172: 91.3 | I172: 1036401 | J172: 90792393.75 | K172: 2020-03-19 | L172: 12630 | M172: INE119A01028
A173: BANARBEADS | B173: EQ | C173: 28.95 | D173: 31 | E173: 28.55 | F173: 29.05 | G173: 29.05 | H173: 31.25 | I173: 1056 | J173: 30479.2 | K173: 2020-03-19 | L173: 18 | M173: INE655B01011
A174: BANARISUG | B174: EQ | C174: 768.65 | D174: 834.95 | E174: 692.05 | F174: 697.95 | G174: 692.05 | H174: 768.65 | I174: 756 | J174: 563738.75 | K174: 2020-03-19 | L174: 127 | M174: INE459A01010
A175: BANCOINDIA | B175: EQ | C175: 67.6 | D175: 74.7 | E175: 57.55 | F175: 71.2 | G175: 73 | H175: 71.65 | I175: 353711 | J175: 23147892.7 | K175: 2020-03-19 | L175: 6644 | M175: INE213C01025
A176: BANDHANBNK | B176: EQ | C176: 202 | D176: 212.95 | E176: 195.05 | F176: 200.75 | G176: 199 | H176: 224.4 | I176: 14033031 | J176: 2865009824 | K176: 2020-03-19 | L176: 293590 | M176: INE545U01014
A177: BANG | B177: EQ | C177: 13.4 | D177: 13.5 | E177: 12.85 | F177: 13.4 | G177: 13.4 | H177: 13.5 | I177: 1347 | J177: 17665.25 | K177: 2020-03-19 | L177: 19 | M177: INE863I01016
A178: BANKBARODA | B178: EQ | C178: 60.3 | D178: 69 | E178: 60.2 | F178: 61.45 | G178: 62.05 | H178: 65.15 | I178: 40171354 | J178: 2578196314 | K178: 2020-03-19 | L178: 100607 | M178: INE028A01039
A179: BANKBEES | B179: EQ | C179: 208.99 | D179: 212.5 | E179: 195 | F179: 203.57 | G179: 205.3 | H179: 210.12 | I179: 444723 | J179: 90385394.26 | K179: 2020-03-19 | L179: 7675 | M179: INF204KB15I9
A180: BANKINDIA | B180: EQ | C180: 34.5 | D180: 36.85 | E180: 33.65 | F180: 35.45 | G180: 35.65 | H180: 35.95 | I180: 1975725 | J180: 70061767 | K180: 2020-03-19 | L180: 9437 | M180: INE084A01016
A181: BANSWRAS | B181: EQ | C181: 81.25 | D181: 81.25 | E181: 81.25 | F181: 81.25 | G181: 81.25 | H181: 85.5 | I181: 861 | J181: 69956.25 | K181: 2020-03-19 | L181: 9 | M181: INE629D01012
A182: BASF | B182: EQ | C182: 935 | D182: 1107.95 | E182: 906 | F182: 1071.7 | G182: 1055 | H182: 985.05 | I182: 149237 | J182: 155373838.1 | K182: 2020-03-19 | L182: 15230 | M182: INE373A01013
A183: BASML | B183: EQ | C183: 81.95 | D183: 88 | E183: 77 | F183: 78.1 | G183: 77.15 | H183: 81.15 | I183: 674 | J183: 55297.55 | K183: 2020-03-19 | L183: 24 | M183: INE186H01014
A184: BATAINDIA | B184: EQ | C184: 1090 | D184: 1147 | E184: 1000 | F184: 1100.5 | G184: 1128.8 | H184: 1197.55 | I184: 2256470 | J184: 2443847015 | K184: 2020-03-19 | L184: 104375 | M184: INE176A01028
A185: BAYERCROP | B185: EQ | C185: 3600 | D185: 3719.95 | E185: 3450 | F185: 3561.85 | G185: 3530 | H185: 3747.8 | I185: 14599 | J185: 52201659.1 | K185: 2020-03-19 | L185: 3894 | M185: INE462A01022
A186: BBL | B186: EQ | C186: 494 | D186: 494 | E186: 437.4 | F186: 470.35 | G186: 456.05 | H186: 494.1 | I186: 17183 | J186: 7969531.6 | K186: 2020-03-19 | L186: 1442 | M186: INE464A01028
A187: BBTC | B187: EQ | C187: 750 | D187: 755.45 | E187: 701 | F187: 728.6 | G187: 726 | H187: 774.45 | I187: 63142 | J187: 46417935 | K187: 2020-03-19 | L187: 5393 | M187: INE050A01025
A188: BCG | B188: EQ | C188: 3.65 | D188: 3.65 | E188: 3.65 | F188: 3.65 | G188: 3.65 | H188: 3.8 | I188: 48127 | J188: 175663.55 | K188: 2020-03-19 | L188: 98 | M188: INE425B01027
A189: BCP | B189: EQ | C189: 16.15 | D189: 16.15 | E189: 16.15 | F189: 16.15 | G189: 16.15 | H189: 17 | I189: 330 | J189: 5329.5 | K189: 2020-03-19 | L189: 4 | M189: INE905P01028
A190: BDL | B190: EQ | C190: 180.7 | D190: 180.7 | E190: 167 | F190: 173.5 | G190: 171 | H190: 185.15 | I190: 79338 | J190: 13722084.95 | K190: 2020-03-19 | L190: 3812 | M190: INE171Z01018
A191: BEARDSELL | B191: EQ | C191: 6.9 | D191: 6.9 | E191: 6.9 | F191: 6.9 | G191: 6.9 | H191: 6.6 | I191: 140 | J191: 966 | K191: 2020-03-19 | L191: 1 | M191: INE520H01022
A192: BEDMUTHA | B192: EQ | C192: 12.35 | D192: 13 | E192: 12.35 | F192: 12.5 | G192: 12.5 | H192: 12.95 | I192: 9199 | J192: 117567.35 | K192: 2020-03-19 | L192: 20 | M192: INE844K01012
A193: BEL | B193: EQ | C193: 69.05 | D193: 72.5 | E193: 62.9 | F193: 64.55 | G193: 64.15 | H193: 74.8 | I193: 20175836 | J193: 1382021359 | K193: 2020-03-19 | L193: 70696 | M193: INE263A01024
A194: BEML | B194: EQ | C194: 450 | D194: 515 | E194: 421.35 | F194: 502.5 | G194: 508.05 | H194: 482.95 | I194: 550493 | J194: 252600057.4 | K194: 2020-03-19 | L194: 21801 | M194: INE258A01016
A195: BEPL | B195: EQ | C195: 33.65 | D195: 34.25 | E195: 29 | F195: 31.75 | G195: 32.05 | H195: 35.25 | I195: 830633 | J195: 26216338.4 | K195: 2020-03-19 | L195: 9177 | M195: INE922A01025
A196: BERGEPAINT | B196: EQ | C196: 405 | D196: 444 | E196: 389.35 | F196: 404.05 | G196: 414.7 | H196: 436 | I196: 2743380 | J196: 1135028272 | K196: 2020-03-19 | L196: 60270 | M196: INE463A01038
A197: BFINVEST | B197: EQ | C197: 205 | D197: 214 | E197: 195.35 | F197: 205 | G197: 205.9 | H197: 219.15 | I197: 18120 | J197: 3678974.2 | K197: 2020-03-19 | L197: 644 | M197: INE878K01010
A198: BFUTILITIE | B198: EQ | C198: 167.6 | D198: 167.6 | E198: 167.6 | F198: 167.6 | G198: 167.6 | H198: 176.4 | I198: 11320 | J198: 1897232 | K198: 2020-03-19 | L198: 163 | M198: INE243D01012
A199: BGRENERGY | B199: EQ | C199: 21.9 | D199: 21.9 | E199: 20.1 | F199: 20.55 | G199: 20.3 | H199: 22 | I199: 112902 | J199: 2367569.95 | K199: 2020-03-19 | L199: 939 | M199: INE661I01014
A200: BHAGERIA | B200: EQ | C200: 83.1 | D200: 83.45 | E200: 71.55 | F200: 79.05 | G200: 77.1 | H200: 84 | I200: 36668 | J200: 2873741.3 | K200: 2020-03-19 | L200: 1106 | M200: INE354C01027
... 1470 more rows

Sheet Sheet1 (hidden)

Sheet Sheet3 (hidden)

Sheet Sheet4 (hidden)

Sheet Sheet5 (hidden)
